Workbook

Sheet Main
B10: 2020-10-19
B12: Sheet No. | C12: Template Name | D12: Summary
B13: 1 | C13: Future Intra | D13: For Intraday trading in F&O segment
B14: 2 | C14: Cash Intra | D14: For Intraday trading in cash market segment
B15: 3 | C15: Mid-cap Intra | D15: For Intraday trading in Mid-cap stocks
B16: 4 | C16: Bulk Deals | D16: Reveals Bulk Deals carried on NSE & BSE
B17: 5 | C17: Call Tracker
K27: `

Sheet Future Intra
M5: Back to Main Page
A6: FOR INTRA DAY TRADING | L6: =Main!B10 -> 2020-10-19
A9: Sr.no | B9: Sector | C9: Scrip | D9: CLOSE RATE | E9: Pivot Point | F9: Supports | I9: Resistances
B10: Sector | D10: Point | E10: Point | F10: S1 | G10: S2 | H10: S3 | I10: R1 | J10: R2 | K10: R3 | L10: HIGH | M10: LOW | N10: OI | O10: % Change in OI
A11: 1 | B11: Index | C11: BANKNIFTY | D11: 23584.25 | E11: 23494.75 | F11: 23272.50 | G11: 22960.75 | H11: 22738.50 | I11: 23806.50 | J11: 24028.75 | K11: 24340.50 | L11: 23717 | M11: 23183 | N11: 1666225 | O11: -5.16%
A12: 2 | B12: Index | C12: NIFTY | D12: 11765.15 | E12: 11745.47 | F12: 11692.93 | G12: 11620.72 | H12: 11568.18 | I12: 11817.68 | J12: 11870.22 | K12: 11942.43 | L12: 11798 | M12: 11673.25 | N12: 12352725 | O12: -6.66%
A13: 3 | B13: Cement | C13: ACC | D13: 1566.00 | E13: 1551.37 | F13: 1532.73 | G13: 1499.47 | H13: 1480.83 | I13: 1584.63 | J13: 1603.27 | K13: 1636.53 | L13: 1570 | M13: 1518.1 | N13: 2334000 | O13: 9.04%
A14: 4 | B14: Others | C14: ADANIENT | D14: 308.00 | E14: 308.10 | F14: 303.90 | G14: 299.80 | H14: 295.60 | I14: 312.20 | J14: 316.40 | K14: 320.50 | L14: 312.3 | M14: 304 | N14: 17644000 | O14: -0.56%
A15: 5 | B15: Others | C15: ADANIPORTS | D15: 350.90 | E15: 348.52 | F15: 344.68 | G15: 338.47 | H15: 334.63 | I15: 354.73 | J15: 358.57 | K15: 364.78 | L15: 352.35 | M15: 342.3 | N15: 27867500 | O15: -0.07%
A16: 6 | B16: Automobile | C16: AMARAJABAT | D16: 724.85 | E16: 723.20 | F16: 714.65 | G16: 704.45 | H16: 695.90 | I16: 733.40 | J16: 741.95 | K16: 752.15 | L16: 731.75 | M16: 713 | N16: 1080000 | O16: 2.76%
A17: 7 | B17: Cement | C17: AMBUJACEM | D17: 248.65 | E17: 246.35 | F17: 243.35 | G17: 238.05 | H17: 235.05 | I17: 251.65 | J17: 254.65 | K17: 259.95 | L17: 249.35 | M17: 241.05 | N17: 18123000 | O17: 9.34%
A18: 8 | B18: Others | C18: APOLLOHOSP | D18: 2215.00 | E18: 2205.53 | F18: 2187.72 | G18: 2160.43 | H18: 2142.62 | I18: 2232.82 | J18: 2250.63 | K18: 2277.92 | L18: 2223.35 | M18: 2178.25 | N18: 1773000 | O18: 2.22%
A19: 9 | B19: Automobile | C19: APOLLOTYRE | D19: 128.60 | E19: 127.38 | F19: 125.77 | G19: 122.93 | H19: 121.32 | I19: 130.22 | J19: 131.83 | K19: 134.67 | L19: 129 | M19: 124.55 | N19: 9575000 | O19: -3.77%
A20: 10 | B20: Automobile | C20: ASHOKLEY | D20: 75.30 | E20: 74.80 | F20: 73.70 | G20: 72.10 | H20: 71.00 | I20: 76.40 | J20: 77.50 | K20: 79.10 | L20: 75.9 | M20: 73.2 | N20: 44775000 | O20: -1.45%
A21: 11 | B21: FMCG | C21: ASIANPAINT | D21: 2065.95 | E21: 2072.25 | F21: 2052.70 | G21: 2039.45 | H21: 2019.90 | I21: 2085.50 | J21: 2105.05 | K21: 2118.30 | L21: 2091.8 | M21: 2059 | N21: 2549700 | O21: 4.26%
A22: 12 | B22: Pharma | C22: AUROPHARMA | D22: 808.90 | E22: 804.85 | F22: 791.30 | G22: 773.70 | H22: 760.15 | I22: 822.45 | J22: 836.00 | K22: 853.60 | L22: 818.4 | M22: 787.25 | N22: 14801800 | O22: -1.57%
A23: 13 | B23: Banking | C23: AXISBANK | D23: 473.90 | E23: 471.50 | F23: 465.65 | G23: 457.40 | H23: 451.55 | I23: 479.75 | J23: 485.60 | K23: 493.85 | L23: 477.35 | M23: 463.25 | N23: 49363200 | O23: -1.72%
A24: 14 | B24: Automobile | C24: BAJAJ-AUTO | D24: 3055.40 | E24: 3065.88 | F24: 3030.42 | G24: 3005.43 | H24: 2969.97 | I24: 3090.87 | J24: 3126.33 | K24: 3151.32 | L24: 3101.35 | M24: 3040.9 | N24: 2465000 | O24: 3.05%
A25: 15 | B25: Finance | C25: BAJAJFINSV | D25: 5972.45 | E25: 5947.00 | F25: 5896.40 | G25: 5820.35 | H25: 5769.75 | I25: 6023.05 | J25: 6073.65 | K25: 6149.70 | L25: 5997.6 | M25: 5870.95 | N25: 859750 | O25: -2.50%
A26: 16 | B26: Finance | C26: BAJFINANCE | D26: 3240.80 | E26: 3229.33 | F26: 3184.32 | G26: 3127.83 | H26: 3082.82 | I26: 3285.82 | J26: 3330.83 | K26: 3387.32 | L26: 3274.35 | M26: 3172.85 | N26: 5038750 | O26: -3.34%
A27: 17 | B27: Automobile | C27: BALKRISIND | D27: 1382.90 | E27: 1374.30 | F27: 1358.65 | G27: 1334.40 | H27: 1318.75 | I27: 1398.55 | J27: 1414.20 | K27: 1438.45 | L27: 1389.95 | M27: 1350.05 | N27: 1924000 | O27: -2.63%
A28: 18 | B28: Banking | C28: BANDHANBNK | D28: 313.70 | E28: 311.35 | F28: 307.50 | G28: 301.30 | H28: 297.45 | I28: 317.55 | J28: 321.40 | K28: 327.60 | L28: 315.2 | M28: 305.15 | N28: 13093200 | O28: 1.92%
A29: 19 | B29: Banking | C29: BANKBARODA | D29: 40.50 | E29: 40.60 | F29: 40.00 | G29: 39.50 | H29: 38.90 | I29: 41.10 | J29: 41.70 | K29: 42.20 | L29: 41.2 | M29: 40.1 | N29: 50462800 | O29: 3.10%
A30: 20 | B30: FMCG | C30: BATAINDIA | D30: 1375.50 | E30: 1370.68 | F30: 1357.02 | G30: 1338.53 | H30: 1324.87 | I30: 1389.17 | J30: 1402.83 | K30: 1421.32 | L30: 1384.35 | M30: 1352.2 | N30: 1483350 | O30: -1.93%
A31: 21 | B31: Capital_Goods | C31: BEL | D31: 91.30 | E31: 90.52 | F31: 89.43 | G31: 87.57 | H31: 86.48 | I31: 92.38 | J31: 93.47 | K31: 95.33 | L31: 91.6 | M31: 88.65 | N31: 33075200 | O31: -0.27%
A32: 22 | B32: FMCG | C32: BERGEPAINT | D32: 604.65 | E32: 604.05 | F32: 598.45 | G32: 592.25 | H32: 586.65 | I32: 610.25 | J32: 615.85 | K32: 622.05 | L32: 609.65 | M32: 597.85 | N32: 3801600 | O32: -0.17%
A33: 23 | B33: Automobile | C33: BHARATFORG | D33: 453.45 | E33: 453.70 | F33: 447.55 | G33: 441.65 | H33: 435.50 | I33: 459.60 | J33: 465.75 | K33: 471.65 | L33: 459.85 | M33: 447.8 | N33: 7107000 | O33: 4.68%
A34: 24 | B34: Telecom | C34: BHARTIARTL | D34: 403.10 | E34: 403.83 | F34: 398.87 | G34: 394.63 | H34: 389.67 | I34: 408.07 | J34: 413.03 | K34: 417.27 | L34: 408.8 | M34: 399.6 | N34: 124946202 | O34: 0.83%
A35: 25 | B35: Capital_Goods | C35: BHEL | D35: 27.30 | E35: 27.13 | F35: 26.82 | G35: 26.33 | H35: 26.02 | I35: 27.62 | J35: 27.93 | K35: 28.42 | L35: 27.45 | M35: 26.65 | N35: 69636000 | O35: -1.13%
A36: 26 | B36: Pharma | C36: BIOCON | D36: 447.70 | E36: 444.50 | F36: 438.45 | G36: 429.20 | H36: 423.15 | I36: 453.75 | J36: 459.80 | K36: 469.05 | L36: 450.55 | M36: 435.25 | N36: 12811000 | O36: -1.64%
A37: 27 | B37: Automobile | C37: BOSCHLTD | D37: 11994.25 | E37: 11942.90 | F37: 11836.70 | G37: 11679.15 | H37: 11572.95 | I37: 12100.45 | J37: 12206.65 | K37: 12364.20 | L37: 12049.1 | M37: 11785.35 | N37: 132100 | O37: -2.40%
A38: 28 | B38: Oil_Gas | C38: BPCL | D38: 340.65 | E38: 337.87 | F38: 331.23 | G38: 321.82 | H38: 315.18 | I38: 347.28 | J38: 353.92 | K38: 363.33 | L38: 344.5 | M38: 328.45 | N38: 25120800 | O38: 2.00%
A39: 29 | B39: FMCG | C39: BRITANNIA | D39: 3759.65 | E39: 3761.10 | F39: 3734.20 | G39: 3708.75 | H39: 3681.85 | I39: 3786.55 | J39: 3813.45 | K39: 3838.90 | L39: 3788 | M39: 3735.65 | N39: 988600 | O39: 5.48%
A40: 30 | B40: Pharma | C40: CADILAHC | D40: 430.35 | E40: 425.35 | F40: 418.00 | G40: 405.65 | H40: 398.30 | I40: 437.70 | J40: 445.05 | K40: 457.40 | L40: 432.7 | M40: 413 | N40: 5801400 | O40: -5.82%
A41: 31 | B41: Banking | C41: CANBK | D41: 86.45 | E41: 86.22 | F41: 85.43 | G41: 84.42 | H41: 83.63 | I41: 87.23 | J41: 88.02 | K41: 89.03 | L41: 87 | M41: 85.2 | N41: 17380000 | O41: -2.14%
A42: 32 | B42: Finance | C42: CHOLAFIN | D42: 237.15 | E42: 237.12 | F42: 233.53 | G42: 229.92 | H42: 226.33 | I42: 240.73 | J42: 244.32 | K42: 247.93 | L42: 240.7 | M42: 233.5 | N42: 5757500 | O42: -2.21%
A43: 33 | B43: Pharma | C43: CIPLA | D43: 782.55 | E43: 776.58 | F43: 764.22 | G43: 745.88 | H43: 733.52 | I43: 794.92 | J43: 807.28 | K43: 825.62 | L43: 788.95 | M43: 758.25 | N43: 12619100 | O43: -1.07%
A44: 34 | B44: Others | C44: COALINDIA | D44: 112.05 | E44: 111.68 | F44: 110.27 | G44: 108.48 | H44: 107.07 | I44: 113.47 | J44: 114.88 | K44: 116.67 | L44: 113.1 | M44: 109.9 | N44: 51315300 | O44: 0.32%
A45: 35 | B45: Technology | C45: COFORGE | D45: 2559.10 | E45: 2533.05 | F45: 2485.10 | G45: 2411.10 | H45: 2363.15 | I45: 2607.05 | J45: 2655.00 | K45: 2729.00 | L45: 2581 | M45: 2459.05 | N45: 487500 | O45: 3.01%
A46: 36 | B46: FMCG | C46: COLPAL | D46: 1432.45 | E46: 1428.05 | F46: 1418.95 | G46: 1405.45 | H46: 1396.35 | I46: 1441.55 | J46: 1450.65 | K46: 1464.15 | L46: 1437.15 | M46: 1414.55 | N46: 2213400 | O46: 2.03%
A47: 37 | B47: Others | C47: CONCOR | D47: 371.35 | E47: 368.18 | F47: 363.67 | G47: 355.98 | H47: 351.47 | I47: 375.87 | J47: 380.38 | K47: 388.07 | L47: 372.7 | M47: 360.5 | N47: 6666195 | O47: -0.09%
A48: 38 | B48: Capital_Goods | C48: CUMMINSIND | D48: 462.15 | E48: 455.83 | F48: 448.47 | G48: 434.78 | H48: 427.42 | I48: 469.52 | J48: 476.88 | K48: 490.57 | L48: 463.2 | M48: 442.15 | N48: 1993200 | O48: -2.52%
A49: 39 | B49: FMCG | C49: DABUR | D49: 513.75 | E49: 516.98 | F49: 509.52 | G49: 505.28 | H49: 497.82 | I49: 521.22 | J49: 528.68 | K49: 532.92 | L49: 524.45 | M49: 512.75 | N49: 10443750 | O49: 1.69%
A50: 40 | B50: Pharma | C50: DIVISLAB | D50: 3226.15 | E50: 3194.92 | F50: 3155.58 | G50: 3085.02 | H50: 3045.68 | I50: 3265.48 | J50: 3304.82 | K50: 3375.38 | L50: 3234.25 | M50: 3124.35 | N50: 3308800 | O50: -1.76%
A51: 41 | B51: Realty | C51: DLF | D51: 163.35 | E51: 160.75 | F51: 156.50 | G51: 149.65 | H51: 145.40 | I51: 167.60 | J51: 171.85 | K51: 178.70 | L51: 165 | M51: 153.9 | N51: 31270800 | O51: 12.76%
A52: 42 | B52: Pharma | C52: DRREDDY | D52: 5096.65 | E52: 5078.88 | F52: 5017.77 | G52: 4938.88 | H52: 4877.77 | I52: 5157.77 | J52: 5218.88 | K52: 5297.77 | L52: 5140 | M52: 5000 | N52: 2966750 | O52: -1.55%
A53: 43 | B53: Automobile | C53: EICHERMOT | D53: 2263.85 | E53: 2262.60 | F53: 2241.55 | G53: 2219.25 | H53: 2198.20 | I53: 2284.90 | J53: 2305.95 | K53: 2328.25 | L53: 2283.65 | M53: 2240.3 | N53: 2273600 | O53: 0.28%
A54: 44 | B54: Automobile | C54: ESCORTS | D54: 1171.85 | E54: 1185.62 | F54: 1151.23 | G54: 1130.62 | H54: 1096.23 | I54: 1206.23 | J54: 1240.62 | K54: 1261.23 | L54: 1220 | M54: 1165 | N54: 2889700 | O54: -5.77%
A55: 45 | B55: Automobile | C55: EXIDEIND | D55: 160.25 | E55: 159.23 | F55: 157.92 | G55: 155.58 | H55: 154.27 | I55: 161.57 | J55: 162.88 | K55: 165.22 | L55: 160.55 | M55: 156.9 | N55: 9284400 | O55: 0.47%
A56: 46 | B56: Banking | C56: FEDERALBNK | D56: 52.40 | E56: 52.55 | F56: 51.30 | G56: 50.20 | H56: 48.95 | I56: 53.65 | J56: 54.90 | K56: 56.00 | L56: 53.8 | M56: 51.45 | N56: 79220000 | O56: -0.28%
A57: 47 | B57: Oil_Gas | C57: GAIL | D57: 84.35 | E57: 83.85 | F57: 83.15 | G57: 81.95 | H57: 81.25 | I57: 85.05 | J57: 85.75 | K57: 86.95 | L57: 84.55 | M57: 82.65 | N57: 26138500 | O57: -1.11%
A58: 48 | B58: Pharma | C58: GLENMARK | D58: 492.40 | E58: 487.98 | F58: 473.67 | G58: 454.93 | H58: 440.62 | I58: 506.72 | J58: 521.03 | K58: 539.77 | L58: 502.3 | M58: 469.25 | N58: 7626800 | O58: 6.62%
A59: 49 | B59: Infrastructure | C59: GMRINFRA | D59: 23.85 | E59: 23.63 | F59: 23.37 | G59: 22.88 | H59: 22.62 | I59: 24.12 | J59: 24.38 | K59: 24.87 | L59: 23.9 | M59: 23.15 | N59: 67050000 | O59: -1.00%
A60: 50 | B60: FMCG | C60: GODREJCP | D60: 679.15 | E60: 681.80 | F60: 673.50 | G60: 667.85 | H60: 659.55 | I60: 687.45 | J60: 695.75 | K60: 701.40 | L60: 690.1 | M60: 676.15 | N60: 5773000 | O60: 0.19%
A61: 51 | B61: Others | C61: GODREJPROP | D61: 869.00 | E61: 859.98 | F61: 845.92 | G61: 822.83 | H61: 808.77 | I61: 883.07 | J61: 897.13 | K61: 920.22 | L61: 874.05 | M61: 836.9 | N61: 956800 | O61: 5.44%
A62: 52 | B62: Cement | C62: GRASIM | D62: 773.55 | E62: 767.28 | F62: 757.37 | G62: 741.18 | H62: 731.27 | I62: 783.47 | J62: 793.38 | K62: 809.57 | L62: 777.2 | M62: 751.1 | N62: 17708950 | O62: -0.30%
A63: 53 | B63: Others | C63: HAVELLS | D63: 698.50 | E63: 694.42 | F63: 687.28 | G63: 676.07 | H63: 668.93 | I63: 705.63 | J63: 712.77 | K63: 723.98 | L63: 701.55 | M63: 683.2 | N63: 5902000 | O63: 2.29%
A64: 54 | B64: Technology | C64: HCLTECH | D64: 825.40 | E64: 839.57 | F64: 804.28 | G64: 783.17 | H64: 747.88 | I64: 860.68 | J64: 895.97 | K64: 917.08 | L64: 874.85 | M64: 818.45 | N64: 16122400 | O64: 1.15%
A65: 55 | B65: Finance | C65: HDFC | D65: 1967.15 | E65: 1967.78 | F65: 1945.37 | G65: 1923.58 | H65: 1901.17 | I65: 1989.57 | J65: 2011.98 | K65: 2033.77 | L65: 1990.2 | M65: 1946 | N65: 24895800 | O65: 0.60%
A66: 56 | B66: Banking | C66: HDFCBANK | D66: 1203.00 | E66: 1195.07 | F66: 1184.13 | G66: 1165.27 | H66: 1154.33 | I66: 1213.93 | J66: 1224.87 | K66: 1243.73 | L66: 1206 | M66: 1176.2 | N66: 38167800 | O66: -0.86%
A67: 57 | B67: Finance | C67: HDFCLIFE | D67: 563.20 | E67: 563.95 | F67: 560.50 | G67: 557.80 | H67: 554.35 | I67: 566.65 | J67: 570.10 | K67: 572.80 | L67: 567.4 | M67: 561.25 | N67: 11936100 | O67: 2.50%
A68: 58 | B68: Automobile | C68: HEROMOTOCO | D68: 3337.05 | E68: 3345.25 | F68: 3300.65 | G68: 3264.25 | H68: 3219.65 | I68: 3381.65 | J68: 3426.25 | K68: 3462.65 | L68: 3389.85 | M68: 3308.85 | N68: 2154000 | O68: 4.21%
A69: 59 | B69: Metals | C69: HINDALCO | D69: 180.45 | E69: 178.13 | F69: 175.12 | G69: 169.78 | H69: 166.77 | I69: 183.47 | J69: 186.48 | K69: 191.82 | L69: 181.15 | M69: 172.8 | N69: 29923700 | O69: 6.55%
A70: 60 | B70: Oil_Gas | C70: HINDPETRO | D70: 169.70 | E70: 167.73 | F70: 165.47 | G70: 161.23 | H70: 158.97 | I70: 171.97 | J70: 174.23 | K70: 178.47 | L70: 170 | M70: 163.5 | N70: 33741900 | O70: -1.10%
A71: 61 | B71: FMCG | C71: HINDUNILVR | D71: 2137.95 | E71: 2142.85 | F71: 2127.10 | G71: 2116.25 | H71: 2100.50 | I71: 2153.70 | J71: 2169.45 | K71: 2180.30 | L71: 2158.6 | M71: 2132 | N71: 5948400 | O71: -1.57%
A72: 62 | B72: Finance | C72: IBULHSGFIN | D72: 151.05 | E72: 150.85 | F72: 144.20 | G72: 137.35 | H72: 130.70 | I72: 157.70 | J72: 164.35 | K72: 171.20 | L72: 157.5 | M72: 144 | N72: 16234700 | O72: -2.66%
A73: 63 | B73: Banking | C73: ICICIBANK | D73: 396.70 | E73: 396.68 | F73: 391.82 | G73: 386.93 | H73: 382.07 | I73: 401.57 | J73: 406.43 | K73: 411.32 | L73: 401.55 | M73: 391.8 | N73: 118283000 | O73: -1.53%
A74: 64 | B74: Finance | C74: ICICIPRULI | D74: 416.30 | E74: 418.22 | F74: 411.58 | G74: 406.87 | H74: 400.23 | I74: 422.93 | J74: 429.57 | K74: 434.28 | L74: 424.85 | M74: 413.5 | N74: 6705000 | O74: -0.36%
A75: 65 | B75: Telecom | C75: IDEA | D75: 8.10 | E75: 8.12 | F75: 8.03 | G75: 7.97 | H75: 7.88 | I75: 8.18 | J75: 8.27 | K75: 8.33 | L75: 8.2 | M75: 8.05 | N75: 334180000 | O75: -0.75%
A76: 66 | B76: Banking | C76: IDFCFIRSTB | D76: 30.75 | E76: 30.48 | F76: 30.12 | G76: 29.48 | H76: 29.12 | I76: 31.12 | J76: 31.48 | K76: 32.12 | L76: 30.85 | M76: 29.85 | N76: 171741000 | O76: 4.38%
A77: 67 | B77: Oil_Gas | C77: IGL | D77: 378.25 | E77: 377.98 | F77: 372.42 | G77: 366.58 | H77: 361.02 | I77: 383.82 | J77: 389.38 | K77: 395.22 | L77: 383.55 | M77: 372.15 | N77: 6465250 | O77: -2.41%
A78: 68 | B78: Others | C78: INDIGO | D78: 1336.00 | E78: 1330.68 | F78: 1317.57 | G78: 1299.13 | H78: 1286.02 | I78: 1349.12 | J78: 1362.23 | K78: 1380.67 | L78: 1343.8 | M78: 1312.25 | N78: 2689000 | O78: -0.13%
A79: 69 | B79: Banking | C79: INDUSINDBK | D79: 609.60 | E79: 609.00 | F79: 602.50 | G79: 595.40 | H79: 588.90 | I79: 616.10 | J79: 622.60 | K79: 629.70 | L79: 615.5 | M79: 601.9 | N79: 25283200 | O79: 0.45%
A80: 70 | B80: Telecom | C80: INFRATEL | D80: 182.35 | E80: 181.52 | F80: 179.13 | G80: 175.92 | H80: 173.53 | I80: 184.73 | J80: 187.12 | K80: 190.33 | L80: 183.9 | M80: 178.3 | N80: 11015200 | O80: -0.76%
A81: 71 | B81: Technology | C81: INFY | D81: 1116.40 | E81: 1109.83 | F81: 1094.67 | G81: 1072.93 | H81: 1057.77 | I81: 1131.57 | J81: 1146.73 | K81: 1168.47 | L81: 1125 | M81: 1088.1 | N81: 38575200 | O81: -5.32%
A82: 72 | B82: Oil_Gas | C82: IOC | D82: 74.55 | E82: 74.73 | F82: 73.97 | G82: 73.38 | H82: 72.62 | I82: 75.32 | J82: 76.08 | K82: 76.67 | L82: 75.5 | M82: 74.15 | N82: 60169200 | O82: 2.01%
A83: 73 | B83: FMCG | C83: ITC | D83: 166.30 | E83: 165.97 | F83: 164.63 | G83: 162.97 | H83: 161.63 | I83: 167.63 | J83: 168.97 | K83: 170.63 | L83: 167.3 | M83: 164.3 | N83: 146016000 | O83: -0.60%
A84: 74 | B84: Metals | C84: JINDALSTEL | D84: 194.45 | E84: 190.03 | F84: 185.07 | G84: 175.68 | H84: 170.72 | I84: 199.42 | J84: 204.38 | K84: 213.77 | L84: 195 | M84: 180.65 | N84: 26525000 | O84: -1.06%
A85: 75 | B85: Metals | C85: JSWSTEEL | D85: 312.05 | E85: 305.70 | F85: 298.10 | G85: 284.15 | H85: 276.55 | I85: 319.65 | J85: 327.25 | K85: 341.20 | L85: 313.3 | M85: 291.75 | N85: 42525000 | O85: 7.45%
A86: 76 | B86: Others | C86: JUBLFOOD | D86: 2327.45 | E86: 2311.95 | F86: 2290.50 | G86: 2253.55 | H86: 2232.10 | I86: 2348.90 | J86: 2370.35 | K86: 2407.30 | L86: 2333.4 | M86: 2275 | N86: 1865000 | O86: 1.77%
A87: 77 | B87: Banking | C87: KOTAKBANK | D87: 1336.70 | E87: 1330.15 | F87: 1315.40 | G87: 1294.10 | H87: 1279.35 | I87: 1351.45 | J87: 1366.20 | K87: 1387.50 | L87: 1344.9 | M87: 1308.85 | N87: 11240800 | O87: -0.69%
A88: 78 | B88: Finance | C88: L&TFH | D88: 61.45 | E88: 61.20 | F88: 60.80 | G88: 60.15 | H88: 59.75 | I88: 61.85 | J88: 62.25 | K88: 62.90 | L88: 61.6 | M88: 60.55 | N88: 26608400 | O88: -1.16%
A89: 79 | B89: Finance | C89: LICHSGFIN | D89: 285.60 | E89: 284.23 | F89: 281.17 | G89: 276.73 | H89: 273.67 | I89: 288.67 | J89: 291.73 | K89: 296.17 | L89: 287.3 | M89: 279.8 | N89: 10968000 | O89: -1.63%
A90: 80 | B90: Capital_Goods | C90: LT | D90: 897.40 | E90: 898.38 | F90: 890.92 | G90: 884.43 | H90: 876.97 | I90: 904.87 | J90: 912.33 | K90: 918.82 | L90: 905.85 | M90: 891.9 | N90: 16217300 | O90: 0.01%
A91: 81 | B91: Pharma | C91: LUPIN | D91: 1039.75 | E91: 1028.72 | F91: 1012.63 | G91: 985.52 | H91: 969.43 | I91: 1055.83 | J91: 1071.92 | K91: 1099.03 | L91: 1044.8 | M91: 1001.6 | N91: 7143400 | O91: -1.02%
A92: 82 | B92: Automobile | C92: M&M | D92: 608.85 | E92: 612.52 | F92: 600.38 | G92: 591.92 | H92: 579.78 | I92: 620.98 | J92: 633.12 | K92: 641.58 | L92: 624.65 | M92: 604.05 | N92: 14841400 | O92: 2.95%
A93: 83 | B93: Finance | C93: M&MFIN | D93: 125.90 | E93: 125.78 | F93: 124.57 | G93: 123.23 | H93: 122.02 | I93: 127.12 | J93: 128.33 | K93: 129.67 | L93: 127 | M93: 124.45 | N93: 15539328 | O93: -2.44%
A94: 84 | B94: Finance | C94: MANAPPURAM | D94: 163.30 | E94: 162.47 | F94: 159.93 | G94: 156.57 | H94: 154.03 | I94: 165.83 | J94: 168.37 | K94: 171.73 | L94: 165 | M94: 159.1 | N94: 17136000 | O94: 0.42%
A95: 85 | B95: FMCG | C95: MARICO | D95: 363.75 | E95: 363.00 | F95: 360.55 | G95: 357.35 | H95: 354.90 | I95: 366.20 | J95: 368.65 | K95: 371.85 | L95: 365.45 | M95: 359.8 | N95: 10220000 | O95: 2.73%
A96: 86 | B96: Automobile | C96: MARUTI | D96: 6920.15 | E96: 6930.20 | F96: 6862.45 | G96: 6804.75 | H96: 6737.00 | I96: 6987.90 | J96: 7055.65 | K96: 7113.35 | L96: 6997.95 | M96: 6872.5 | N96: 2468900 | O96: 0.19%
A97: 87 | B97: FMCG | C97: MCDOWELL-N | D97: 511.85 | E97: 509.68 | F97: 504.97 | G97: 498.08 | H97: 493.37 | I97: 516.57 | J97: 521.28 | K97: 528.17 | L97: 514.4 | M97: 502.8 | N97: 13685000 | O97: -0.64%
A98: 88 | B98: Finance | C98: MFSL | D98: 580.75 | E98: 583.98 | F98: 574.77 | G98: 568.78 | H98: 559.57 | I98: 589.97 | J98: 599.18 | K98: 605.17 | L98: 593.2 | M98: 578 | N98: 2288000 | O98: 4.02%
A99: 89 | B99: Oil_Gas | C99: MGL | D99: 822.25 | E99: 819.17 | F99: 803.48 | G99: 784.72 | H99: 769.03 | I99: 837.93 | J99: 853.62 | K99: 872.38 | L99: 834.85 | M99: 800.4 | N99: 1768800 | O99: -1.63%
A100: 90 | B100: Technology | C100: MINDTREE | D100: 1331.65 | E100: 1345.90 | F100: 1245.80 | G100: 1159.95 | H100: 1059.85 | I100: 1431.75 | J100: 1531.85 | K100: 1617.70 | L100: 1446 | M100: 1260.05 | N100: 1312800 | O100: -12.76%
A101: 91 | B101: Automobile | C101: MOTHERSUMI | D101: 106.60 | E101: 106.62 | F101: 105.33 | G101: 104.07 | H101: 102.78 | I101: 107.88 | J101: 109.17 | K101: 110.43 | L101: 107.9 | M101: 105.35 | N101: 25361000 | O101: -0.11%
A102: 92 | B102: Automobile | C102: MRF | D102: 58159.20 | E102: 58388.08 | F102: 57776.17 | G102: 57393.13 | H102: 56781.22 | I102: 58771.12 | J102: 59383.03 | K102: 59766.07 | L102: 59000 | M102: 58005.05 | N102: 38950 | O102: 3.29%
A103: 93 | B103: Finance | C103: MUTHOOTFIN | D103: 1185.60 | E103: 1178.42 | F103: 1148.98 | G103: 1112.37 | H103: 1082.93 | I103: 1215.03 | J103: 1244.47 | K103: 1281.08 | L103: 1207.85 | M103: 1141.8 | N103: 3799500 | O103: 4.02%
A104: 94 | B104: Metals | C104: NATIONALUM | D104: 30.70 | E104: 30.42 | F104: 29.93 | G104: 29.17 | H104: 28.68 | I104: 31.18 | J104: 31.67 | K104: 32.43 | L104: 30.9 | M104: 29.65 | N104: 51765000 | O104: 1.30%
A105: 95 | B105: Others | C105: NAUKRI | D105: 3607.30 | E105: 3605.33 | F105: 3555.27 | G105: 3503.23 | H105: 3453.17 | I105: 3657.37 | J105: 3707.43 | K105: 3759.47 | L105: 3655.4 | M105: 3553.3 | N105: 665250 | O105: -3.66%
A106: 96 | B106: FMCG | C106: NESTLEIND | D106: 15416.75 | E106: 15534.37 | F106: 15251.58 | G106: 15086.42 | H106: 14803.63 | I106: 15699.53 | J106: 15982.32 | K106: 16147.48 | L106: 15817.15 | M106: 15369.2 | N106: 428400 | O106: 1.43%
A107: 97 | B107: Metals | C107: NMDC | D107: 83.30 | E107: 82.73 | F107: 81.57 | G107: 79.83 | H107: 78.67 | I107: 84.47 | J107: 85.63 | K107: 87.37 | L107: 83.9 | M107: 81 | N107: 36890200 | O107: -3.59%
A108: 98 | B108: Power | C108: NTPC | D108: 80.55 | E108: 79.98 | F108: 79.27 | G108: 77.98 | H108: 77.27 | I108: 81.27 | J108: 81.98 | K108: 83.27 | L108: 80.7 | M108: 78.7 | N108: 60117900 | O108: -0.91%
A109: 99 | B109: Oil_Gas | C109: ONGC | D109: 67.55 | E109: 67.13 | F109: 66.52 | G109: 65.48 | H109: 64.87 | I109: 68.17 | J109: 68.78 | K109: 69.82 | L109: 67.75 | M109: 66.1 | N109: 54077100 | O109: -2.78%
A110: 100 | B110: Textile | C110: PAGEIND | D110: 20662.50 | E110: 20542.52 | F110: 20329.83 | G110: 19997.17 | H110: 19784.48 | I110: 20875.18 | J110: 21087.87 | K110: 21420.53 | L110: 20755.2 | M110: 20209.85 | N110: 92160 | O110: -2.07%
A111: 101 | B111: Pharma | C111: PEL | D111: 1293.05 | E111: 1284.43 | F111: 1273.62 | G111: 1254.18 | H111: 1243.37 | I111: 1303.87 | J111: 1314.68 | K111: 1334.12 | L111: 1295.25 | M111: 1265 | N111: 3132800 | O111: -2.95%
A112: 102 | B112: Oil_Gas | C112: PETRONET | D112: 222.90 | E112: 220.63 | F112: 217.82 | G112: 212.73 | H112: 209.92 | I112: 225.72 | J112: 228.53 | K112: 233.62 | L112: 223.45 | M112: 215.55 | N112: 12150000 | O112: -1.20%
A113: 103 | B113: Finance | C113: PFC | D113: 85.35 | E113: 85.20 | F113: 84.50 | G113: 83.65 | H113: 82.95 | I113: 86.05 | J113: 86.75 | K113: 87.60 | L113: 85.9 | M113: 84.35 | N113: 43641800 | O113: 0.10%
A114: 104 | B114: FMCG | C114: PIDILITIND | D114: 1487.10 | E114: 1486.78 | F114: 1477.57 | G114: 1468.03 | H114: 1458.82 | I114: 1496.32 | J114: 1505.53 | K114: 1515.07 | L114: 1496 | M114: 1477.25 | N114: 3426000 | O114: -0.13%
A115: 105 | B115: Banking | C115: PNB | D115: 27.70 | E115: 27.35 | F115: 26.90 | G115: 26.10 | H115: 25.65 | I115: 28.15 | J115: 28.60 | K115: 29.40 | L115: 27.8 | M115: 26.55 | N115: 73570000 | O115: -2.47%
A116: 106 | B116: Power | C116: POWERGRID | D116: 159.35 | E116: 158.57 | F116: 155.88 | G116: 152.42 | H116: 149.73 | I116: 162.03 | J116: 164.72 | K116: 168.18 | L116: 161.25 | M116: 155.1 | N116: 18848000 | O116: 0.66%
A117: 107 | B117: Media | C117: PVR | D117: 1172.00 | E117: 1168.70 | F117: 1145.35 | G117: 1118.70 | H117: 1095.35 | I117: 1195.35 | J117: 1218.70 | K117: 1245.35 | L117: 1192.05 | M117: 1142.05 | N117: 1624337 | O117: -4.04%
A118: 108 | B118: Cement | C118: RAMCOCEM | D118: 782.50 | E118: 776.03 | F118: 764.62 | G118: 746.73 | H118: 735.32 | I118: 793.92 | J118: 805.33 | K118: 823.22 | L118: 787.45 | M118: 758.15 | N118: 1605650 | O118: 1.61%
A119: 109 | B119: Banking | C119: RBLBANK | D119: 172.60 | E119: 170.78 | F119: 168.42 | G119: 164.23 | H119: 161.87 | I119: 174.97 | J119: 177.33 | K119: 181.52 | L119: 173.15 | M119: 166.6 | N119: 16234400 | O119: -4.25%
A120: 110 | B120: Power | C120: RECLTD | D120: 94.30 | E120: 94.25 | F120: 93.50 | G120: 92.70 | H120: 91.95 | I120: 95.05 | J120: 95.80 | K120: 96.60 | L120: 95 | M120: 93.45 | N120: 25440000 | O120: 4.31%
A121: 111 | B121: Oil_Gas | C121: RELIANCE | D121: 2180.20 | E121: 2196.60 | F121: 2159.20 | G121: 2138.20 | H121: 2100.80 | I121: 2217.60 | J121: 2255.00 | K121: 2276.00 | L121: 2234 | M121: 2175.6 | N121: 30909535 | O121: 1.48%
A122: 112 | B122: Metals | C122: SAIL | D122: 33.85 | E122: 33.65 | F122: 33.10 | G122: 32.35 | H122: 31.80 | I122: 34.40 | J122: 34.95 | K122: 35.70 | L122: 34.2 | M122: 32.9 | N122: 52573000 | O122: -2.64%
A123: 113 | B123: Finance | C123: SBILIFE | D123: 801.95 | E123: 804.98 | F123: 796.72 | G123: 791.48 | H123: 783.22 | I123: 810.22 | J123: 818.48 | K123: 823.72 | L123: 813.25 | M123: 799.75 | N123: 5339250 | O123: -0.21%
A124: 114 | B124: Banking | C124: SBIN | D124: 196.55 | E124: 195.28 | F124: 193.27 | G124: 189.98 | H124: 187.97 | I124: 198.57 | J124: 200.58 | K124: 203.87 | L124: 197.3 | M124: 192 | N124: 104049000 | O124: 0.50%
A125: 115 | B125: Cement | C125: SHREECEM | D125: 21216.90 | E125: 21085.65 | F125: 20821.25 | G125: 20425.60 | H125: 20161.20 | I125: 21481.30 | J125: 21745.70 | K125: 22141.35 | L125: 21350.05 | M125: 20690 | N125: 139850 | O125: 1.19%
A126: 116 | B126: Capital_Goods | C126: SIEMENS | D126: 1265.80 | E126: 1253.82 | F126: 1240.43 | G126: 1215.07 | H126: 1201.68 | I126: 1279.18 | J126: 1292.57 | K126: 1317.93 | L126: 1267.2 | M126: 1228.45 | N126: 1881000 | O126: -2.17%
A127: 117 | B127: Textile | C127: SRF | D127: 4466.65 | E127: 4459.48 | F127: 4399.22 | G127: 4331.78 | H127: 4271.52 | I127: 4526.92 | J127: 4587.18 | K127: 4654.62 | L127: 4519.75 | M127: 4392.05 | N127: 631250 | O127: 8.98%
A128: 118 | B128: Finance | C128: SRTRANSFIN | D128: 649.05 | E128: 642.63 | F128: 633.72 | G128: 618.38 | H128: 609.47 | I128: 657.97 | J128: 666.88 | K128: 682.22 | L128: 651.55 | M128: 627.3 | N128: 4116057 | O128: -0.64%
A129: 119 | B129: Pharma | C129: SUNPHARMA | D129: 488.70 | E129: 489.40 | F129: 483.00 | G129: 477.30 | H129: 470.90 | I129: 495.10 | J129: 501.50 | K129: 507.20 | L129: 495.8 | M129: 483.7 | N129: 39466000 | O129: 3.15%
A130: 120 | B130: Media | C130: SUNTV | D130: 435.90 | E130: 434.88 | F130: 430.22 | G130: 424.53 | H130: 419.87 | I130: 440.57 | J130: 445.23 | K130: 450.92 | L130: 439.55 | M130: 429.2 | N130: 4413000 | O130: -0.68%
A131: 121 | B131: Fertilisers | C131: TATACHEM | D131: 320.65 | E131: 319.27 | F131: 316.53 | G131: 312.42 | H131: 309.68 | I131: 323.38 | J131: 326.12 | K131: 330.23 | L131: 322 | M131: 315.15 | N131: 5328000 | O131: 4.51%
A132: 122 | B132: Others | C132: TATACONSUM | D132: 478.95 | E132: 480.65 | F132: 474.60 | G132: 470.25 | H132: 464.20 | I132: 485.00 | J132: 491.05 | K132: 495.40 | L132: 486.7 | M132: 476.3 | N132: 21745800 | O132: 0.25%
A133: 123 | B133: Automobile | C133: TATAMOTORS | D133: 128.15 | E133: 128.08 | F133: 126.27 | G133: 124.38 | H133: 122.57 | I133: 129.97 | J133: 131.78 | K133: 133.67 | L133: 129.9 | M133: 126.2 | N133: 80791800 | O133: 7.22%
A134: 124 | B134: Power | C134: TATAPOWER | D134: 54.45 | E134: 53.92 | F134: 53.03 | G134: 51.62 | H134: 50.73 | I134: 55.33 | J134: 56.22 | K134: 57.63 | L134: 54.8 | M134: 52.5 | N134: 73561500 | O134: 1.79%
A135: 125 | B135: Metals | C135: TATASTEEL | D135: 395.10 | E135: 389.22 | F135: 381.53 | G135: 367.97 | H135: 360.28 | I135: 402.78 | J135: 410.47 | K135: 424.03 | L135: 396.9 | M135: 375.65 | N135: 24643200 | O135: 2.42%
A136: 126 | B136: Technology | C136: TCS | D136: 2768.15 | E136: 2763.37 | F136: 2746.88 | G136: 2725.62 | H136: 2709.13 | I136: 2784.63 | J136: 2801.12 | K136: 2822.38 | L136: 2779.85 | M136: 2742.1 | N136: 7735200 | O136: -4.18%
A137: 127 | B137: Technology | C137: TECHM | D137: 824.20 | E137: 817.58 | F137: 806.07 | G137: 787.93 | H137: 776.42 | I137: 835.72 | J137: 847.23 | K137: 865.37 | L137: 829.1 | M137: 799.45 | N137: 11978400 | O137: 0.32%
A138: 128 | B138: FMCG | C138: TITAN | D138: 1227.15 | E138: 1229.02 | F138: 1214.78 | G138: 1202.42 | H138: 1188.18 | I138: 1241.38 | J138: 1255.62 | K138: 1267.98 | L138: 1243.25 | M138: 1216.65 | N138: 5510250 | O138: -0.18%
A139: 129 | B139: Pharma | C139: TORNTPHARM | D139: 2749.55 | E139: 2735.57 | F139: 2707.33 | G139: 2665.12 | H139: 2636.88 | I139: 2777.78 | J139: 2806.02 | K139: 2848.23 | L139: 2763.8 | M139: 2693.35 | N139: 965000 | O139: 6.87%
A140: 130 | B140: Power | C140: TORNTPOWER | D140: 303.65 | E140: 301.23 | F140: 297.87 | G140: 292.08 | H140: 288.72 | I140: 307.02 | J140: 310.38 | K140: 316.17 | L140: 304.6 | M140: 295.45 | N140: 2943000 | O140: -1.41%
A141: 131 | B141: Automobile | C141: TVSMOTOR | D141: 464.65 | E141: 462.95 | F141: 458.70 | G141: 452.75 | H141: 448.50 | I141: 468.90 | J141: 473.15 | K141: 479.10 | L141: 467.2 | M141: 457 | N141: 5430600 | O141: -2.73%
A142: 132 | B142: FMCG | C142: UBL | D142: 975.60 | E142: 971.87 | F142: 962.23 | G142: 948.87 | H142: 939.23 | I142: 985.23 | J142: 994.87 | K142: 1008.23 | L142: 981.5 | M142: 958.5 | N142: 1227800 | O142: 0.17%
A143: 133 | B143: Cement | C143: ULTRACEMCO | D143: 4496.80 | E143: 4463.28 | F143: 4416.57 | G143: 4336.33 | H143: 4289.62 | I143: 4543.52 | J143: 4590.23 | K143: 4670.47 | L143: 4510 | M143: 4383.05 | N143: 1926600 | O143: 0.40%
A144: 134 | B144: Fertilisers | C144: UPL | D144: 468.60 | E144: 472.78 | F144: 454.47 | G144: 440.33 | H144: 422.02 | I144: 486.92 | J144: 505.23 | K144: 519.37 | L144: 491.1 | M144: 458.65 | N144: 13509600 | O144: 54.41%
A145: 135 | B145: Metals | C145: VEDL | D145: 95.25 | E145: 96.12 | F145: 93.88 | G145: 92.52 | H145: 90.28 | I145: 97.48 | J145: 99.72 | K145: 101.08 | L145: 98.35 | M145: 94.75 | N145: 80668200 | O145: 5.74%
A146: 136 | B146: Capital_Goods | C146: VOLTAS | D146: 700.25 | E146: 695.45 | F146: 687.30 | G146: 674.35 | H146: 666.20 | I146: 708.40 | J146: 716.55 | K146: 729.50 | L146: 703.6 | M146: 682.5 | N146: 2371000 | O146: 8.61%
A147: 137 | B147: Technology | C147: WIPRO | D147: 340.70 | E147: 343.00 | F147: 337.40 | G147: 334.10 | H147: 328.50 | I147: 346.30 | J147: 351.90 | K147: 355.20 | L147: 348.6 | M147: 339.7 | N147: 31232000 | O147: -0.59%
A148: 138 | B148: Media | C148: ZEEL | D148: 176.35 | E148: 177.87 | F148: 172.53 | G148: 168.72 | H148: 163.38 | I148: 181.68 | J148: 187.02 | K148: 190.83 | L148: 183.2 | M148: 174.05 | N148: 35559000 | O148: 8.77%
A149: 139
A150: 140
A151: 141
A152: 142
A153: 143
A154: 144
A155: 145
A156: 146
A157: 147
A175: Pivot Point: This is trigger point for intra day buy/sell based on the price range of the previous day
A176: As per the tool,the trader should take BUY position just above Pivot and keep the stop loss of pivot point and the first target would be Resistance 1(R1)
A177: If R1 is crossed then R2 becomes the next target with stop loss of at R1
A178: Similarly if price goes below pivot point then the trader should sell and keep a stop loss of pivot point and the first target would be S1
A179: If S1 is crossed then S2 becomes the next target with stop loss of at S1
A181: Disclaimer:
A182: This document has been prepared by the Retail Research Desk of Asit C Mehta
A183: Investment Intermediates Ltd. and is meant for use of the recipient only
A184: and is not for circulation. This document is not to be reported or
A185: copied or made available to others. It should not be considered to be
A186: taken as an offer to sell or a solicitation to buy any security. The
A187: information contained herein is from sources believed reliable. We do
A188: not represent that it is accurate or complete and it should not be
A189: relied upon as such. We may from time to time have positions in and buy
A190: and sell securities referred to herein

Sheet Cash Intra
M5: Back to Main Page
A6: FOR INTRA DAY TRADING | K6: =Main!B10 -> 2020-10-19
A8: Sr.no | B8: Scrip | C8: CLOSE RATE | D8: Pivot Point | E8: Supports | H8: Resistances
C9: Point | E9: S1 | F9: S2 | G9: S3 | H9: R1 | I9: R2 | J9: R3 | K9: HIGH | L9: LOW | M9: Total Trade Quanity in Lakhs
A10: 1 | B10: Nifty 50 | C10: 11762.45 | D10: 11740.02 | E10: 11690.28 | F10: 11618.12 | G10: 11568.38 | H10: 11812.18 | I10: 11861.92 | J10: 11934.08 | K10: 11789.75 | L10: 11667.85
A11: 2 | B11: Nifty Bank | C11: 23533.25 | D11: 23442.80 | E11: 23239.40 | F11: 22945.55 | G11: 22742.15 | H11: 23736.65 | I11: 23940.05 | J11: 24233.90 | K11: 23646.2 | L11: 23148.95
A12: 3 | B12: Nifty CPSE | C12: 1277.25 | D12: 1271.37 | E12: 1261.73 | F12: 1246.22 | G12: 1236.58 | H12: 1286.88 | I12: 1296.52 | J12: 1312.03 | K12: 1281 | L12: 1255.85
A13: 4 | B13: Nifty Infra | C13: 3075.65 | D13: 3068.80 | E13: 3055.00 | F13: 3034.35 | G13: 3020.55 | H13: 3089.45 | I13: 3103.25 | J13: 3123.90 | K13: 3082.6 | L13: 3048.15
A14: 5 | B14: Nifty IT | C14: 21538.15 | D14: 21564.83 | E14: 21220.87 | F14: 20903.58 | G14: 20559.62 | H14: 21882.12 | I14: 22226.08 | J14: 22543.37 | K14: 21908.8 | L14: 21247.55
A15: 6 | B15: Nifty PSE | C15: 2188.8 | D15: 2177.28 | E15: 2161.62 | F15: 2134.43 | G15: 2118.77 | H15: 2204.47 | I15: 2220.13 | J15: 2247.32 | K15: 2192.95 | L15: 2150.1
A16: 7 | B16: Nifty Midcap 50 | C16: 4613.55 | D16: 4591.08 | E16: 4563.42 | F16: 4513.28 | G16: 4485.62 | H16: 4641.22 | I16: 4668.88 | J16: 4719.02 | K16: 4618.75 | L16: 4540.95
A17: 8 | B17: AARTIIND | C17: 998.75 | D17: 988.90 | E17: 976.30 | F17: 953.85 | G17: 941.25 | H17: 1011.35 | I17: 1023.95 | J17: 1046.40 | K17: 1001.5 | L17: 966.45 | M17: 1.83889
A18: 9 | B18: ABBOTINDIA | C18: 16031.45 | D18: 16038.12 | E18: 15895.43 | F18: 15759.42 | G18: 15616.73 | H18: 16174.13 | I18: 16316.82 | J18: 16452.83 | K18: 16180.8 | L18: 15902.1 | M18: 0.04671
A19: 10 | B19: ABCAPITAL | C19: 60.55 | D19: 60.63 | E19: 59.77 | F19: 58.98 | G19: 58.12 | H19: 61.42 | I19: 62.28 | J19: 63.07 | K19: 61.5 | L19: 59.85 | M19: 8.36061
A20: 11 | B20: ABFRL | C20: 137.4 | D20: 135.80 | E20: 133.60 | F20: 129.80 | G20: 127.60 | H20: 139.60 | I20: 141.80 | J20: 145.60 | K20: 138 | L20: 132 | M20: 35.74071
A21: 12 | B21: ACC | C21: 1561.15 | D21: 1546.52 | E21: 1527.03 | F21: 1492.92 | G21: 1473.43 | H21: 1580.63 | I21: 1600.12 | J21: 1634.23 | K21: 1566 | L21: 1512.4 | M21: 13.6413
A22: 13 | B22: ADANIGAS | C22: 184.65 | D22: 183.90 | E22: 181.85 | F22: 179.05 | G22: 177.00 | H22: 186.70 | I22: 188.75 | J22: 191.55 | K22: 185.95 | L22: 181.1 | M22: 6.1861
A23: 14 | B23: ADANIPORTS | C23: 349.95 | D23: 348.88 | E23: 343.02 | F23: 336.08 | G23: 330.22 | H23: 355.82 | I23: 361.68 | J23: 368.62 | K23: 354.75 | L23: 341.95 | M23: 26.35081
A24: 15 | B24: ADANIPOWER | C24: 36 | D24: 36.08 | E24: 35.82 | F24: 35.63 | G24: 35.37 | H24: 36.27 | I24: 36.53 | J24: 36.72 | K24: 36.35 | L24: 35.9 | M24: 4.40489
A25: 16 | B25: ADANITRANS | C25: 290.35 | D25: 289.63 | E25: 286.57 | F25: 282.78 | G25: 279.72 | H25: 293.42 | I25: 296.48 | J25: 300.27 | K25: 292.7 | L25: 285.85 | M25: 2.13792
A26: 17 | B26: AJANTPHARM | C26: 1541.05 | D26: 1542.87 | E26: 1524.28 | F26: 1507.52 | G26: 1488.93 | H26: 1559.63 | I26: 1578.22 | J26: 1594.98 | K26: 1561.45 | L26: 1526.1 | M26: 0.6906
A27: 18 | B27: ALKEM | C27: 2650.55 | D27: 2654.40 | E27: 2626.15 | F27: 2601.75 | G27: 2573.50 | H27: 2678.80 | I27: 2707.05 | J27: 2731.45 | K27: 2682.65 | L27: 2630 | M27: 0.62747
A28: 19 | B28: AMARAJABAT | C28: 722.7 | D28: 720.45 | E28: 712.40 | F28: 702.10 | G28: 694.05 | H28: 730.75 | I28: 738.80 | J28: 749.10 | K28: 728.5 | L28: 710.15 | M28: 10.04393
A29: 20 | B29: AMBUJACEM | C29: 248 | D29: 245.72 | E29: 242.43 | F29: 236.87 | G29: 233.58 | H29: 251.28 | I29: 254.57 | J29: 260.13 | K29: 249 | L29: 240.15 | M29: 125.91434
A30: 21 | B30: APOLLOHOSP | C30: 2210.55 | D30: 2201.52 | E30: 2184.03 | F30: 2157.52 | G30: 2140.03 | H30: 2228.03 | I30: 2245.52 | J30: 2272.03 | K30: 2219 | L30: 2175 | M30: 10.3611
A31: 22 | B31: APOLLOTYRE | C31: 128.2 | D31: 126.95 | E31: 125.35 | F31: 122.50 | G31: 120.90 | H31: 129.80 | I31: 131.40 | J31: 134.25 | K31: 128.55 | L31: 124.1 | M31: 33.70308
A32: 23 | B32: ASHOKLEY | C32: 75 | D32: 74.60 | E32: 73.55 | F32: 72.10 | G32: 71.05 | H32: 76.05 | I32: 77.10 | J32: 78.55 | K32: 75.65 | L32: 73.15 | M32: 469.71075
A33: 24 | B33: ASIANPAINT | C33: 2061.2 | D33: 2068.92 | E33: 2047.83 | F33: 2034.47 | G33: 2013.38 | H33: 2082.28 | I33: 2103.37 | J33: 2116.73 | K33: 2090 | L33: 2055.55 | M33: 20.17718
A34: 25 | B34: AUBANK | C34: 731.8 | D34: 730.53 | E34: 722.32 | F34: 712.83 | G34: 704.62 | H34: 740.02 | I34: 748.23 | J34: 757.72 | K34: 738.75 | L34: 721.05 | M34: 1.9459
A35: 26 | B35: AUROPHARMA | C35: 806.25 | D35: 802.42 | E35: 789.33 | F35: 772.42 | G35: 759.33 | H35: 819.33 | I35: 832.42 | J35: 849.33 | K35: 815.5 | L35: 785.5 | M35: 26.08735
A36: 27 | B36: AXISBANK | C36: 472.4 | D36: 470.30 | E36: 465.10 | F36: 457.80 | G36: 452.60 | H36: 477.60 | I36: 482.80 | J36: 490.10 | K36: 475.5 | L36: 463 | M36: 162.88158
A37: 28 | B37: BAJAJ-AUTO | C37: 3044.75 | D37: 3055.25 | E37: 3018.50 | F37: 2992.25 | G37: 2955.50 | H37: 3081.50 | I37: 3118.25 | J37: 3144.50 | K37: 3092 | L37: 3029 | M37: 5.48793
A38: 29 | B38: BAJAJFINSV | C38: 5952.3 | D38: 5932.77 | E38: 5885.53 | F38: 5818.77 | G38: 5771.53 | H38: 5999.53 | I38: 6046.77 | J38: 6113.53 | K38: 5980 | L38: 5866 | M38: 4.76247
A39: 30 | B39: BAJAJHLDNG | C39: 2354.05 | D39: 2365.58 | E39: 2333.47 | F39: 2312.88 | G39: 2280.77 | H39: 2386.17 | I39: 2418.28 | J39: 2438.87 | K39: 2397.7 | L39: 2345 | M39: 0.70672
A40: 31 | B40: BAJFINANCE | C40: 3231.35 | D40: 3223.63 | E40: 3177.82 | F40: 3124.28 | G40: 3078.47 | H40: 3277.17 | I40: 3322.98 | J40: 3376.52 | K40: 3269.45 | L40: 3170.1 | M40: 50.76251
A41: 32 | B41: BALKRISIND | C41: 1381.9 | D41: 1372.00 | E41: 1355.00 | F41: 1328.10 | G41: 1311.10 | H41: 1398.90 | I41: 1415.90 | J41: 1442.80 | K41: 1389 | L41: 1345.1 | M41: 6.31842
A42: 33 | B42: BANDHANBNK | C42: 313 | D42: 310.33 | E42: 306.67 | F42: 300.33 | G42: 296.67 | H42: 316.67 | I42: 320.33 | J42: 326.67 | K42: 314 | L42: 304 | M42: 84.94372
A43: 34 | B43: BANKBARODA | C43: 40.3 | D43: 40.43 | E43: 39.77 | F43: 39.23 | G43: 38.57 | H43: 40.97 | I43: 41.63 | J43: 42.17 | K43: 41.1 | L43: 39.9 | M43: 183.06969
A44: 35 | B44: BANKINDIA | C44: 39.4 | D44: 39.62 | E44: 38.98 | F44: 38.57 | G44: 37.93 | H44: 40.03 | I44: 40.67 | J44: 41.08 | K44: 40.25 | L44: 39.2 | M44: 20.71928
A45: 36 | B45: BATAINDIA | C45: 1372.45 | D45: 1367.58 | E45: 1355.17 | F45: 1337.88 | G45: 1325.47 | H45: 1384.87 | I45: 1397.28 | J45: 1414.57 | K45: 1380 | L45: 1350.3 | M45: 4.90799
A46: 37 | B46: BBTC | C46: 1227.1 | D46: 1233.88 | E46: 1208.77 | F46: 1190.43 | G46: 1165.32 | H46: 1252.22 | I46: 1277.33 | J46: 1295.67 | K46: 1259 | L46: 1215.55 | M46: 0.57029
A47: 38 | B47: BEL | C47: 91 | D47: 90.02 | E47: 88.68 | F47: 86.37 | G47: 85.03 | H47: 92.33 | I47: 93.67 | J47: 95.98 | K47: 91.35 | L47: 87.7 | M47: 72.66931
A48: 39 | B48: BERGEPAINT | C48: 603.4 | D48: 602.42 | E48: 596.43 | F48: 589.47 | G48: 583.48 | H48: 609.38 | I48: 615.37 | J48: 622.33 | K48: 608.4 | L48: 595.45 | M48: 9.07341
A49: 40 | B49: BHARATFORG | C49: 452.5 | D49: 452.45 | E49: 446.15 | F49: 439.80 | G49: 433.50 | H49: 458.80 | I49: 465.10 | J49: 471.45 | K49: 458.75 | L49: 446.1 | M49: 19.25351
A50: 41 | B50: BHARTIARTL | C50: 401.65 | D50: 402.43 | E50: 397.57 | F50: 393.48 | G50: 388.62 | H50: 406.52 | I50: 411.38 | J50: 415.47 | K50: 407.3 | L50: 398.35 | M50: 233.47957
A51: 42 | B51: BHEL | C51: 27.2 | D51: 27.13 | E51: 26.82 | F51: 26.43 | G51: 26.12 | H51: 27.52 | I51: 27.83 | J51: 28.22 | K51: 27.45 | L51: 26.75 | M51: 158.1297
A52: 43 | B52: BIOCON | C52: 447.9 | D52: 443.82 | E52: 438.13 | F52: 428.37 | G52: 422.68 | H52: 453.58 | I52: 459.27 | J52: 469.03 | K52: 449.5 | L52: 434.05 | M52: 45.02795
A53: 44 | B53: BOSCHLTD | C53: 11959.1 | D53: 11931.42 | E53: 11787.73 | F53: 11616.37 | G53: 11472.68 | H53: 12102.78 | I53: 12246.47 | J53: 12417.83 | K53: 12075.1 | L53: 11760.05 | M53: 0.3859
A54: 45 | B54: BPCL | C54: 339.95 | D54: 336.95 | E54: 330.50 | F54: 321.05 | G54: 314.60 | H54: 346.40 | I54: 352.85 | J54: 362.30 | K54: 343.4 | L54: 327.5 | M54: 134.53185
A55: 46 | B55: BRITANNIA | C55: 3747.2 | D55: 3749.15 | E55: 3719.30 | F55: 3691.40 | G55: 3661.55 | H55: 3777.05 | I55: 3806.90 | J55: 3834.80 | K55: 3779 | L55: 3721.25 | M55: 2.63967
A56: 47 | B56: CADILAHC | C56: 430.4 | D56: 424.63 | E56: 417.07 | F56: 403.73 | G56: 396.17 | H56: 437.97 | I56: 445.53 | J56: 458.87 | K56: 432.2 | L56: 411.3 | M56: 69.73034
A57: 48 | B57: CANBK | C57: 87.85 | D57: 87.87 | E57: 87.03 | F57: 86.22 | G57: 85.38 | H57: 88.68 | I57: 89.52 | J57: 90.33 | K57: 88.7 | L57: 87.05 | M57: 33.38675
A58: 49 | B58: CASTROLIND | C58: 107.05 | D58: 106.35 | E58: 105.45 | F58: 103.85 | G58: 102.95 | H58: 107.95 | I58: 108.85 | J58: 110.45 | K58: 107.25 | L58: 104.75 | M58: 6.17259
A59: 50 | B59: CESC | C59: 577.25 | D59: 576.08 | E59: 570.17 | F59: 563.08 | G59: 557.17 | H59: 583.17 | I59: 589.08 | J59: 596.17 | K59: 582 | L59: 569 | M59: 0.74222
A60: 51 | B60: CHOLAFIN | C60: 237.25 | D60: 237.05 | E60: 233.20 | F60: 229.15 | G60: 225.30 | H60: 241.10 | I60: 244.95 | J60: 249.00 | K60: 240.9 | L60: 233 | M60: 53.19385
A61: 52 | B61: CIPLA | C61: 782.35 | D61: 776.08 | E61: 764.67 | F61: 746.98 | G61: 735.57 | H61: 793.77 | I61: 805.18 | J61: 822.87 | K61: 787.5 | L61: 758.4 | M61: 90.99048
A62: 53 | B62: COALINDIA | C62: 111.35 | D62: 111.23 | E62: 109.72 | F62: 108.08 | G62: 106.57 | H62: 112.87 | I62: 114.38 | J62: 116.02 | K62: 112.75 | L62: 109.6 | M62: 122.3107
A63: 54 | B63: COFORGE | C63: 2577.2 | D63: 2547.48 | E63: 2496.97 | F63: 2416.73 | G63: 2366.22 | H63: 2627.72 | I63: 2678.23 | J63: 2758.47 | K63: 2598 | L63: 2467.25 | M63: 10.66656
A64: 55 | B64: COLPAL | C64: 1439.3 | D64: 1435.85 | E64: 1424.55 | F64: 1409.80 | G64: 1398.50 | H64: 1450.60 | I64: 1461.90 | J64: 1476.65 | K64: 1447.15 | L64: 1421.1 | M64: 3.85128
A65: 56 | B65: CONCOR | C65: 370.85 | D65: 367.75 | E65: 363.60 | F65: 356.35 | G65: 352.20 | H65: 375.00 | I65: 379.15 | J65: 386.40 | K65: 371.9 | L65: 360.5 | M65: 17.11124
A66: 57 | B66: COROMANDEL | C66: 704.4 | D66: 707.52 | E66: 697.93 | F66: 691.47 | G66: 681.88 | H66: 713.98 | I66: 723.57 | J66: 730.03 | K66: 717.1 | L66: 701.05 | M66: 2.64856
A67: 58 | B67: CROMPTON | C67: 281.05 | D67: 280.70 | E67: 278.40 | F67: 275.75 | G67: 273.45 | H67: 283.35 | I67: 285.65 | J67: 288.30 | K67: 283 | L67: 278.05 | M67: 3.65515
A68: 59 | B68: CUB | C68: 143.65 | D68: 142.70 | E68: 141.00 | F68: 138.35 | G68: 136.65 | H68: 145.35 | I68: 147.05 | J68: 149.70 | K68: 144.4 | L68: 140.05 | M68: 9.64154
A69: 60 | B69: CUMMINSIND | C69: 462 | D69: 456.40 | E69: 449.15 | F69: 436.30 | G69: 429.05 | H69: 469.25 | I69: 476.50 | J69: 489.35 | K69: 463.65 | L69: 443.55 | M69: 11.01187
A70: 61 | B70: DABUR | C70: 511.7 | D70: 515.62 | E70: 506.88 | F70: 502.07 | G70: 493.33 | H70: 520.43 | I70: 529.17 | J70: 533.98 | K70: 524.35 | L70: 510.8 | M70: 25.31777
A71: 62 | B71: DALBHARAT | C71: 789.6 | D71: 784.53 | E71: 775.07 | F71: 760.53 | G71: 751.07 | H71: 799.07 | I71: 808.53 | J71: 823.07 | K71: 794 | L71: 770 | M71: 6.19784
A72: 63 | B72: DIVISLAB | C72: 3222.7 | D72: 3190.17 | E72: 3147.43 | F72: 3072.17 | G72: 3029.43 | H72: 3265.43 | I72: 3308.17 | J72: 3383.43 | K72: 3232.9 | L72: 3114.9 | M72: 16.645
A73: 64 | B73: DLF | C73: 162.55 | D73: 160.18 | E73: 156.12 | F73: 149.68 | G73: 145.62 | H73: 166.62 | I73: 170.68 | J73: 177.12 | K73: 164.25 | L73: 153.75 | M73: 123.49164
A74: 65 | B74: DMART | C74: 1984.2 | D74: 1984.40 | E74: 1969.80 | F74: 1955.40 | G74: 1940.80 | H74: 1998.80 | I74: 2013.40 | J74: 2027.80 | K74: 1999 | L74: 1970 | M74: 6.14032
A75: 66 | B75: DRREDDY | C75: 5080.55 | D75: 5075.18 | E75: 5025.37 | F75: 4970.18 | G75: 4920.37 | H75: 5130.37 | I75: 5180.18 | J75: 5235.37 | K75: 5125 | L75: 5020 | M75: 20.23115
A76: 67 | B76: EDELWEISS | C76: 57 | D76: 57.13 | E76: 56.27 | F76: 55.53 | G76: 54.67 | H76: 57.87 | I76: 58.73 | J76: 59.47 | K76: 58 | L76: 56.4 | M76: 2.97854
A77: 68 | B77: EICHERMOT | C77: 2269.9 | D77: 2266.30 | E77: 2247.60 | F77: 2225.30 | G77: 2206.60 | H77: 2288.60 | I77: 2307.30 | J77: 2329.60 | K77: 2285 | L77: 2244 | M77: 8.16001
A78: 69 | B78: EMAMILTD | C78: 347.45 | D78: 345.90 | E78: 341.80 | F78: 336.15 | G78: 332.05 | H78: 351.55 | I78: 355.65 | J78: 361.30 | K78: 350 | L78: 340.25 | M78: 1.0401
A79: 70 | B79: ENDURANCE | C79: 1084.75 | D79: 1091.27 | E79: 1073.58 | F79: 1062.42 | G79: 1044.73 | H79: 1102.43 | I79: 1120.12 | J79: 1131.28 | K79: 1108.95 | L79: 1080.1 | M79: 0.19744
A80: 71 | B80: ESCORTS | C80: 1167.6 | D80: 1183.78 | E80: 1140.02 | F80: 1112.43 | G80: 1068.67 | H80: 1211.37 | I80: 1255.13 | J80: 1282.72 | K80: 1227.55 | L80: 1156.2 | M80: 13.9092
A81: 72 | B81: EXIDEIND | C81: 159.8 | D81: 158.83 | E81: 157.47 | F81: 155.13 | G81: 153.77 | H81: 161.17 | I81: 162.53 | J81: 164.87 | K81: 160.2 | L81: 156.5 | M81: 13.74951
A82: 73 | B82: FEDERALBNK | C82: 52.2 | D82: 52.37 | E82: 51.23 | F82: 50.27 | G82: 49.13 | H82: 53.33 | I82: 54.47 | J82: 55.43 | K82: 53.5 | L82: 51.4 | M82: 441.8883
A83: 74 | B83: FORTIS | C83: 127.05 | D83: 127.02 | E83: 125.53 | F83: 124.02 | G83: 122.53 | H83: 128.53 | I83: 130.02 | J83: 131.53 | K83: 128.5 | L83: 125.5 | M83: 14.96402
A84: 75 | B84: FRETAIL | C84: 73.65 | D84: 74.27 | E84: 72.88 | F84: 72.12 | G84: 70.73 | H84: 75.03 | I84: 76.42 | J84: 77.18 | K84: 75.65 | L84: 73.5 | M84: 14.28702
A85: 76 | B85: GAIL | C85: 84 | D85: 83.53 | E85: 82.87 | F85: 81.73 | G85: 81.07 | H85: 84.67 | I85: 85.33 | J85: 86.47 | K85: 84.2 | L85: 82.4 | M85: 110.36039
A86: 77 | B86: GICRE | C86: 119.1 | D86: 119.60 | E86: 118.00 | F86: 116.90 | G86: 115.30 | H86: 120.70 | I86: 122.30 | J86: 123.40 | K86: 121.2 | L86: 118.5 | M86: 0.65108
A87: 78 | B87: GLENMARK | C87: 490.9 | D87: 486.78 | E87: 473.12 | F87: 455.33 | G87: 441.67 | H87: 504.57 | I87: 518.23 | J87: 536.02 | K87: 500.45 | L87: 469 | M87: 51.10313
A88: 79 | B88: GMRINFRA | C88: 23.75 | D88: 23.58 | E88: 23.27 | F88: 22.78 | G88: 22.47 | H88: 24.07 | I88: 24.38 | J88: 24.87 | K88: 23.9 | L88: 23.1 | M88: 52.72707
A89: 80 | B89: GODREJAGRO | C89: 526.05 | D89: 523.95 | E89: 516.95 | F89: 507.85 | G89: 500.85 | H89: 533.05 | I89: 540.05 | J89: 549.15 | K89: 530.95 | L89: 514.85 | M89: 0.57833
A90: 81 | B90: GODREJCP | C90: 677.85 | D90: 680.33 | E90: 672.52 | F90: 667.18 | G90: 659.37 | H90: 685.67 | I90: 693.48 | J90: 698.82 | K90: 688.15 | L90: 675 | M90: 12.92241
A91: 82 | B91: GODREJIND | C91: 376.2 | D91: 378.98 | E91: 370.97 | F91: 365.73 | G91: 357.72 | H91: 384.22 | I91: 392.23 | J91: 397.47 | K91: 387 | L91: 373.75 | M91: 0.75462
A92: 83 | B92: GODREJPROP | C92: 865.25 | D92: 857.32 | E92: 843.48 | F92: 821.72 | G92: 807.88 | H92: 879.08 | I92: 892.92 | J92: 914.68 | K92: 871.15 | L92: 835.55 | M92: 7.85888
A93: 84 | B93: GRASIM | C93: 772.7 | D93: 766.45 | E93: 756.25 | F93: 739.80 | G93: 729.60 | H93: 782.90 | I93: 793.10 | J93: 809.55 | K93: 776.65 | L93: 750 | M93: 17.65026
A94: 85 | B94: GSPL | C94: 187.35 | D94: 185.95 | E94: 182.95 | F94: 178.55 | G94: 175.55 | H94: 190.35 | I94: 193.35 | J94: 197.75 | K94: 188.95 | L94: 181.55 | M94: 5.77431
A95: 86 | B95: GUJGASLTD | C95: 291.8 | D95: 294.15 | E95: 288.50 | F95: 285.20 | G95: 279.55 | H95: 297.45 | I95: 303.10 | J95: 306.40 | K95: 299.8 | L95: 290.85 | M95: 1.82683
A96: 87 | B96: HAVELLS | C96: 697.5 | D96: 693.40 | E96: 685.80 | F96: 674.10 | G96: 666.50 | H96: 705.10 | I96: 712.70 | J96: 724.40 | K96: 701 | L96: 681.7 | M96: 14.66874
A97: 88 | B97: HCLTECH | C97: 827.15 | D97: 841.58 | E97: 806.17 | F97: 785.18 | G97: 749.77 | H97: 862.57 | I97: 897.98 | J97: 918.97 | K97: 877 | L97: 820.6 | M97: 289.83265
A98: 89 | B98: HDFC | C98: 1961.7 | D98: 1961.58 | E98: 1939.47 | F98: 1917.23 | G98: 1895.12 | H98: 1983.82 | I98: 2005.93 | J98: 2028.17 | K98: 1983.7 | L98: 1939.35 | M98: 32.38617
A99: 90 | B99: HDFCAMC | C99: 2284.4 | D99: 2281.65 | E99: 2263.40 | F99: 2242.40 | G99: 2224.15 | H99: 2302.65 | I99: 2320.90 | J99: 2341.90 | K99: 2299.9 | L99: 2260.65 | M99: 1.16422
A100: 91 | B100: HDFCBANK | C100: 1199.35 | D100: 1191.95 | E100: 1180.40 | F100: 1161.45 | G100: 1149.90 | H100: 1210.90 | I100: 1222.45 | J100: 1241.40 | K100: 1203.5 | L100: 1173 | M100: 129.11559
A101: 92 | B101: HDFCLIFE | C101: 561.15 | D101: 562.30 | E101: 558.35 | F101: 555.55 | G101: 551.60 | H101: 565.10 | I101: 569.05 | J101: 571.85 | K101: 566.25 | L101: 559.5 | M101: 21.17294
A102: 93 | B102: HEROMOTOCO | C102: 3346.45 | D102: 3347.45 | E102: 3300.00 | F102: 3253.55 | G102: 3206.10 | H102: 3393.90 | I102: 3441.35 | J102: 3487.80 | K102: 3394.9 | L102: 3301 | M102: 14.61911
A103: 94 | B103: HEXAWARE | C103: 467.3 | D103: 467.25 | E103: 466.70 | F103: 466.10 | G103: 465.55 | H103: 467.85 | I103: 468.40 | J103: 469.00 | K103: 467.8 | L103: 466.65 | M103: 1.02949
A104: 95 | B104: HINDALCO | C104: 179.8 | D104: 177.57 | E104: 174.58 | F104: 169.37 | G104: 166.38 | H104: 182.78 | I104: 185.77 | J104: 190.98 | K104: 180.55 | L104: 172.35 | M104: 155.46424
A105: 96 | B105: HINDPETRO | C105: 169.3 | D105: 167.52 | E105: 165.18 | F105: 161.07 | G105: 158.73 | H105: 171.63 | I105: 173.97 | J105: 178.08 | K105: 169.85 | L105: 163.4 | M105: 67.08837
A106: 97 | B106: HINDUNILVR | C106: 2150.55 | D106: 2155.50 | E106: 2139.10 | F106: 2127.65 | G106: 2111.25 | H106: 2166.95 | I106: 2183.35 | J106: 2194.80 | K106: 2171.9 | L106: 2144.05 | M106: 16.40402
A107: 98 | B107: HINDZINC | C107: 211.75 | D107: 212.40 | E107: 208.80 | F107: 205.85 | G107: 202.25 | H107: 215.35 | I107: 218.95 | J107: 221.90 | K107: 216 | L107: 209.45 | M107: 13.97663
A108: 99 | B108: HUDCO | C108: 31.2 | D108: 31.32 | E108: 30.98 | F108: 30.77 | G108: 30.43 | H108: 31.53 | I108: 31.87 | J108: 32.08 | K108: 31.65 | L108: 31.1 | M108: 5.29764
A109: 100 | B109: IBULHSGFIN | C109: 151.15 | D109: 151.38 | E109: 149.07 | F109: 146.98 | G109: 144.67 | H109: 153.47 | I109: 155.78 | J109: 157.87 | K109: 153.7 | L109: 149.3 | M109: 83.94665
A110: 101 | B110: IBVENTURES | C110: 230.5 | D110: 227.53 | E110: 219.07 | F110: 207.63 | G110: 199.17 | H110: 238.97 | I110: 247.43 | J110: 258.87 | K110: 236 | L110: 216.1 | M110: 9.97719
A111: 102 | B111: ICICIBANK | C111: 396.1 | D111: 395.97 | E111: 390.63 | F111: 385.17 | G111: 379.83 | H111: 401.43 | I111: 406.77 | J111: 412.23 | K111: 401.3 | L111: 390.5 | M111: 253.39477
A112: 103 | B112: ICICIGI | C112: 1238.95 | D112: 1241.00 | E112: 1226.00 | F112: 1213.05 | G112: 1198.05 | H112: 1253.95 | I112: 1268.95 | J112: 1281.90 | K112: 1256 | L112: 1228.05 | M112: 2.09565
A113: 104 | B113: ICICIPRULI | C113: 414.75 | D113: 417.00 | E113: 410.00 | F113: 405.25 | G113: 398.25 | H113: 421.75 | I113: 428.75 | J113: 433.50 | K113: 424 | L113: 412.25 | M113: 8.75597
A114: 105 | B114: IDBI | C114: 38.9 | D114: 38.05 | E114: 36.40 | F114: 33.90 | G114: 32.25 | H114: 40.55 | I114: 42.20 | J114: 44.70 | K114: 39.7 | L114: 35.55 | M114: 120.31061
A115: 106 | B115: IDEA | C115: 8.05 | D115: 8.10 | E115: 7.90 | F115: 7.75 | G115: 7.55 | H115: 8.25 | I115: 8.45 | J115: 8.60 | K115: 8.3 | L115: 7.95 | M115: 1227.16781
A116: 107 | B116: IDFCFIRSTB | C116: 30.7 | D116: 30.48 | E116: 30.12 | F116: 29.53 | G116: 29.17 | H116: 31.07 | I116: 31.43 | J116: 32.02 | K116: 30.85 | L116: 29.9 | M116: 236.81817
A117: 108 | B117: IGL | C117: 376.95 | D117: 377.47 | E117: 371.13 | F117: 365.32 | G117: 358.98 | H117: 383.28 | I117: 389.62 | J117: 395.43 | K117: 383.8 | L117: 371.65 | M117: 24.36556
A118: 109 | B118: INDHOTEL | C118: 97.15 | D118: 96.35 | E118: 94.20 | F118: 91.25 | G118: 89.10 | H118: 99.30 | I118: 101.45 | J118: 104.40 | K118: 98.5 | L118: 93.4 | M118: 13.90411
A119: 110 | B119: INDIGO | C119: 1329.65 | D119: 1326.22 | E119: 1312.43 | F119: 1295.22 | G119: 1281.43 | H119: 1343.43 | I119: 1357.22 | J119: 1374.43 | K119: 1340 | L119: 1309 | M119: 7.98744
A120: 111 | B120: INDUSINDBK | C120: 608.3 | D120: 607.87 | E120: 601.83 | F120: 595.37 | G120: 589.33 | H120: 614.33 | I120: 620.37 | J120: 626.83 | K120: 613.9 | L120: 601.4 | M120: 115.70365
A121: 112 | B121: INFRATEL | C121: 182.55 | D121: 181.73 | E121: 179.02 | F121: 175.48 | G121: 172.77 | H121: 185.27 | I121: 187.98 | J121: 191.52 | K121: 184.45 | L121: 178.2 | M121: 54.03871
A122: 113 | B122: INFY | C122: 1127.5 | D122: 1120.12 | E122: 1104.28 | F122: 1081.07 | G122: 1065.23 | H122: 1143.33 | I122: 1159.17 | J122: 1182.38 | K122: 1135.95 | L122: 1096.9 | M122: 183.66133
A123: 114 | B123: IOC | C123: 74.2 | D123: 74.42 | E123: 73.63 | F123: 73.07 | G123: 72.28 | H123: 74.98 | I123: 75.77 | J123: 76.33 | K123: 75.2 | L123: 73.85 | M123: 232.27741
A124: 115 | B124: IPCALAB | C124: 2111.25 | D124: 2105.30 | E124: 2076.95 | F124: 2042.65 | G124: 2014.30 | H124: 2139.60 | I124: 2167.95 | J124: 2202.25 | K124: 2133.65 | L124: 2071 | M124: 1.39109
A125: 116 | B125: IRCTC | C125: 1328.1 | D125: 1331.03 | E125: 1322.07 | F125: 1316.03 | G125: 1307.07 | H125: 1337.07 | I125: 1346.03 | J125: 1352.07 | K125: 1340 | L125: 1325 | M125: 1.41609
A126: 117 | B126: ITC | C126: 165.7 | D126: 165.43 | E126: 164.07 | F126: 162.43 | G126: 161.07 | H126: 167.07 | I126: 168.43 | J126: 170.07 | K126: 166.8 | L126: 163.8 | M126: 202.27113
A127: 118 | B127: JINDALSTEL | C127: 193.7 | D127: 189.17 | E127: 183.53 | F127: 173.37 | G127: 167.73 | H127: 199.33 | I127: 204.97 | J127: 215.13 | K127: 194.8 | L127: 179 | M127: 108.70513
A128: 119 | B128: JSWENERGY | C128: 63.8 | D128: 63.18 | E128: 61.97 | F128: 60.13 | G128: 58.92 | H128: 65.02 | I128: 66.23 | J128: 68.07 | K128: 64.4 | L128: 61.35 | M128: 16.6276
A129: 120 | B129: JSWSTEEL | C129: 311.05 | D129: 304.75 | E129: 297.05 | F129: 283.05 | G129: 275.35 | H129: 318.75 | I129: 326.45 | J129: 340.45 | K129: 312.45 | L129: 290.75 | M129: 198.77383
A130: 121 | B130: JUBILANT | C130: 690.85 | D130: 691.08 | E130: 682.32 | F130: 673.78 | G130: 665.02 | H130: 699.62 | I130: 708.38 | J130: 716.92 | K130: 699.85 | L130: 682.55 | M130: 1.66459
A131: 122 | B131: JUBLFOOD | C131: 2318.75 | D131: 2303.58 | E131: 2282.17 | F131: 2245.58 | G131: 2224.17 | H131: 2340.17 | I131: 2361.58 | J131: 2398.17 | K131: 2325 | L131: 2267 | M131: 4.95379
A132: 123 | B132: KOTAKBANK | C132: 1336.55 | D132: 1329.45 | E132: 1315.60 | F132: 1294.65 | G132: 1280.80 | H132: 1350.40 | I132: 1364.25 | J132: 1385.20 | K132: 1343.3 | L132: 1308.5 | M132: 23.58054
A133: 124 | B133: L&TFH | C133: 61.15 | D133: 61.05 | E133: 60.60 | F133: 60.05 | G133: 59.60 | H133: 61.60 | I133: 62.05 | J133: 62.60 | K133: 61.5 | L133: 60.5 | M133: 57.09099
A134: 125 | B134: LALPATHLAB | C134: 2066.45 | D134: 2053.83 | E134: 2024.67 | F134: 1982.88 | G134: 1953.72 | H134: 2095.62 | I134: 2124.78 | J134: 2166.57 | K134: 2083 | L134: 2012.05 | M134: 1.91169
A135: 126 | B135: LICHSGFIN | C135: 285.45 | D135: 283.83 | E135: 281.32 | F135: 277.18 | G135: 274.67 | H135: 287.97 | I135: 290.48 | J135: 294.62 | K135: 286.35 | L135: 279.7 | M135: 41.83309
A136: 127 | B136: LT | C136: 894.1 | D136: 895.70 | E136: 887.90 | F136: 881.70 | G136: 873.90 | H136: 901.90 | I136: 909.70 | J136: 915.90 | K136: 903.5 | L136: 889.5 | M136: 23.73465
A137: 128 | B137: LTI | C137: 3075.15 | D137: 3154.92 | E137: 2945.33 | F137: 2815.52 | G137: 2605.93 | H137: 3284.73 | I137: 3494.32 | J137: 3624.13 | K137: 3364.5 | L137: 3025.1 | M137: 7.96043
A138: 129 | B138: LTTS | C138: 1727.95 | D138: 1732.83 | E138: 1700.72 | F138: 1673.48 | G138: 1641.37 | H138: 1760.07 | I138: 1792.18 | J138: 1819.42 | K138: 1764.95 | L138: 1705.6 | M138: 2.05114
A139: 130 | B139: LUPIN | C139: 1040.4 | D139: 1028.10 | E139: 1010.30 | F139: 980.20 | G139: 962.40 | H139: 1058.20 | I139: 1076.00 | J139: 1106.10 | K139: 1045.9 | L139: 998 | M139: 44.37149
A140: 131 | B140: M&M | C140: 606.65 | D140: 610.88 | E140: 597.82 | F140: 588.98 | G140: 575.92 | H140: 619.72 | I140: 632.78 | J140: 641.62 | K140: 623.95 | L140: 602.05 | M140: 42.74914
A141: 132 | B141: M&MFIN | C141: 125.5 | D141: 125.67 | E141: 124.03 | F141: 122.57 | G141: 120.93 | H141: 127.13 | I141: 128.77 | J141: 130.23 | K141: 127.3 | L141: 124.2 | M141: 38.66767
A142: 133 | B142: MANAPPURAM | C142: 162.75 | D142: 161.95 | E142: 159.50 | F142: 156.25 | G142: 153.80 | H142: 165.20 | I142: 167.65 | J142: 170.90 | K142: 164.4 | L142: 158.7 | M142: 46.52599
A143: 134 | B143: MARICO | C143: 362.5 | D143: 361.90 | E143: 359.10 | F143: 355.70 | G143: 352.90 | H143: 365.30 | I143: 368.10 | J143: 371.50 | K143: 364.7 | L143: 358.5 | M143: 25.17914
A144: 135 | B144: MARUTI | C144: 6894.9 | D144: 6912.63 | E144: 6845.27 | F144: 6795.63 | G144: 6728.27 | H144: 6962.27 | I144: 7029.63 | J144: 7079.27 | K144: 6980 | L144: 6863 | M144: 6.57914
A145: 136 | B145: MCDOWELL-N | C145: 510.05 | D145: 507.92 | E145: 502.93 | F145: 495.82 | G145: 490.83 | H145: 515.03 | I145: 520.02 | J145: 527.13 | K145: 512.9 | L145: 500.8 | M145: 11.4456
A146: 137 | B146: MFSL | C146: 579.5 | D146: 583.20 | E146: 573.70 | F146: 567.90 | G146: 558.40 | H146: 589.00 | I146: 598.50 | J146: 604.30 | K146: 592.7 | L146: 577.4 | M146: 4.25934
A147: 138 | B147: MGL | C147: 820.85 | D147: 817.95 | E147: 800.00 | F147: 779.15 | G147: 761.20 | H147: 838.80 | I147: 856.75 | J147: 877.60 | K147: 835.9 | L147: 797.1 | M147: 15.94477
A148: 139 | B148: MINDTREE | C148: 1329.15 | D148: 1345.05 | E148: 1246.40 | F148: 1163.65 | G148: 1065.00 | H148: 1427.80 | I148: 1526.45 | J148: 1609.20 | K148: 1443.7 | L148: 1262.3 | M148: 90.4948
A149: 140 | B149: MOTHERSUMI | C149: 106.25 | D149: 106.28 | E149: 104.87 | F149: 103.48 | G149: 102.07 | H149: 107.67 | I149: 109.08 | J149: 110.47 | K149: 107.7 | L149: 104.9 | M149: 123.53814
A150: 141 | B150: MPHASIS | C150: 1340.75 | D150: 1349.92 | E150: 1290.83 | F150: 1240.92 | G150: 1181.83 | H150: 1399.83 | I150: 1458.92 | J150: 1508.83 | K150: 1409 | L150: 1300 | M150: 8.78654
A151: 142 | B151: MRF | C151: 58013.1 | D151: 58251.10 | E151: 57622.05 | F151: 57231.00 | G151: 56601.95 | H151: 58642.15 | I151: 59271.20 | J151: 59662.25 | K151: 58880.15 | L151: 57860.05 | M151: 0.07262
A152: 143 | B152: MRPL | C152: 25.6 | D152: 25.53 | E152: 25.37 | F152: 25.13 | G152: 24.97 | H152: 25.77 | I152: 25.93 | J152: 26.17 | K152: 25.7 | L152: 25.3 | M152: 2.20824
A153: 144 | B153: MUTHOOTFIN | C153: 1185.05 | D153: 1176.87 | E153: 1149.03 | F153: 1113.02 | G153: 1085.18 | H153: 1212.88 | I153: 1240.72 | J153: 1276.73 | K153: 1204.7 | L153: 1140.85 | M153: 28.71896
A154: 145 | B154: NAM-INDIA | C154: 271.9 | D154: 271.28 | E154: 267.67 | F154: 263.43 | G154: 259.82 | H154: 275.52 | I154: 279.13 | J154: 283.37 | K154: 274.9 | L154: 267.05 | M154: 3.73661
A155: 146 | B155: NATCOPHARM | C155: 890.65 | D155: 886.18 | E155: 876.47 | F155: 862.28 | G155: 852.57 | H155: 900.37 | I155: 910.08 | J155: 924.27 | K155: 895.9 | L155: 872 | M155: 3.55052
A156: 147 | B156: NATIONALUM | C156: 30.6 | D156: 30.33 | E156: 29.82 | F156: 29.03 | G156: 28.52 | H156: 31.12 | I156: 31.63 | J156: 32.42 | K156: 30.85 | L156: 29.55 | M156: 88.72911
A157: 148 | B157: NAUKRI | C157: 3600.3 | D157: 3605.67 | E157: 3551.38 | F157: 3502.47 | G157: 3448.18 | H157: 3654.58 | I157: 3708.87 | J157: 3757.78 | K157: 3659.95 | L157: 3556.75 | M157: 4.18182
A158: 149 | B158: NESTLEIND | C158: 15430.25 | D158: 15541.88 | E158: 15263.37 | F158: 15096.48 | G158: 14817.97 | H158: 15708.77 | I158: 15987.28 | J158: 16154.17 | K158: 15820.4 | L158: 15375 | M158: 1.32361
A159: 150 | B159: NHPC | C159: 19.85 | D159: 19.88 | E159: 19.72 | F159: 19.58 | G159: 19.42 | H159: 20.02 | I159: 20.18 | J159: 20.32 | K159: 20.05 | L159: 19.75 | M159: 31.20402
A160: 151 | B160: NMDC | C160: 83.05 | D160: 82.52 | E160: 81.43 | F160: 79.82 | G160: 78.73 | H160: 84.13 | I160: 85.22 | J160: 86.83 | K160: 83.6 | L160: 80.9 | M160: 56.26992
A161: 152 | B161: NTPC | C161: 80.3 | D161: 79.75 | E161: 79.00 | F161: 77.70 | G161: 76.95 | H161: 81.05 | I161: 81.80 | J161: 83.10 | K161: 80.5 | L161: 78.45 | M161: 165.78317
A162: 153 | B162: OBEROIRLTY | C162: 388.6 | D162: 387.70 | E162: 383.60 | F162: 378.60 | G162: 374.50 | H162: 392.70 | I162: 396.80 | J162: 401.80 | K162: 391.8 | L162: 382.7 | M162: 1.49019
A163: 154 | B163: OFSS | C163: 3270.65 | D163: 3243.88 | E163: 3189.77 | F163: 3108.88 | G163: 3054.77 | H163: 3324.77 | I163: 3378.88 | J163: 3459.77 | K163: 3298 | L163: 3163 | M163: 3.34348
A164: 155 | B164: OIL | C164: 86.5 | D164: 86.75 | E164: 85.30 | F164: 84.10 | G164: 82.65 | H164: 87.95 | I164: 89.40 | J164: 90.60 | K164: 88.2 | L164: 85.55 | M164: 11.99633
A165: 156 | B165: ONGC | C165: 67.25 | D165: 66.93 | E165: 66.32 | F165: 65.38 | G165: 64.77 | H165: 67.87 | I165: 68.48 | J165: 69.42 | K165: 67.55 | L165: 66 | M165: 185.91533
A166: 157 | B166: PAGEIND | C166: 20635.45 | D166: 20510.32 | E166: 20273.43 | F166: 19911.42 | G166: 19674.53 | H166: 20872.33 | I166: 21109.22 | J166: 21471.23 | K166: 20747.2 | L166: 20148.3 | M166: 0.3163
A167: 158 | B167: PEL | C167: 1291.35 | D167: 1281.43 | E167: 1267.92 | F167: 1244.48 | G167: 1230.97 | H167: 1304.87 | I167: 1318.38 | J167: 1341.82 | K167: 1294.95 | L167: 1258 | M167: 10.36302
A168: 159 | B168: PETRONET | C168: 222.65 | D168: 220.38 | E168: 217.27 | F168: 211.88 | G168: 208.77 | H168: 225.77 | I168: 228.88 | J168: 234.27 | K168: 223.5 | L168: 215 | M168: 54.19321
A169: 160 | B169: PFC | C169: 85.05 | D169: 85.02 | E169: 84.28 | F169: 83.52 | G169: 82.78 | H169: 85.78 | I169: 86.52 | J169: 87.28 | K169: 85.75 | L169: 84.25 | M169: 33.57802
A170: 161 | B170: PFIZER | C170: 4974.05 | D170: 4956.02 | E170: 4928.03 | F170: 4882.02 | G170: 4854.03 | H170: 5002.03 | I170: 5030.02 | J170: 5076.03 | K170: 4984 | L170: 4910 | M170: 0.17182
A171: 162 | B171: PGHH | C171: 10112.5 | D171: 10096.65 | E171: 10034.30 | F171: 9956.10 | G171: 9893.75 | H171: 10174.85 | I171: 10237.20 | J171: 10315.40 | K171: 10159 | L171: 10018.45 | M171: 0.05043
A172: 163 | B172: PIDILITIND | C172: 1481.25 | D172: 1482.22 | E172: 1471.03 | F172: 1460.82 | G172: 1449.63 | H172: 1492.43 | I172: 1503.62 | J172: 1513.83 | K172: 1493.4 | L172: 1472 | M172: 4.23856
A173: 164 | B173: PIIND | C173: 2081.45 | D173: 2073.82 | E173: 2037.73 | F173: 1994.02 | G173: 1957.93 | H173: 2117.53 | I173: 2153.62 | J173: 2197.33 | K173: 2109.9 | L173: 2030.1 | M173: 4.87387
A174: 165 | B174: PNB | C174: 27.45 | D174: 27.58 | E174: 27.22 | F174: 26.98 | G174: 26.62 | H174: 27.82 | I174: 28.18 | J174: 28.42 | K174: 27.95 | L174: 27.35 | M174: 176.45876
A175: 166 | B175: PNBHOUSING | C175: 360.15 | D175: 361.38 | E175: 356.82 | F175: 353.48 | G175: 348.92 | H175: 364.72 | I175: 369.28 | J175: 372.62 | K175: 365.95 | L175: 358.05 | M175: 2.50289
A176: 167 | B176: POLYCAB | C176: 806.95 | D176: 807.97 | E176: 801.98 | F176: 797.02 | G176: 791.03 | H176: 812.93 | I176: 818.92 | J176: 823.88 | K176: 813.95 | L176: 803 | M176: 0.51702
A177: 168 | B177: POWERGRID | C177: 158.95 | D177: 158.50 | E177: 155.80 | F177: 152.65 | G177: 149.95 | H177: 161.65 | I177: 164.35 | J177: 167.50 | K177: 161.2 | L177: 155.35 | M177: 105.04385
A178: 169 | B178: PRESTIGE | C178: 260.4 | D178: 256.42 | E178: 249.83 | F178: 239.27 | G178: 232.68 | H178: 266.98 | I178: 273.57 | J178: 284.13 | K178: 263 | L178: 245.85 | M178: 6.5486
A179: 170 | B179: QUESS | C179: 419.4 | D179: 421.05 | E179: 407.45 | F179: 395.50 | G179: 381.90 | H179: 433.00 | I179: 446.60 | J179: 458.55 | K179: 434.65 | L179: 409.1 | M179: 2.66782
A180: 171 | B180: RAJESHEXPO | C180: 446.1 | D180: 447.13 | E180: 443.97 | F180: 441.83 | G180: 438.67 | H180: 449.27 | I180: 452.43 | J180: 454.57 | K180: 450.3 | L180: 445 | M180: 0.31941
A181: 172 | B181: RAMCOCEM | C181: 780.35 | D181: 774.33 | E181: 763.67 | F181: 746.98 | G181: 736.32 | H181: 791.02 | I181: 801.68 | J181: 818.37 | K181: 785 | L181: 757.65 | M181: 6.12193
A182: 173 | B182: RBLBANK | C182: 172 | D182: 170.45 | E182: 168.40 | F182: 164.80 | G182: 162.75 | H182: 174.05 | I182: 176.10 | J182: 179.70 | K182: 172.5 | L182: 166.85 | M182: 117.57591
A183: 174 | B183: RECLTD | C183: 94 | D183: 94.05 | E183: 93.25 | F183: 92.50 | G183: 91.70 | H183: 94.80 | I183: 95.60 | J183: 96.35 | K183: 94.85 | L183: 93.3 | M183: 35.85816
A184: 175 | B184: RELIANCE | C184: 2175.8 | D184: 2193.65 | E184: 2154.80 | F184: 2133.80 | G184: 2094.95 | H184: 2214.65 | I184: 2253.50 | J184: 2274.50 | K184: 2232.5 | L184: 2172.65 | M184: 99.6108
A185: 176 | B185: SAIL | C185: 33.85 | D185: 33.57 | E185: 33.03 | F185: 32.22 | G185: 31.68 | H185: 34.38 | I185: 34.92 | J185: 35.73 | K185: 34.1 | L185: 32.75 | M185: 146.14588
A186: 177 | B186: SBICARD | C186: 879.6 | D186: 886.67 | E186: 868.93 | F186: 858.27 | G186: 840.53 | H186: 897.33 | I186: 915.07 | J186: 925.73 | K186: 904.4 | L186: 876 | M186: 15.6824
A187: 178 | B187: SBILIFE | C187: 799.55 | D187: 802.40 | E187: 793.80 | F187: 788.05 | G187: 779.45 | H187: 808.15 | I187: 816.75 | J187: 822.50 | K187: 811 | L187: 796.65 | M187: 6.83003
A188: 179 | B188: SBIN | C188: 195.95 | D188: 194.77 | E188: 192.78 | F188: 189.62 | G188: 187.63 | H188: 197.93 | I188: 199.92 | J188: 203.08 | K188: 196.75 | L188: 191.6 | M188: 368.94938
A189: 180 | B189: SHREECEM | C189: 21177.45 | D189: 21050.67 | E189: 20776.78 | F189: 20376.12 | G189: 20102.23 | H189: 21451.33 | I189: 21725.22 | J189: 22125.88 | K189: 21324.55 | L189: 20650 | M189: 0.85125
A190: 181 | B190: SIEMENS | C190: 1265.45 | D190: 1253.53 | E190: 1238.32 | F190: 1211.18 | G190: 1195.97 | H190: 1280.67 | I190: 1295.88 | J190: 1323.02 | K190: 1268.75 | L190: 1226.4 | M190: 9.54281
A191: 182 | B191: SRF | C191: 4450.95 | D191: 4449.37 | E191: 4391.58 | F191: 4332.22 | G191: 4274.43 | H191: 4508.73 | I191: 4566.52 | J191: 4625.88 | K191: 4507.15 | L191: 4390 | M191: 4.3076
A192: 183 | B192: SRTRANSFIN | C192: 647.1 | D192: 640.88 | E192: 632.72 | F192: 618.33 | G192: 610.17 | H192: 655.27 | I192: 663.43 | J192: 677.82 | K192: 649.05 | L192: 626.5 | M192: 27.54571
A193: 184 | B193: SUNPHARMA | C193: 486.9 | D193: 488.97 | E193: 483.18 | F193: 479.47 | G193: 473.68 | H193: 492.68 | I193: 498.47 | J193: 502.18 | K193: 494.75 | L193: 485.25 | M193: 90.86863
A194: 185 | B194: SUNTV | C194: 434.8 | D194: 434.23 | E194: 429.32 | F194: 423.83 | G194: 418.92 | H194: 439.72 | I194: 444.63 | J194: 450.12 | K194: 439.15 | L194: 428.75 | M194: 10.14322
A195: 186 | B195: SYNGENE | C195: 554.9 | D195: 555.10 | E195: 550.75 | F195: 546.60 | G195: 542.25 | H195: 559.25 | I195: 563.60 | J195: 567.75 | K195: 559.45 | L195: 550.95 | M195: 2.80223
A196: 187 | B196: TATACONSUM | C196: 477.1 | D196: 479.62 | E196: 472.53 | F196: 467.97 | G196: 460.88 | H196: 484.18 | I196: 491.27 | J196: 495.83 | K196: 486.7 | L196: 475.05 | M196: 43.13466
A197: 188 | B197: TATAMOTORS | C197: 127.75 | D197: 127.93 | E197: 125.82 | F197: 123.88 | G197: 121.77 | H197: 129.87 | I197: 131.98 | J197: 133.92 | K197: 130.05 | L197: 126 | M197: 625.54211
A198: 189 | B198: TATAPOWER | C198: 54.15 | D198: 53.68 | E198: 52.77 | F198: 51.38 | G198: 50.47 | H198: 55.07 | I198: 55.98 | J198: 57.37 | K198: 54.6 | L198: 52.3 | M198: 246.37365
A199: 190 | B199: TATASTEEL | C199: 393.85 | D199: 388.32 | E199: 380.73 | F199: 367.62 | G199: 360.03 | H199: 401.43 | I199: 409.02 | J199: 422.13 | K199: 395.9 | L199: 375.2 | M199: 288.55527
A200: 191 | B200: TCS | C200: 2763.3 | D200: 2755.42 | E200: 2739.18 | F200: 2715.07 | G200: 2698.83 | H200: 2779.53 | I200: 2795.77 | J200: 2819.88 | K200: 2771.65 | L200: 2731.3 | M200: 52.73773
A201: 192 | B201: TECHM | C201: 822.75 | D201: 816.62 | E201: 804.93 | F201: 787.12 | G201: 775.43 | H201: 834.43 | I201: 846.12 | J201: 863.93 | K201: 828.3 | L201: 798.8 | M201: 79.78997
A202: 193 | B202: TITAN | C202: 1223.15 | D202: 1226.40 | E202: 1212.75 | F202: 1202.35 | G202: 1188.70 | H202: 1236.80 | I202: 1250.45 | J202: 1260.85 | K202: 1240.05 | L202: 1216 | M202: 27.72602
A203: 194 | B203: TORNTPHARM | C203: 2744.2 | D203: 2733.90 | E203: 2692.80 | F203: 2641.40 | G203: 2600.30 | H203: 2785.30 | I203: 2826.40 | J203: 2877.80 | K203: 2775 | L203: 2682.5 | M203: 4.77714
A204: 195 | B204: TORNTPOWER | C204: 302.65 | D204: 300.30 | E204: 296.85 | F204: 291.05 | G204: 287.60 | H204: 306.10 | I204: 309.55 | J204: 315.35 | K204: 303.75 | L204: 294.5 | M204: 7.0657
A205: 196 | B205: TRENT | C205: 662.85 | D205: 664.32 | E205: 653.63 | F205: 644.42 | G205: 633.73 | H205: 673.53 | I205: 684.22 | J205: 693.43 | K205: 675 | L205: 655.1 | M205: 1.28647
... 29 more rows

Sheet MidCap Intra
L5: Back To Main Page
A6: FOR INTRA DAY TRADING | K6: =Main!B10 -> 2020-10-19
A9: Sr.no | B9: Scrip | C9: CLOSE RATE | D9: Pivot Point | E9: Supports | H9: Resistances
C10: Point | E10: S1 | F10: S2 | G10: S3 | H10: R1 | I10: R2 | J10: R3 | K10: HIGH | L10: LOW | M10: Total Trade Quanity in Lakhs
A11: 1 | B11: 3MINDIA | C11: 18695.9 | D11: 18714.17 | E11: 18483.33 | F11: 18270.77 | G11: 18039.93 | H11: 18926.73 | I11: 19157.57 | J11: 19370.13 | K11: 18945 | L11: 18501.6 | M11: 0.04077
A12: 2 | B12: AARTIIND | C12: 998.75 | D12: 988.90 | E12: 976.30 | F12: 953.85 | G12: 941.25 | H12: 1011.35 | I12: 1023.95 | J12: 1046.40 | K12: 1001.5 | L12: 966.45 | M12: 1.83889
A13: 3 | B13: AAVAS | C13: 1479.65 | D13: 1465.65 | E13: 1435.30 | F13: 1390.95 | G13: 1360.60 | H13: 1510.00 | I13: 1540.35 | J13: 1584.70 | K13: 1496 | L13: 1421.3 | M13: 0.22911
A14: 4 | B14: ABB | C14: 863.8 | D14: 860.50 | E14: 854.00 | F14: 844.20 | G14: 837.70 | H14: 870.30 | I14: 876.80 | J14: 886.60 | K14: 867 | L14: 850.7 | M14: 0.32896
A15: 5 | B15: ABBOTINDIA | C15: 16031.45 | D15: 16038.12 | E15: 15895.43 | F15: 15759.42 | G15: 15616.73 | H15: 16174.13 | I15: 16316.82 | J15: 16452.83 | K15: 16180.8 | L15: 15902.1 | M15: 0.04671
A16: 6 | B16: ABCAPITAL | C16: 60.55 | D16: 60.63 | E16: 59.77 | F16: 58.98 | G16: 58.12 | H16: 61.42 | I16: 62.28 | J16: 63.07 | K16: 61.5 | L16: 59.85 | M16: 8.36061
A17: 7 | B17: ABFRL | C17: 137.4 | D17: 135.80 | E17: 133.60 | F17: 129.80 | G17: 127.60 | H17: 139.60 | I17: 141.80 | J17: 145.60 | K17: 138 | L17: 132 | M17: 35.74071
A18: 8 | B18: ACC | C18: 1561.15 | D18: 1546.52 | E18: 1527.03 | F18: 1492.92 | G18: 1473.43 | H18: 1580.63 | I18: 1600.12 | J18: 1634.23 | K18: 1566 | L18: 1512.4 | M18: 13.6413
A19: 9 | B19: ADANIGAS | C19: 184.65 | D19: 183.90 | E19: 181.85 | F19: 179.05 | G19: 177.00 | H19: 186.70 | I19: 188.75 | J19: 191.55 | K19: 185.95 | L19: 181.1 | M19: 6.1861
A20: 10 | B20: ADANIGREEN | C20: 705.35 | D20: 708.10 | E20: 697.25 | F20: 689.15 | G20: 678.30 | H20: 716.20 | I20: 727.05 | J20: 735.15 | K20: 718.95 | L20: 700 | M20: 2.77648
A21: 11 | B21: ADANIPORTS | C21: 349.95 | D21: 348.88 | E21: 343.02 | F21: 336.08 | G21: 330.22 | H21: 355.82 | I21: 361.68 | J21: 368.62 | K21: 354.75 | L21: 341.95 | M21: 26.35081
A22: 12 | B22: ADANIPOWER | C22: 36 | D22: 36.08 | E22: 35.82 | F22: 35.63 | G22: 35.37 | H22: 36.27 | I22: 36.53 | J22: 36.72 | K22: 36.35 | L22: 35.9 | M22: 4.40489
A23: 13 | B23: ADANITRANS | C23: 290.35 | D23: 289.63 | E23: 286.57 | F23: 282.78 | G23: 279.72 | H23: 293.42 | I23: 296.48 | J23: 300.27 | K23: 292.7 | L23: 285.85 | M23: 2.13792
A24: 14 | B24: ADVENZYMES | C24: 329.4 | D24: 327.50 | E24: 317.00 | F24: 304.60 | G24: 294.10 | H24: 339.90 | I24: 350.40 | J24: 362.80 | K24: 338 | L24: 315.1 | M24: 3.67841
A25: 15 | B25: AEGISCHEM | C25: 212.4 | D25: 211.58 | E25: 208.72 | F25: 205.03 | G25: 202.17 | H25: 215.27 | I25: 218.13 | J25: 221.82 | K25: 214.45 | L25: 207.9 | M25: 1.10066
A26: 16 | B26: AFFLE | C26: 2669.45 | D26: 2664.82 | E26: 2599.63 | F26: 2529.82 | G26: 2464.63 | H26: 2734.63 | I26: 2799.82 | J26: 2869.63 | K26: 2730 | L26: 2595 | M26: 0.27948
A27: 17 | B27: AIAENG | C27: 1729.65 | D27: 1733.88 | E27: 1697.77 | F27: 1665.88 | G27: 1629.77 | H27: 1765.77 | I27: 1801.88 | J27: 1833.77 | K27: 1770 | L27: 1702 | M27: 0.23405
A28: 18 | B28: AJANTPHARM | C28: 1541.05 | D28: 1542.87 | E28: 1524.28 | F28: 1507.52 | G28: 1488.93 | H28: 1559.63 | I28: 1578.22 | J28: 1594.98 | K28: 1561.45 | L28: 1526.1 | M28: 0.6906
A29: 19 | B29: AKZOINDIA | C29: 1998.4 | D29: 2003.95 | E29: 1969.60 | F29: 1940.80 | G29: 1906.45 | H29: 2032.75 | I29: 2067.10 | J29: 2095.90 | K29: 2038.3 | L29: 1975.15 | M29: 0.07314
A30: 20 | B30: ALKEM | C30: 2650.55 | D30: 2654.40 | E30: 2626.15 | F30: 2601.75 | G30: 2573.50 | H30: 2678.80 | I30: 2707.05 | J30: 2731.45 | K30: 2682.65 | L30: 2630 | M30: 0.62747
A31: 21 | B31: ALKYLAMINE | C31: 3096.75 | D31: 3098.25 | E31: 3056.50 | F31: 3016.25 | G31: 2974.50 | H31: 3138.50 | I31: 3180.25 | J31: 3220.50 | K31: 3140 | L31: 3058 | M31: 0.16476
A32: 22 | B32: ALLCARGO | C32: 117.55 | D32: 117.38 | E32: 116.27 | F32: 114.98 | G32: 113.87 | H32: 118.67 | I32: 119.78 | J32: 121.07 | K32: 118.5 | L32: 116.1 | M32: 2.04684
A33: 23 | B33: AMARAJABAT | C33: 722.7 | D33: 720.45 | E33: 712.40 | F33: 702.10 | G33: 694.05 | H33: 730.75 | I33: 738.80 | J33: 749.10 | K33: 728.5 | L33: 710.15 | M33: 10.04393
A34: 24 | B34: AMBER | C34: 2180.65 | D34: 2167.75 | E34: 2107.50 | F34: 2034.35 | G34: 1974.10 | H34: 2240.90 | I34: 2301.15 | J34: 2374.30 | K34: 2228 | L34: 2094.6 | M34: 8.33678
A35: 25 | B35: AMBUJACEM | C35: 248 | D35: 245.72 | E35: 242.43 | F35: 236.87 | G35: 233.58 | H35: 251.28 | I35: 254.57 | J35: 260.13 | K35: 249 | L35: 240.15 | M35: 125.91434
A36: 26 | B36: APLAPOLLO | C36: 2745.05 | D36: 2721.68 | E36: 2688.37 | F36: 2631.68 | G36: 2598.37 | H36: 2778.37 | I36: 2811.68 | J36: 2868.37 | K36: 2755 | L36: 2665 | M36: 0.22125
A37: 27 | B37: APLLTD | C37: 961.25 | D37: 954.08 | E37: 939.17 | F37: 917.08 | G37: 902.17 | H37: 976.17 | I37: 991.08 | J37: 1013.17 | K37: 969 | L37: 932 | M37: 1.57938
A38: 28 | B38: APOLLOHOSP | C38: 2210.55 | D38: 2201.52 | E38: 2184.03 | F38: 2157.52 | G38: 2140.03 | H38: 2228.03 | I38: 2245.52 | J38: 2272.03 | K38: 2219 | L38: 2175 | M38: 10.3611
A39: 29 | B39: APOLLOTYRE | C39: 128.2 | D39: 126.95 | E39: 125.35 | F39: 122.50 | G39: 120.90 | H39: 129.80 | I39: 131.40 | J39: 134.25 | K39: 128.55 | L39: 124.1 | M39: 33.70308
A40: 30 | B40: ARVINDFASN | C40: 126.9 | D40: 126.30 | E40: 123.60 | F40: 120.30 | G40: 117.60 | H40: 129.60 | I40: 132.30 | J40: 135.60 | K40: 129 | L40: 123 | M40: 1.37378
A41: 31 | B41: ASAHIINDIA | C41: 224.5 | D41: 222.92 | E41: 217.83 | F41: 211.17 | G41: 206.08 | H41: 229.58 | I41: 234.67 | J41: 241.33 | K41: 228 | L41: 216.25 | M41: 0.24221
A42: 32 | B42: ASHOKA | C42: 62.1 | D42: 62.05 | E42: 61.10 | F42: 60.10 | G42: 59.15 | H42: 63.05 | I42: 64.00 | J42: 65.00 | K42: 63 | L42: 61.05 | M42: 2.92674
A43: 33 | B43: ASHOKLEY | C43: 75 | D43: 74.60 | E43: 73.55 | F43: 72.10 | G43: 71.05 | H43: 76.05 | I43: 77.10 | J43: 78.55 | K43: 75.65 | L43: 73.15 | M43: 469.71075
A44: 34 | B44: ASIANPAINT | C44: 2061.2 | D44: 2068.92 | E44: 2047.83 | F44: 2034.47 | G44: 2013.38 | H44: 2082.28 | I44: 2103.37 | J44: 2116.73 | K44: 2090 | L44: 2055.55 | M44: 20.17718
A45: 35 | B45: ASTERDM | C45: 133.25 | D45: 132.58 | E45: 130.67 | F45: 128.08 | G45: 126.17 | H45: 135.17 | I45: 137.08 | J45: 139.67 | K45: 134.5 | L45: 130 | M45: 1.07169
A46: 36 | B46: ASTRAL | C46: 1148.7 | D46: 1150.80 | E46: 1140.55 | F46: 1132.40 | G46: 1122.15 | H46: 1158.95 | I46: 1169.20 | J46: 1177.35 | K46: 1161.05 | L46: 1142.65 | M46: 0.27296
A47: 37 | B47: ASTRAZEN | C47: 4264.4 | D47: 4278.12 | E47: 4236.28 | F47: 4208.17 | G47: 4166.33 | H47: 4306.23 | I47: 4348.07 | J47: 4376.18 | K47: 4319.95 | L47: 4250 | M47: 0.20839
A48: 38 | B48: ATUL | C48: 5993.9 | D48: 5999.63 | E48: 5969.27 | F48: 5944.63 | G48: 5914.27 | H48: 6024.27 | I48: 6054.63 | J48: 6079.27 | K48: 6030 | L48: 5975 | M48: 0.18585
A49: 39 | B49: AUBANK | C49: 731.8 | D49: 730.53 | E49: 722.32 | F49: 712.83 | G49: 704.62 | H49: 740.02 | I49: 748.23 | J49: 757.72 | K49: 738.75 | L49: 721.05 | M49: 1.9459
A50: 40 | B50: AUROPHARMA | C50: 806.25 | D50: 802.42 | E50: 789.33 | F50: 772.42 | G50: 759.33 | H50: 819.33 | I50: 832.42 | J50: 849.33 | K50: 815.5 | L50: 785.5 | M50: 26.08735
A51: 41 | B51: AVANTIFEED | C51: 501.85 | D51: 504.80 | E51: 497.10 | F51: 492.35 | G51: 484.65 | H51: 509.55 | I51: 517.25 | J51: 522.00 | K51: 512.5 | L51: 500.05 | M51: 2.76768
A52: 42 | B52: AXISBANK | C52: 472.4 | D52: 470.30 | E52: 465.10 | F52: 457.80 | G52: 452.60 | H52: 477.60 | I52: 482.80 | J52: 490.10 | K52: 475.5 | L52: 463 | M52: 162.88158
A53: 43 | B53: BAJAJ-AUTO | C53: 3044.75 | D53: 3055.25 | E53: 3018.50 | F53: 2992.25 | G53: 2955.50 | H53: 3081.50 | I53: 3118.25 | J53: 3144.50 | K53: 3092 | L53: 3029 | M53: 5.48793
A54: 44 | B54: BAJAJCON | C54: 184.1 | D54: 184.47 | E54: 180.13 | F54: 176.17 | G54: 171.83 | H54: 188.43 | I54: 192.77 | J54: 196.73 | K54: 188.8 | L54: 180.5 | M54: 7.724
A55: 45 | B55: BAJAJELEC | C55: 513.65 | D55: 511.03 | E55: 504.07 | F55: 494.48 | G55: 487.52 | H55: 520.62 | I55: 527.58 | J55: 537.17 | K55: 518 | L55: 501.45 | M55: 1.73942
A56: 46 | B56: BAJAJFINSV | C56: 5952.3 | D56: 5932.77 | E56: 5885.53 | F56: 5818.77 | G56: 5771.53 | H56: 5999.53 | I56: 6046.77 | J56: 6113.53 | K56: 5980 | L56: 5866 | M56: 4.76247
A57: 47 | B57: BAJAJHLDNG | C57: 2354.05 | D57: 2365.58 | E57: 2333.47 | F57: 2312.88 | G57: 2280.77 | H57: 2386.17 | I57: 2418.28 | J57: 2438.87 | K57: 2397.7 | L57: 2345 | M57: 0.70672
A58: 48 | B58: BAJFINANCE | C58: 3231.35 | D58: 3223.63 | E58: 3177.82 | F58: 3124.28 | G58: 3078.47 | H58: 3277.17 | I58: 3322.98 | J58: 3376.52 | K58: 3269.45 | L58: 3170.1 | M58: 50.76251
A59: 49 | B59: BALKRISIND | C59: 1381.9 | D59: 1372.00 | E59: 1355.00 | F59: 1328.10 | G59: 1311.10 | H59: 1398.90 | I59: 1415.90 | J59: 1442.80 | K59: 1389 | L59: 1345.1 | M59: 6.31842
A60: 50 | B60: BALMLAWRIE | C60: 103.2 | D60: 102.75 | E60: 102.00 | F60: 100.80 | G60: 100.05 | H60: 103.95 | I60: 104.70 | J60: 105.90 | K60: 103.5 | L60: 101.55 | M60: 1.44776
A61: 51 | B61: BALRAMCHIN | C61: 152.6 | D61: 151.03 | E61: 149.07 | F61: 145.53 | G61: 143.57 | H61: 154.57 | I61: 156.53 | J61: 160.07 | K61: 153 | L61: 147.5 | M61: 5.3627
A62: 52 | B62: BANDHANBNK | C62: 313 | D62: 310.33 | E62: 306.67 | F62: 300.33 | G62: 296.67 | H62: 316.67 | I62: 320.33 | J62: 326.67 | K62: 314 | L62: 304 | M62: 84.94372
A63: 53 | B63: BANKBARODA | C63: 40.3 | D63: 40.43 | E63: 39.77 | F63: 39.23 | G63: 38.57 | H63: 40.97 | I63: 41.63 | J63: 42.17 | K63: 41.1 | L63: 39.9 | M63: 183.06969
A64: 54 | B64: BANKINDIA | C64: 39.4 | D64: 39.62 | E64: 38.98 | F64: 38.57 | G64: 37.93 | H64: 40.03 | I64: 40.67 | J64: 41.08 | K64: 40.25 | L64: 39.2 | M64: 20.71928
A65: 55 | B65: BASF | C65: 1412.65 | D65: 1391.87 | E65: 1348.28 | F65: 1283.92 | G65: 1240.33 | H65: 1456.23 | I65: 1499.82 | J65: 1564.18 | K65: 1435.45 | L65: 1327.5 | M65: 0.16866
A66: 56 | B66: BATAINDIA | C66: 1372.45 | D66: 1367.58 | E66: 1355.17 | F66: 1337.88 | G66: 1325.47 | H66: 1384.87 | I66: 1397.28 | J66: 1414.57 | K66: 1380 | L66: 1350.3 | M66: 4.90799
A67: 57 | B67: BAYERCROP | C67: 5611.85 | D67: 5627.28 | E67: 5564.57 | F67: 5517.28 | G67: 5454.57 | H67: 5674.57 | I67: 5737.28 | J67: 5784.57 | K67: 5690 | L67: 5580 | M67: 0.19699
A68: 58 | B68: BBTC | C68: 1227.1 | D68: 1233.88 | E68: 1208.77 | F68: 1190.43 | G68: 1165.32 | H68: 1252.22 | I68: 1277.33 | J68: 1295.67 | K68: 1259 | L68: 1215.55 | M68: 0.57029
A69: 59 | B69: BDL | C69: 295.2 | D69: 293.28 | E69: 290.37 | F69: 285.53 | G69: 282.62 | H69: 298.12 | I69: 301.03 | J69: 305.87 | K69: 296.2 | L69: 288.45 | M69: 1.44811
A70: 60 | B70: BEL | C70: 91 | D70: 90.02 | E70: 88.68 | F70: 86.37 | G70: 85.03 | H70: 92.33 | I70: 93.67 | J70: 95.98 | K70: 91.35 | L70: 87.7 | M70: 72.66931
A71: 61 | B71: BEML | C71: 602 | D71: 603.33 | E71: 594.67 | F71: 587.33 | G71: 578.67 | H71: 610.67 | I71: 619.33 | J71: 626.67 | K71: 612 | L71: 596 | M71: 2.08351
A72: 62 | B72: BERGEPAINT | C72: 603.4 | D72: 602.42 | E72: 596.43 | F72: 589.47 | G72: 583.48 | H72: 609.38 | I72: 615.37 | J72: 622.33 | K72: 608.4 | L72: 595.45 | M72: 9.07341
A73: 63 | B73: BHARATFORG | C73: 452.5 | D73: 452.45 | E73: 446.15 | F73: 439.80 | G73: 433.50 | H73: 458.80 | I73: 465.10 | J73: 471.45 | K73: 458.75 | L73: 446.1 | M73: 19.25351
A74: 64 | B74: BHARATRAS | C74: 8684.7 | D74: 8671.55 | E74: 8493.15 | F74: 8301.60 | G74: 8123.20 | H74: 8863.10 | I74: 9041.50 | J74: 9233.05 | K74: 8849.95 | L74: 8480 | M74: 0.04383
A75: 65 | B75: BHARTIARTL | C75: 401.65 | D75: 402.43 | E75: 397.57 | F75: 393.48 | G75: 388.62 | H75: 406.52 | I75: 411.38 | J75: 415.47 | K75: 407.3 | L75: 398.35 | M75: 233.47957
A76: 66 | B76: BHEL | C76: 27.2 | D76: 27.13 | E76: 26.82 | F76: 26.43 | G76: 26.12 | H76: 27.52 | I76: 27.83 | J76: 28.22 | K76: 27.45 | L76: 26.75 | M76: 158.1297
A77: 67 | B77: BIOCON | C77: 447.9 | D77: 443.82 | E77: 438.13 | F77: 428.37 | G77: 422.68 | H77: 453.58 | I77: 459.27 | J77: 469.03 | K77: 449.5 | L77: 434.05 | M77: 45.02795
A78: 68 | B78: BIRLACORPN | C78: 639.15 | D78: 640.00 | E78: 631.15 | F78: 623.15 | G78: 614.30 | H78: 648.00 | I78: 656.85 | J78: 664.85 | K78: 648.85 | L78: 632 | M78: 1.26985
A79: 69 | B79: BLISSGVS | C79: 174.85 | D79: 174.62 | E79: 173.53 | F79: 172.22 | G79: 171.13 | H79: 175.93 | I79: 177.02 | J79: 178.33 | K79: 175.7 | L79: 173.3 | M79: 3.15796
A80: 70 | B80: BLUEDART | C80: 3067.1 | D80: 3085.28 | E80: 3021.07 | F80: 2975.03 | G80: 2910.82 | H80: 3131.32 | I80: 3195.53 | J80: 3241.57 | K80: 3149.5 | L80: 3039.25 | M80: 0.55018
A81: 71 | B81: BLUESTARCO | C81: 638.05 | D81: 636.02 | E81: 627.03 | F81: 616.02 | G81: 607.03 | H81: 647.03 | I81: 656.02 | J81: 667.03 | K81: 645 | L81: 625 | M81: 2.36543
A82: 72 | B82: BOMDYEING | C82: 66 | D82: 65.05 | E82: 63.30 | F82: 60.60 | G82: 58.85 | H82: 67.75 | I82: 69.50 | J82: 72.20 | K82: 66.8 | L82: 62.35 | M82: 14.6814
A83: 73 | B83: BOSCHLTD | C83: 11959.1 | D83: 11931.42 | E83: 11787.73 | F83: 11616.37 | G83: 11472.68 | H83: 12102.78 | I83: 12246.47 | J83: 12417.83 | K83: 12075.1 | L83: 11760.05 | M83: 0.3859
A84: 74 | B84: BPCL | C84: 339.95 | D84: 336.95 | E84: 330.50 | F84: 321.05 | G84: 314.60 | H84: 346.40 | I84: 352.85 | J84: 362.30 | K84: 343.4 | L84: 327.5 | M84: 134.53185
A85: 75 | B85: BRIGADE | C85: 159.05 | D85: 159.63 | E85: 156.32 | F85: 153.58 | G85: 150.27 | H85: 162.37 | I85: 165.68 | J85: 168.42 | K85: 162.95 | L85: 156.9 | M85: 0.59259
A86: 76 | B86: BRITANNIA | C86: 3747.2 | D86: 3749.15 | E86: 3719.30 | F86: 3691.40 | G86: 3661.55 | H86: 3777.05 | I86: 3806.90 | J86: 3834.80 | K86: 3779 | L86: 3721.25 | M86: 2.63967
A87: 77 | B87: BSE | C87: 524.95 | D87: 524.28 | E87: 520.67 | F87: 516.38 | G87: 512.77 | H87: 528.57 | I87: 532.18 | J87: 536.47 | K87: 527.9 | L87: 520 | M87: 2.1173
A88: 78 | B88: BSOFT | C88: 190.75 | D88: 187.15 | E88: 175.80 | F88: 160.85 | G88: 149.50 | H88: 202.10 | I88: 213.45 | J88: 228.40 | K88: 198.5 | L88: 172.2 | M88: 16.30948
A89: 79 | B89: CADILAHC | C89: 430.4 | D89: 424.63 | E89: 417.07 | F89: 403.73 | G89: 396.17 | H89: 437.97 | I89: 445.53 | J89: 458.87 | K89: 432.2 | L89: 411.3 | M89: 69.73034
A90: 80 | B90: CANBK | C90: 87.85 | D90: 87.87 | E90: 87.03 | F90: 86.22 | G90: 85.38 | H90: 88.68 | I90: 89.52 | J90: 90.33 | K90: 88.7 | L90: 87.05 | M90: 33.38675
A91: 81 | B91: CANFINHOME | C91: 468.35 | D91: 461.18 | E91: 447.37 | F91: 426.38 | G91: 412.57 | H91: 482.17 | I91: 495.98 | J91: 516.97 | K91: 475 | L91: 440.2 | M91: 3.35168
A92: 82 | B92: CAPLIPOINT | C92: 539.05 | D92: 530.68 | E92: 517.37 | F92: 495.68 | G92: 482.37 | H92: 552.37 | I92: 565.68 | J92: 587.37 | K92: 544 | L92: 509 | M92: 1.64715
A93: 83 | B93: CARBORUNIV | C93: 239.25 | D93: 239.53 | E93: 236.92 | F93: 234.58 | G93: 231.97 | H93: 241.87 | I93: 244.48 | J93: 246.82 | K93: 242.15 | L93: 237.2 | M93: 0.7153
A94: 84 | B94: CARERATING | C94: 319.95 | D94: 322.70 | E94: 315.75 | F94: 311.55 | G94: 304.60 | H94: 326.90 | I94: 333.85 | J94: 338.05 | K94: 329.65 | L94: 318.5 | M94: 1.18503
A95: 85 | B95: CASTROLIND | C95: 107.05 | D95: 106.35 | E95: 105.45 | F95: 103.85 | G95: 102.95 | H95: 107.95 | I95: 108.85 | J95: 110.45 | K95: 107.25 | L95: 104.75 | M95: 6.17259
A96: 86 | B96: CCL | C96: 245.9 | D96: 246.78 | E96: 244.12 | F96: 242.33 | G96: 239.67 | H96: 248.57 | I96: 251.23 | J96: 253.02 | K96: 249.45 | L96: 245 | M96: 1.40015
A97: 87 | B97: CDSL | C97: 453.45 | D97: 454.48 | E97: 447.07 | F97: 440.68 | G97: 433.27 | H97: 460.87 | I97: 468.28 | J97: 474.67 | K97: 461.9 | L97: 448.1 | M97: 7.95641
A98: 88 | B98: CEATLTD | C98: 992 | D98: 988.32 | E98: 979.53 | F98: 967.07 | G98: 958.28 | H98: 1000.78 | I98: 1009.57 | J98: 1022.03 | K98: 997.1 | L98: 975.85 | M98: 0.80443
A99: 89 | B99: CENTRALBK | C99: 10.2 | D99: 10.42 | E99: 9.88 | F99: 9.57 | G99: 9.03 | H99: 10.73 | I99: 11.27 | J99: 11.58 | K99: 10.95 | L99: 10.1 | M99: 103.77765
A100: 90 | B100: CENTURYPLY | C100: 173.6 | D100: 173.02 | E100: 171.03 | F100: 168.47 | G100: 166.48 | H100: 175.58 | I100: 177.57 | J100: 180.13 | K100: 175 | L100: 170.45 | M100: 1.53346
A101: 91 | B101: CENTURYTEX | C101: 321.6 | D101: 321.47 | E101: 315.13 | F101: 308.67 | G101: 302.33 | H101: 327.93 | I101: 334.27 | J101: 340.73 | K101: 327.8 | L101: 315 | M101: 4.00436
A102: 92 | B102: CERA | C102: 2514.95 | D102: 2507.13 | E102: 2486.82 | F102: 2458.68 | G102: 2438.37 | H102: 2535.27 | I102: 2555.58 | J102: 2583.72 | K102: 2527.45 | L102: 2479 | M102: 0.0185
A103: 93 | B103: CESC | C103: 577.25 | D103: 576.08 | E103: 570.17 | F103: 563.08 | G103: 557.17 | H103: 583.17 | I103: 589.08 | J103: 596.17 | K103: 582 | L103: 569 | M103: 0.74222
A104: 94 | B104: CGCL | C104: 239.45 | D104: 240.48 | E104: 236.97 | F104: 234.48 | G104: 230.97 | H104: 242.97 | I104: 246.48 | J104: 248.97 | K104: 244 | L104: 238 | M104: 1.84949
A105: 95 | B105: CHAMBLFERT | C105: 159.55 | D105: 160.20 | E105: 157.00 | F105: 154.45 | G105: 151.25 | H105: 162.75 | I105: 165.95 | J105: 168.50 | K105: 163.4 | L105: 157.65 | M105: 5.69717
A106: 96 | B106: CHENNPETRO | C106: 63.95 | D106: 64.40 | E106: 63.35 | F106: 62.75 | G106: 61.70 | H106: 65.00 | I106: 66.05 | J106: 66.65 | K106: 65.45 | L106: 63.8 | M106: 3.32112
A107: 97 | B107: CHOLAFIN | C107: 237.25 | D107: 237.05 | E107: 233.20 | F107: 229.15 | G107: 225.30 | H107: 241.10 | I107: 244.95 | J107: 249.00 | K107: 240.9 | L107: 233 | M107: 53.19385
A108: 98 | B108: CHOLAHLDNG | C108: 377.3 | D108: 380.67 | E108: 371.43 | F108: 365.57 | G108: 356.33 | H108: 386.53 | I108: 395.77 | J108: 401.63 | K108: 389.9 | L108: 374.8 | M108: 0.64989
A109: 99 | B109: CIPLA | C109: 782.35 | D109: 776.08 | E109: 764.67 | F109: 746.98 | G109: 735.57 | H109: 793.77 | I109: 805.18 | J109: 822.87 | K109: 787.5 | L109: 758.4 | M109: 90.99048
A110: 100 | B110: COALINDIA | C110: 111.35 | D110: 111.23 | E110: 109.72 | F110: 108.08 | G110: 106.57 | H110: 112.87 | I110: 114.38 | J110: 116.02 | K110: 112.75 | L110: 109.6 | M110: 122.3107
A111: 101 | B111: COCHINSHIP | C111: 323.35 | D111: 323.40 | E111: 320.95 | F111: 318.55 | G111: 316.10 | H111: 325.80 | I111: 328.25 | J111: 330.65 | K111: 325.85 | L111: 321 | M111: 0.65452
A112: 102 | B112: COFORGE | C112: 2577.2 | D112: 2547.48 | E112: 2496.97 | F112: 2416.73 | G112: 2366.22 | H112: 2627.72 | I112: 2678.23 | J112: 2758.47 | K112: 2598 | L112: 2467.25 | M112: 10.66656
A113: 103 | B113: COLPAL | C113: 1439.3 | D113: 1435.85 | E113: 1424.55 | F113: 1409.80 | G113: 1398.50 | H113: 1450.60 | I113: 1461.90 | J113: 1476.65 | K113: 1447.15 | L113: 1421.1 | M113: 3.85128
A114: 104 | B114: CONCOR | C114: 370.85 | D114: 367.75 | E114: 363.60 | F114: 356.35 | G114: 352.20 | H114: 375.00 | I114: 379.15 | J114: 386.40 | K114: 371.9 | L114: 360.5 | M114: 17.11124
A115: 105 | B115: COROMANDEL | C115: 704.4 | D115: 707.52 | E115: 697.93 | F115: 691.47 | G115: 681.88 | H115: 713.98 | I115: 723.57 | J115: 730.03 | K115: 717.1 | L115: 701.05 | M115: 2.64856
A116: 106 | B116: CREDITACC | C116: 667.45 | D116: 670.65 | E116: 654.50 | F116: 641.55 | G116: 625.40 | H116: 683.60 | I116: 699.75 | J116: 712.70 | K116: 686.8 | L116: 657.7 | M116: 0.67586
A117: 107 | B117: CRISIL | C117: 1787.65 | D117: 1771.30 | E117: 1752.60 | F117: 1717.55 | G117: 1698.85 | H117: 1806.35 | I117: 1825.05 | J117: 1860.10 | K117: 1790 | L117: 1736.25 | M117: 0.32957
A118: 108 | B118: CROMPTON | C118: 281.05 | D118: 280.70 | E118: 278.40 | F118: 275.75 | G118: 273.45 | H118: 283.35 | I118: 285.65 | J118: 288.30 | K118: 283 | L118: 278.05 | M118: 3.65515
A119: 109 | B119: CSBBANK | C119: 230.9 | D119: 229.97 | E119: 226.93 | F119: 222.97 | G119: 219.93 | H119: 233.93 | I119: 236.97 | J119: 240.93 | K119: 233 | L119: 226 | M119: 0.60548
A120: 110 | B120: CUB | C120: 143.65 | D120: 142.70 | E120: 141.00 | F120: 138.35 | G120: 136.65 | H120: 145.35 | I120: 147.05 | J120: 149.70 | K120: 144.4 | L120: 140.05 | M120: 9.64154
A121: 111 | B121: CUMMINSIND | C121: 462 | D121: 456.40 | E121: 449.15 | F121: 436.30 | G121: 429.05 | H121: 469.25 | I121: 476.50 | J121: 489.35 | K121: 463.65 | L121: 443.55 | M121: 11.01187
A122: 112 | B122: CYIENT | C122: 389.5 | D122: 383.50 | E122: 375.00 | F122: 360.50 | G122: 352.00 | H122: 398.00 | I122: 406.50 | J122: 421.00 | K122: 392 | L122: 369 | M122: 30.27553
A123: 113 | B123: DABUR | C123: 511.7 | D123: 515.62 | E123: 506.88 | F123: 502.07 | G123: 493.33 | H123: 520.43 | I123: 529.17 | J123: 533.98 | K123: 524.35 | L123: 510.8 | M123: 25.31777
A124: 114 | B124: DALBHARAT | C124: 789.6 | D124: 784.53 | E124: 775.07 | F124: 760.53 | G124: 751.07 | H124: 799.07 | I124: 808.53 | J124: 823.07 | K124: 794 | L124: 770 | M124: 6.19784
A125: 115 | B125: DBCORP | C125: 75.3 | D125: 75.92 | E125: 74.38 | F125: 73.47 | G125: 71.93 | H125: 76.83 | I125: 78.37 | J125: 79.28 | K125: 77.45 | L125: 75 | M125: 1.22955
A126: 116 | B126: DBL | C126: 325.05 | D126: 326.03 | E126: 322.07 | F126: 319.08 | G126: 315.12 | H126: 329.02 | I126: 332.98 | J126: 335.97 | K126: 330 | L126: 323.05 | M126: 0.61841
A127: 117 | B127: DCAL | C127: 156.7 | D127: 156.73 | E127: 154.07 | F127: 151.43 | G127: 148.77 | H127: 159.37 | I127: 162.03 | J127: 164.67 | K127: 159.4 | L127: 154.1 | M127: 2.44534
A128: 118 | B128: DCBBANK | C128: 76.8 | D128: 76.68 | E128: 75.77 | F128: 74.73 | G128: 73.82 | H128: 77.72 | I128: 78.63 | J128: 79.67 | K128: 77.6 | L128: 75.65 | M128: 5.14645
A129: 119 | B129: DCMSHRIRAM | C129: 337 | D129: 338.02 | E129: 333.03 | F129: 329.07 | G129: 324.08 | H129: 341.98 | I129: 346.97 | J129: 350.93 | K129: 343 | L129: 334.05 | M129: 0.39462
A130: 120 | B130: DEEPAKNTR | C130: 718.5 | D130: 720.10 | E130: 706.50 | F130: 694.50 | G130: 680.90 | H130: 732.10 | I130: 745.70 | J130: 757.70 | K130: 733.7 | L130: 708.1 | M130: 9.83097
A131: 121 | B131: DELTACORP | C131: 105.8 | D131: 105.73 | E131: 103.67 | F131: 101.53 | G131: 99.47 | H131: 107.87 | I131: 109.93 | J131: 112.07 | K131: 107.8 | L131: 103.6 | M131: 6.93061
A132: 122 | B132: DHANUKA | C132: 736.3 | D132: 735.10 | E132: 726.20 | F132: 716.10 | G132: 707.20 | H132: 745.20 | I132: 754.10 | J132: 764.20 | K132: 744 | L132: 725 | M132: 0.73128
A133: 123 | B133: DISHTV | C133: 13 | D133: 12.67 | E133: 12.28 | F133: 11.57 | G133: 11.18 | H133: 13.38 | I133: 13.77 | J133: 14.48 | K133: 13.05 | L133: 11.95 | M133: 43.45487
A134: 124 | B134: DIVISLAB | C134: 3222.7 | D134: 3190.17 | E134: 3147.43 | F134: 3072.17 | G134: 3029.43 | H134: 3265.43 | I134: 3308.17 | J134: 3383.43 | K134: 3232.9 | L134: 3114.9 | M134: 16.645
A135: 125 | B135: DIXON | C135: 9261.7 | D135: 9143.23 | E135: 8986.47 | F135: 8711.23 | G135: 8554.47 | H135: 9418.47 | I135: 9575.23 | J135: 9850.47 | K135: 9300 | L135: 8868 | M135: 0.49375
A136: 126 | B136: DLF | C136: 162.55 | D136: 160.18 | E136: 156.12 | F136: 149.68 | G136: 145.62 | H136: 166.62 | I136: 170.68 | J136: 177.12 | K136: 164.25 | L136: 153.75 | M136: 123.49164
A137: 127 | B137: DMART | C137: 1984.2 | D137: 1984.40 | E137: 1969.80 | F137: 1955.40 | G137: 1940.80 | H137: 1998.80 | I137: 2013.40 | J137: 2027.80 | K137: 1999 | L137: 1970 | M137: 6.14032
A138: 128 | B138: DRREDDY | C138: 5080.55 | D138: 5075.18 | E138: 5025.37 | F138: 4970.18 | G138: 4920.37 | H138: 5130.37 | I138: 5180.18 | J138: 5235.37 | K138: 5125 | L138: 5020 | M138: 20.23115
A139: 129 | B139: ECLERX | C139: 700.25 | D139: 704.97 | E139: 690.53 | F139: 680.82 | G139: 666.38 | H139: 714.68 | I139: 729.12 | J139: 738.83 | K139: 719.4 | L139: 695.25 | M139: 0.61846
A140: 130 | B140: EDELWEISS | C140: 57 | D140: 57.13 | E140: 56.27 | F140: 55.53 | G140: 54.67 | H140: 57.87 | I140: 58.73 | J140: 59.47 | K140: 58 | L140: 56.4 | M140: 2.97854
A141: 131 | B141: EICHERMOT | C141: 2269.9 | D141: 2266.30 | E141: 2247.60 | F141: 2225.30 | G141: 2206.60 | H141: 2288.60 | I141: 2307.30 | J141: 2329.60 | K141: 2285 | L141: 2244 | M141: 8.16001
A142: 132 | B142: EIDPARRY | C142: 263.2 | D142: 263.27 | E142: 260.03 | F142: 256.87 | G142: 253.63 | H142: 266.43 | I142: 269.67 | J142: 272.83 | K142: 266.5 | L142: 260.1 | M142: 1.113
A143: 133 | B143: EIHOTEL | C143: 76.8 | D143: 76.33 | E143: 75.47 | F143: 74.13 | G143: 73.27 | H143: 77.67 | I143: 78.53 | J143: 79.87 | K143: 77.2 | L143: 75 | M143: 2.87776
A144: 134 | B144: ELGIEQUIP | C144: 110.15 | D144: 109.50 | E144: 107.00 | F144: 103.85 | G144: 101.35 | H144: 112.65 | I144: 115.15 | J144: 118.30 | K144: 112 | L144: 106.35 | M144: 0.36251
A145: 135 | B145: EMAMILTD | C145: 347.45 | D145: 345.90 | E145: 341.80 | F145: 336.15 | G145: 332.05 | H145: 351.55 | I145: 355.65 | J145: 361.30 | K145: 350 | L145: 340.25 | M145: 1.0401
A146: 136 | B146: ENDURANCE | C146: 1084.75 | D146: 1091.27 | E146: 1073.58 | F146: 1062.42 | G146: 1044.73 | H146: 1102.43 | I146: 1120.12 | J146: 1131.28 | K146: 1108.95 | L146: 1080.1 | M146: 0.19744
A147: 137 | B147: ENGINERSIN | C147: 61.75 | D147: 61.70 | E147: 60.45 | F147: 59.15 | G147: 57.90 | H147: 63.00 | I147: 64.25 | J147: 65.55 | K147: 62.95 | L147: 60.4 | M147: 14.29054
A148: 138 | B148: EQUITAS | C148: 49.95 | D148: 50.28 | E148: 48.82 | F148: 47.68 | G148: 46.22 | H148: 51.42 | I148: 52.88 | J148: 54.02 | K148: 51.75 | L148: 49.15 | M148: 32.08676
A149: 139 | B149: ERIS | C149: 493 | D149: 494.00 | E149: 489.00 | F149: 485.00 | G149: 480.00 | H149: 498.00 | I149: 503.00 | J149: 507.00 | K149: 499 | L149: 490 | M149: 0.49163
A150: 140 | B150: ESABINDIA | C150: 1299.75 | D150: 1309.40 | E150: 1280.35 | F150: 1260.95 | G150: 1231.90 | H150: 1328.80 | I150: 1357.85 | J150: 1377.25 | K150: 1338.45 | L150: 1290 | M150: 0.05973
A151: 141 | B151: ESCORTS | C151: 1167.6 | D151: 1183.78 | E151: 1140.02 | F151: 1112.43 | G151: 1068.67 | H151: 1211.37 | I151: 1255.13 | J151: 1282.72 | K151: 1227.55 | L151: 1156.2 | M151: 13.9092
A152: 142 | B152: ESSELPACK | C152: 253.75 | D152: 253.42 | E152: 250.83 | F152: 247.92 | G152: 245.33 | H152: 256.33 | I152: 258.92 | J152: 261.83 | K152: 256 | L152: 250.5 | M152: 2.27092
A153: 143 | B153: EXIDEIND | C153: 159.8 | D153: 158.83 | E153: 157.47 | F153: 155.13 | G153: 153.77 | H153: 161.17 | I153: 162.53 | J153: 164.87 | K153: 160.2 | L153: 156.5 | M153: 13.74951
A154: 144 | B154: FCONSUMER | C154: 7 | D154: 7.07 | E154: 6.93 | F154: 6.87 | G154: 6.73 | H154: 7.13 | I154: 7.27 | J154: 7.33 | K154: 7.2 | L154: 7 | M154: 44.11968
A155: 145 | B155: FDC | C155: 348.2 | D155: 345.25 | E155: 341.05 | F155: 333.90 | G155: 329.70 | H155: 352.40 | I155: 356.60 | J155: 363.75 | K155: 349.45 | L155: 338.1 | M155: 1.5818
A156: 146 | B156: FEDERALBNK | C156: 52.2 | D156: 52.37 | E156: 51.23 | F156: 50.27 | G156: 49.13 | H156: 53.33 | I156: 54.47 | J156: 55.43 | K156: 53.5 | L156: 51.4 | M156: 441.8883
A157: 147 | B157: FINCABLES | C157: 273.45 | D157: 274.13 | E157: 269.37 | F157: 265.28 | G157: 260.52 | H157: 278.22 | I157: 282.98 | J157: 287.07 | K157: 278.9 | L157: 270.05 | M157: 1.11802
A158: 148 | B158: FINEORG | C158: 2566.55 | D158: 2555.20 | E158: 2535.50 | F158: 2504.45 | G158: 2484.75 | H158: 2586.25 | I158: 2605.95 | J158: 2637.00 | K158: 2574.9 | L158: 2524.15 | M158: 0.16765
A159: 149 | B159: FINPIPE | C159: 517.9 | D159: 516.50 | E159: 513.40 | F159: 508.90 | G159: 505.80 | H159: 521.00 | I159: 524.10 | J159: 528.60 | K159: 519.6 | L159: 512 | M159: 0.14863
A160: 150 | B160: FLUOROCHEM | C160: 490 | D160: 492.75 | E160: 480.60 | F160: 471.20 | G160: 459.05 | H160: 502.15 | I160: 514.30 | J160: 523.70 | K160: 504.9 | L160: 483.35 | M160: 0.56793
A161: 151 | B161: FORTIS | C161: 127.05 | D161: 127.02 | E161: 125.53 | F161: 124.02 | G161: 122.53 | H161: 128.53 | I161: 130.02 | J161: 131.53 | K161: 128.5 | L161: 125.5 | M161: 14.96402
A162: 152 | B162: FRETAIL | C162: 73.65 | D162: 74.27 | E162: 72.88 | F162: 72.12 | G162: 70.73 | H162: 75.03 | I162: 76.42 | J162: 77.18 | K162: 75.65 | L162: 73.5 | M162: 14.28702
A163: 153 | B163: FSL | C163: 70.25 | D163: 69.30 | E163: 67.65 | F163: 65.05 | G163: 63.40 | H163: 71.90 | I163: 73.55 | J163: 76.15 | K163: 70.95 | L163: 66.7 | M163: 20.17306
A164: 154 | B164: GAIL | C164: 84 | D164: 83.53 | E164: 82.87 | F164: 81.73 | G164: 81.07 | H164: 84.67 | I164: 85.33 | J164: 86.47 | K164: 84.2 | L164: 82.4 | M164: 110.36039
A165: 155 | B165: GALAXYSURF | C165: 1716.85 | D165: 1729.58 | E165: 1699.27 | F165: 1681.68 | G165: 1651.37 | H165: 1747.17 | I165: 1777.48 | J165: 1795.07 | K165: 1759.9 | L165: 1712 | M165: 0.19316
A166: 156 | B166: GARFIBRES | C166: 1988.95 | D166: 2013.50 | E166: 1941.00 | F166: 1893.05 | G166: 1820.55 | H166: 2061.45 | I166: 2133.95 | J166: 2181.90 | K166: 2086 | L166: 1965.55 | M166: 0.19273
A167: 157 | B167: GEPIL | C167: 382.35 | D167: 385.27 | E167: 377.03 | F167: 371.72 | G167: 363.48 | H167: 390.58 | I167: 398.82 | J167: 404.13 | K167: 393.5 | L167: 379.95 | M167: 0.1835
A168: 158 | B168: GESHIP | C168: 235.05 | D168: 231.90 | E168: 227.80 | F168: 220.55 | G168: 216.45 | H168: 239.15 | I168: 243.25 | J168: 250.50 | K168: 236 | L168: 224.65 | M168: 1.67661
A169: 159 | B169: GET&D | C169: 87.95 | D169: 87.50 | E169: 86.00 | F169: 84.05 | G169: 82.55 | H169: 89.45 | I169: 90.95 | J169: 92.90 | K169: 89 | L169: 85.55 | M169: 0.19568
A170: 160 | B170: GHCL | C170: 143.75 | D170: 143.52 | E170: 141.53 | F170: 139.32 | G170: 137.33 | H170: 145.73 | I170: 147.72 | J170: 149.93 | K170: 145.5 | L170: 141.3 | M170: 0.51169
A171: 161 | B171: GICRE | C171: 119.1 | D171: 119.60 | E171: 118.00 | F171: 116.90 | G171: 115.30 | H171: 120.70 | I171: 122.30 | J171: 123.40 | K171: 121.2 | L171: 118.5 | M171: 0.65108
A172: 162 | B172: GILLETTE | C172: 5289.25 | D172: 5297.42 | E172: 5244.83 | F172: 5200.42 | G172: 5147.83 | H172: 5341.83 | I172: 5394.42 | J172: 5438.83 | K172: 5350 | L172: 5253 | M172: 0.03194
A173: 163 | B173: GLAXO | C173: 1517.25 | D173: 1532.43 | E173: 1495.82 | F173: 1474.38 | G173: 1437.77 | H173: 1553.87 | I173: 1590.48 | J173: 1611.92 | K173: 1569.05 | L173: 1511 | M173: 0.77576
A174: 164 | B174: GLENMARK | C174: 490.9 | D174: 486.78 | E174: 473.12 | F174: 455.33 | G174: 441.67 | H174: 504.57 | I174: 518.23 | J174: 536.02 | K174: 500.45 | L174: 469 | M174: 51.10313
A175: 165 | B175: GMDCLTD | C175: 44.4 | D175: 44.33 | E175: 43.62 | F175: 42.83 | G175: 42.12 | H175: 45.12 | I175: 45.83 | J175: 46.62 | K175: 45.05 | L175: 43.55 | M175: 3.95031
A176: 166 | B176: GMMPFAUDLR | C176: 3539.4 | D176: 3537.40 | E176: 3512.00 | F176: 3484.60 | G176: 3459.20 | H176: 3564.80 | I176: 3590.20 | J176: 3617.60 | K176: 3562.8 | L176: 3510 | M176: 0.3573
A177: 167 | B177: GMRINFRA | C177: 23.75 | D177: 23.58 | E177: 23.27 | F177: 22.78 | G177: 22.47 | H177: 24.07 | I177: 24.38 | J177: 24.87 | K177: 23.9 | L177: 23.1 | M177: 52.72707
A178: 168 | B178: GNFC | C178: 196.9 | D178: 195.00 | E178: 191.50 | F178: 186.10 | G178: 182.60 | H178: 200.40 | I178: 203.90 | J178: 209.30 | K178: 198.5 | L178: 189.6 | M178: 5.86516
A179: 169 | B179: GODFRYPHLP | C179: 859.8 | D179: 865.35 | E179: 852.70 | F179: 845.60 | G179: 832.95 | H179: 872.45 | I179: 885.10 | J179: 892.20 | K179: 878 | L179: 858.25 | M179: 0.2939
A180: 170 | B180: GODREJAGRO | C180: 526.05 | D180: 523.95 | E180: 516.95 | F180: 507.85 | G180: 500.85 | H180: 533.05 | I180: 540.05 | J180: 549.15 | K180: 530.95 | L180: 514.85 | M180: 0.57833
A181: 171 | B181: GODREJCP | C181: 677.85 | D181: 680.33 | E181: 672.52 | F181: 667.18 | G181: 659.37 | H181: 685.67 | I181: 693.48 | J181: 698.82 | K181: 688.15 | L181: 675 | M181: 12.92241
A182: 172 | B182: GODREJIND | C182: 376.2 | D182: 378.98 | E182: 370.97 | F182: 365.73 | G182: 357.72 | H182: 384.22 | I182: 392.23 | J182: 397.47 | K182: 387 | L182: 373.75 | M182: 0.75462
A183: 173 | B183: GODREJPROP | C183: 865.25 | D183: 857.32 | E183: 843.48 | F183: 821.72 | G183: 807.88 | H183: 879.08 | I183: 892.92 | J183: 914.68 | K183: 871.15 | L183: 835.55 | M183: 7.85888
A184: 174 | B184: GPPL | C184: 90.85 | D184: 89.05 | E184: 85.20 | F184: 79.55 | G184: 75.70 | H184: 94.70 | I184: 98.55 | J184: 104.20 | K184: 92.9 | L184: 83.4 | M184: 11.76261
A185: 175 | B185: GRANULES | C185: 387.65 | D185: 379.88 | E185: 369.27 | F185: 350.88 | G185: 340.27 | H185: 398.27 | I185: 408.88 | J185: 427.27 | K185: 390.5 | L185: 361.5 | M185: 18.89176
A186: 176 | B186: GRAPHITE | C186: 189.6 | D186: 190.83 | E186: 186.87 | F186: 184.13 | G186: 180.17 | H186: 193.57 | I186: 197.53 | J186: 200.27 | K186: 194.8 | L186: 188.1 | M186: 3.25657
A187: 177 | B187: GRASIM | C187: 772.7 | D187: 766.45 | E187: 756.25 | F187: 739.80 | G187: 729.60 | H187: 782.90 | I187: 793.10 | J187: 809.55 | K187: 776.65 | L187: 750 | M187: 17.65026
A188: 178 | B188: GREAVESCOT | C188: 71.2 | D188: 71.20 | E188: 70.30 | F188: 69.40 | G188: 68.50 | H188: 72.10 | I188: 73.00 | J188: 73.90 | K188: 72.1 | L188: 70.3 | M188: 2.04384
A189: 179 | B189: GRINDWELL | C189: 551.8 | D189: 550.68 | E189: 546.47 | F189: 541.13 | G189: 536.92 | H189: 556.02 | I189: 560.23 | J189: 565.57 | K189: 554.9 | L189: 545.35 | M189: 0.15616
A190: 180 | B190: GRSE | C190: 197.65 | D190: 198.63 | E190: 196.02 | F190: 194.38 | G190: 191.77 | H190: 200.27 | I190: 202.88 | J190: 204.52 | K190: 201.25 | L190: 197 | M190: 0.41355
A191: 181 | B191: GSFC | C191: 64.1 | D191: 63.47 | E191: 62.13 | F191: 60.17 | G191: 58.83 | H191: 65.43 | I191: 66.77 | J191: 68.73 | K191: 64.8 | L191: 61.5 | M191: 7.42666
A192: 182 | B192: GSPL | C192: 187.35 | D192: 185.95 | E192: 182.95 | F192: 178.55 | G192: 175.55 | H192: 190.35 | I192: 193.35 | J192: 197.75 | K192: 188.95 | L192: 181.55 | M192: 5.77431
A193: 183 | B193: GUJALKALI | C193: 314.1 | D193: 314.95 | E193: 310.20 | F193: 306.30 | G193: 301.55 | H193: 318.85 | I193: 323.60 | J193: 327.50 | K193: 319.7 | L193: 311.05 | M193: 0.5601
A194: 184 | B194: GUJGASLTD | C194: 291.8 | D194: 294.15 | E194: 288.50 | F194: 285.20 | G194: 279.55 | H194: 297.45 | I194: 303.10 | J194: 306.40 | K194: 299.8 | L194: 290.85 | M194: 1.82683
A195: 185 | B195: GULFOILLUB | C195: 636.7 | D195: 634.63 | E195: 629.27 | F195: 621.83 | G195: 616.47 | H195: 642.07 | I195: 647.43 | J195: 654.87 | K195: 640 | L195: 627.2 | M195: 0.06655
A196: 186 | B196: HAL | C196: 743.4 | D196: 747.15 | E196: 736.25 | F196: 729.10 | G196: 718.20 | H196: 754.30 | I196: 765.20 | J196: 772.35 | K196: 758.05 | L196: 740 | M196: 2.84112
A197: 187 | B197: HATHWAY | C197: 31.4 | D197: 31.97 | E197: 30.43 | F197: 29.47 | G197: 27.93 | H197: 32.93 | I197: 34.47 | J197: 35.43 | K197: 33.5 | L197: 31 | M197: 3.42715
A198: 188 | B198: HATSUN | C198: 841.5 | D198: 837.17 | E198: 824.33 | F198: 807.17 | G198: 794.33 | H198: 854.33 | I198: 867.17 | J198: 884.33 | K198: 850 | L198: 820 | M198: 0.42427
A199: 189 | B199: HAVELLS | C199: 697.5 | D199: 693.40 | E199: 685.80 | F199: 674.10 | G199: 666.50 | H199: 705.10 | I199: 712.70 | J199: 724.40 | K199: 701 | L199: 681.7 | M199: 14.66874
A200: 190 | B200: HCLTECH | C200: 827.15 | D200: 841.58 | E200: 806.17 | F200: 785.18 | G200: 749.77 | H200: 862.57 | I200: 897.98 | J200: 918.97 | K200: 877 | L200: 820.6 | M200: 289.83265
A201: 191 | B201: HDFC | C201: 1961.7 | D201: 1961.58 | E201: 1939.47 | F201: 1917.23 | G201: 1895.12 | H201: 1983.82 | I201: 2005.93 | J201: 2028.17 | K201: 1983.7 | L201: 1939.35 | M201: 32.38617
A202: 192 | B202: HDFCAMC | C202: 2284.4 | D202: 2281.65 | E202: 2263.40 | F202: 2242.40 | G202: 2224.15 | H202: 2302.65 | I202: 2320.90 | J202: 2341.90 | K202: 2299.9 | L202: 2260.65 | M202: 1.16422
A203: 193 | B203: HDFCBANK | C203: 1199.35 | D203: 1191.95 | E203: 1180.40 | F203: 1161.45 | G203: 1149.90 | H203: 1210.90 | I203: 1222.45 | J203: 1241.40 | K203: 1203.5 | L203: 1173 | M203: 129.11559
A204: 194 | B204: HDFCLIFE | C204: 561.15 | D204: 562.30 | E204: 558.35 | F204: 555.55 | G204: 551.60 | H204: 565.10 | I204: 569.05 | J204: 571.85 | K204: 566.25 | L204: 559.5 | M204: 21.17294
A205: 195 | B205: HEG | C205: 714.75 | D205: 715.32 | E205: 709.13 | F205: 703.52 | G205: 697.33 | H205: 720.93 | I205: 727.12 | J205: 732.73 | K205: 721.5 | L205: 709.7 | M205: 1.40746
A206: 196 | B206: HEIDELBERG | C206: 182.95 | D206: 183.53 | E206: 181.32 | F206: 179.68 | G206: 177.47 | H206: 185.17 | I206: 187.38 | J206: 189.02 | K206: 185.75 | L206: 181.9 | M206: 2.13506
... 320 more rows

Sheet Bulk Deals
E6: Back To Main Page
A7: Subject : | B7: BULK DEAL | D7: =Main!B10 -> 2020-10-19
A9: Date | B9: Scrip code | C9: Scrip Name | D9: Client Name | E9: Buy / Sell | F9: Quantity Traded | G9: Trade Price / Wt.Avg.trade price | H9: Exchange
A10: 2020-10-16 | B10: 511463 | C10: ALEXANDER | D10: HEMLATABEN ROHITKUMAR PANDYA | E10: BUY | F10: 43,790 | G10: 15.19 | H10: BSE
A11: 2020-10-16 | B11: 512169 | C11: CAPRICORN | D11: SUBHASH NAVRANG KANOJIYA | E11: SELL | F11: 20,822 | G11: 6.5 | H11: BSE
A12: 2020-10-16 | B12: 512169 | C12: CAPRICORN | D12: ARMINDER SINGH | E12: BUY | F12: 26,000 | G12: 6.48 | H12: BSE
A13: 2020-10-16 | B13: 539679 | C13: KAPILRAJ | D13: CHETAN KISHOR BHIMJIYANI | E13: BUY | F13: 31,150 | G13: 9 | H13: BSE
A14: 2020-10-16 | B14: 539679 | C14: KAPILRAJ | D14: SANJEEV BURMAN JHAVERI | E14: SELL | F14: 158,000 | G14: 9 | H14: BSE
A15: 2020-10-16 | B15: 539679 | C15: KAPILRAJ | D15: KARTIK NARENDRA SHAH | E15: BUY | F15: 26,750 | G15: 9 | H15: BSE
A16: 2020-10-16 | B16: 543240 | C16: LIKHITHA | D16: NIRAJ RAJNIKANT SHAH | E16: BUY | F16: 112,080 | G16: 142.78 | H16: BSE
A17: 2020-10-16 | B17: 534532 | C17: LYPSAGEMS | D17: SIMPLEX TRADING & AGENCIES LTD | E17: SELL | F17: 294,000 | G17: 2.75 | H17: BSE
A18: 2020-10-16 | B18: 531637 | C18: PRAVEG | D18: SHAILESHKUMAR HANSRAJBHAI PATEL | E18: SELL | F18: 53,368 | G18: 55.4 | H18: BSE
A19: 2020-10-16 | B19: 542019 | C19: SHUBHAM | D19: ABHISHEK PREMNARAYAN PARWAL HUF | E19: BUY | F19: 30,000 | G19: 56.5 | H19: BSE
A20: 2020-10-16 | B20: 542019 | C20: SHUBHAM | D20: RITWIK GARG | E20: BUY | F20: 39,000 | G20: 56.5 | H20: BSE
A21: 2020-10-16 | B21: 542019 | C21: SHUBHAM | D21: BIPINKUMAR KHODIDAS NADIYA | E21: SELL | F21: 69,000 | G21: 56.5 | H21: BSE
A22: 2020-10-16 | B22: 502742 | C22: SINTEX | D22: CHANDARANA SHARES & STOCKS PRIVATE LIMITED | E22: BUY | F22: 2,000,000 | G22: 2.55 | H22: BSE
A23: 2020-10-16 | B23: 502742 | C23: SINTEX | D23: CHANDARANA SHARES & STOCKS PRIVATE LIMITED | E23: SELL | F23: 3,180,065 | G23: 2.62 | H23: BSE
A24: 2020-10-16 | B24: AAATECH | C24: AAA Technologies Limited | D24: NIKUNJ ANILKUMAR MITTAL | E24: BUY | F24: 45,000 | G24: 43.64 | H24: NSE
A25: 2020-10-16 | B25: AAATECH | C25: AAA Technologies Limited | D25: MIKER FINANCIAL CONSULTANTS PVT LTD | E25: BUY | F25: 84,000 | G25: 43.06 | H25: NSE
A26: 2020-10-16 | B26: ATALREAL | C26: Atal Realtech Limited | D26: TIA ENTERPRISES PRIVATE LIMITED | E26: BUY | F26: 51,200 | G26: 65 | H26: NSE
A27: 2020-10-16 | B27: ATALREAL | C27: Atal Realtech Limited | D27: AMRUTLAL GORDHANDAS THOBHANI | E27: BUY | F27: 35,200 | G27: 64 | H27: NSE
A28: 2020-10-16 | B28: AURDIS | C28: Aurangabad Distillery Ltd | D28: AS FINALYSIS VENTURES LLP | E28: BUY | F28: 44,000 | G28: 26 | H28: NSE
A29: 2020-10-16 | B29: BANARBEADS | C29: Banaras Beads Ltd | D29: DEEP AGARWAL | E29: BUY | F29: 45,045 | G29: 68.51 | H29: NSE
A30: 2020-10-16 | B30: HSIL | C30: HSIL Limited | D30: HSIL LIMITED | E30: BUY | F30: 550,000 | G30: 72.08 | H30: NSE
A31: 2020-10-16 | B31: JUSTDIAL | C31: Justdial Ltd. | D31: XTX MARKETS LLP | E31: BUY | F31: 405,678 | G31: 487.63 | H31: NSE
A32: 2020-10-16 | B32: JUSTDIAL | C32: Justdial Ltd. | D32: GRAVITON RESEARCH CAPITAL LLP | E32: BUY | F32: 692,187 | G32: 489.02 | H32: NSE
A33: 2020-10-16 | B33: LIKHITHA | C33: Likhitha Infrastruc Ltd | D33: SHAH NIRAJ RAJNIKANT | E33: BUY | F33: 124,180 | G33: 139.8 | H33: NSE
A34: 2020-10-16 | B34: LIKHITHA | C34: Likhitha Infrastruc Ltd | D34: HET FINANCE PRIVATE LIMITED | E34: BUY | F34: 250,000 | G34: 141.98 | H34: NSE
A35: 2020-10-16 | B35: LIKHITHA | C35: Likhitha Infrastruc Ltd | D35: B M TRADERS | E35: BUY | F35: 103,001 | G35: 140.76 | H35: NSE
A36: 2020-10-16 | B36: REFEX | C36: Refex Industries Limited | D36: ALPHA LEON ENTERPRISES LLP | E36: BUY | F36: 183,550 | G36: 53.29 | H36: NSE
A37: 2020-10-16 | B37: ROUTE | C37: ROUTE MOBILE LIMITED | D37: THELEME MASTER FUND LIMITED | E37: BUY | F37: 334,493 | G37: 694.5 | H37: NSE
A38: 2020-10-16 | B38: ROUTE | C38: ROUTE MOBILE LIMITED | D38: THELEME MASTER FUND LIMITED | E38: BUY | F38: 434,275 | G38: 687.6 | H38: NSE
A39: 2020-10-16 | B39: SIKKO | C39: Sikko Industries Limited | D39: ELITE ACCFIN SOLUTIONS PRIVATE LIMITED | E39: BUY | F39: 36,000 | G39: 26.49 | H39: NSE
A40: 2020-10-16 | B40: VERTOZ | C40: Vertoz Advertising Ltd | D40: SHREE SHIVSHAKTI PROJECT CONSULTANT PRIVATE LIMITE | E40: BUY | F40: 90,879 | G40: 164.34 | H40: NSE
A41: 2020-10-16 | B41: AAATECH | C41: AAA Technologies Limited | D41: BNK CAPITAL MARKETS LTD. | E41: SELL | F41: 48,000 | G41: 42.8 | H41: NSE
A42: 2020-10-16 | B42: AAATECH | C42: AAA Technologies Limited | D42: MIKER FINANCIAL CONSULTANTS PVT LTD | E42: SELL | F42: 9,000 | G42: 43.43 | H42: NSE
A43: 2020-10-16 | B43: AAATECH | C43: AAA Technologies Limited | D43: NIKUNJ ANILKUMAR MITTAL | E43: SELL | F43: 9,000 | G43: 43.9 | H43: NSE
A44: 2020-10-16 | B44: ATALREAL | C44: Atal Realtech Limited | D44: SHAH AMAR MUKESHKUMAR HUF | E44: SELL | F44: 60,800 | G44: 65 | H44: NSE
A45: 2020-10-16 | B45: BANARBEADS | C45: Banaras Beads Ltd | D45: DEEP AGARWAL | E45: SELL | F45: 33,420 | G45: 68.78 | H45: NSE
A46: 2020-10-16 | B46: JUSTDIAL | C46: Justdial Ltd. | D46: XTX MARKETS LLP | E46: SELL | F46: 399,779 | G46: 488.83 | H46: NSE
A47: 2020-10-16 | B47: JUSTDIAL | C47: Justdial Ltd. | D47: GRAVITON RESEARCH CAPITAL LLP | E47: SELL | F47: 692,187 | G47: 489.13 | H47: NSE
A48: 2020-10-16 | B48: LIKHITHA | C48: Likhitha Infrastruc Ltd | D48: B M TRADERS | E48: SELL | F48: 21,100 | G48: 140.58 | H48: NSE
A49: 2020-10-16 | B49: LIKHITHA | C49: Likhitha Infrastruc Ltd | D49: HSQUARE GLOBETRADE LLP | E49: SELL | F49: 250,000 | G49: 141.95 | H49: NSE
A50: 2020-10-16 | B50: REFEX | C50: Refex Industries Limited | D50: ALPHA LEON ENTERPRISES LLP | E50: SELL | F50: 182,050 | G50: 53.4 | H50: NSE
A51: 2020-10-16 | B51: VERTOZ | C51: Vertoz Advertising Ltd | D51: SHREE SHIVSHAKTI PROJECT CONSULTANT PRIVATE LIMITE | E51: SELL | F51: 80,079 | G51: 164.64 | H51: NSE

Sheet Call Tracker (Equity & F&O)
M5: Back To Main Page
A6: Retail Research Technical Calls & Fundamental Performance Report for the month of October-2020
M7: =Main!B10 -> 2020-10-19
B8: Positional Call
A9: Sr.no | B9: Date | D9: Company | E9: Rec | F9: Rec Price | G9: Stop Loss*** | H9: Call Closed At | I9: Target | J9: Remark | K9: Profit / Loss per Share | L9: All charges | M9: Net Gain / Loss % | N9: Status | O9: Closed Date
A10: 1 | B10: 2020-08-21 | D10: VGUARD | E10: Buy | F10: 172 | G10: 160.00 | H10: 180.50 | I10: 195 | J10: Part Profit of Rs.8.5/- | K10: =H10-F10 -> 8.5 | L10: =(F10*-0.8)/100 -> -1.38 | M10: =(K10+L10)/F10 -> 4.14% | N10: Successful | O10: 2020-08-27 | R10: N
A11: 2 | B11: 2020-09-02 | D11: NESTLEIND | E11: Buy | F11: 15900-16100 | G11: 15300 | I11: 17000-17500 | J11: Open | R11: H
A12: 3 | B12: 2020-09-14 | D12: JKLAKSHMI | E12: Buy | F12: 263.5 | G12: 248.00 | H12: 274.00 | I12: 290 | J12: Part Profit of Rs.10.50/- | K12: =H12-F12 -> 10.5 | L12: =(F12*-0.8)/100 -> -2.11 | M12: =(K12+L12)/F12 -> 3.18% | N12: Successful | O12: 2020-09-17 | R12: N
A13: 4 | B13: 2020-09-14 | D13: GODFRYPHLP | E13: Buy | F13: 925 | G13: 870 | H13: 865.00 | I13: 1020-1050 | J13: Loss of Rs.60/- | K13: -60 | L13: =(F13*-0.7)/100 -> -6.48 | M13: =(K13+L13)/F13 -> -7.19% | N13: Unsuccessful | O13: 2020-10-16 | R13: H
A14: 5 | B14: 2020-09-14 | D14: HAVELLS | E14: Buy | F14: 663 | G14: 630 | H14: 700.00 | I14: 730 | J14: Profit of Rs.37/- | K14: =H14-F14 -> 37 | L14: =(F14*-0.8)/100 -> -5.304 | M14: =(K14+L14)/F14 -> 4.78% | N14: Successful | O14: 2020-10-09 | R14: N
A15: 6 | B15: 2020-09-17 | D15: SIEMENS | E15: Buy | F15: 1247 | G15: 1,180.00 | H15: 1,297.50 | I15: 1350-1380 | J15: Part Profit of Rs.50.50/- | K15: =H15-F15 -> 50.5 | L15: =(F15*-0.8)/100 -> -9.98 | M15: =(K15+L15)/F15 -> 3.25% | N15: Successful | O15: 2020-10-08 | R15: N
A16: 7 | B16: 2020-09-22 | D16: AARTIIND | E16: Buy | F16: 1050 | G16: 980 | H16: 976.00 | I16: 1150 | J16: Loss of Rs.74/- | K16: -74 | L16: =(F16*-0.7)/100 -> -7.35 | M16: =(K16+L16)/F16 -> -7.75% | N16: Unsuccessful | O16: 2020-10-15 | R16: H
A17: 8 | B17: 2020-09-23 | D17: ITC | E17: Buy | F17: 176.5-177.5 | G17: 166 | I17: 190-195 | J17: Open | R17: H
A18: 9 | B18: 2020-09-23 | D18: WHIRLPOOL | E18: Buy | F18: 2110 | G18: 1,980.00 | H18: 2,192.50 | I18: 2300-2350 | J18: Part Profit of Rs.82.50/- | K18: =H18-F18 -> 82.5 | L18: =(F18*-0.7)/100 -> -14.77 | M18: =(K18+L18)/F18 -> 3.21% | N18: Successful | O18: 2020-09-29 | R18: H
A19: 10 | B19: 2020-09-23 | D19: CONCOR | E19: Buy | F19: 372.5 | G19: 350.00 | H19: 386.50 | I19: 405-415 | J19: Part Profit of Rs.14/- | K19: =H19-F19 -> 14 | L19: =(F19*-0.7)/100 -> -2.61 | M19: =(K19+L19)/F19 -> 3.06% | N19: Successful | O19: 2020-09-28 | R19: N
A20: 11 | B20: 2020-09-29 | D20: HINDALCO | E20: Buy | F20: 174 | G20: 163.00 | H20: 181.50 | I20: 195 | J20: Part Profit of Rs.7.50/- | K20: 7.5 | L20: =(F20*-0.8)/100 -> -1.39 | M20: =(K20+L20)/F20 -> 3.51% | N20: Successful | O20: 2020-10-09 | R20: A
A21: 12 | B21: 2020-09-29 | D21: DALBHARAT | E21: Buy | F21: 785 | G21: 735.00 | H21: 823.00 | I21: 850-870 | J21: Part Profit of Rs.38/- | K21: =H21-F21 -> 38 | L21: =(F21*-0.8)/100 -> -6.28 | M21: =(K21+L21)/F21 -> 4.04% | N21: Successful | O21: 2020-10-13 | R21: N
A22: 13 | B22: 2020-10-01 | D22: HDFC | E22: Buy | F22: 1787.5 | G22: 1690 | H22: 1,935.00 | I22: 1950-2000 | J22: Profit of Rs.147.50/- | K22: =H22-F22 -> 147.5 | L22: =(F22*-0.8)/100 -> -14.3 | M22: =(K22+L22)/F22 -> 7.45% | N22: Successful | O22: 2020-10-06 | R22: A
A23: 14 | B23: 2020-10-06 | D23: M&M | E23: Buy | F23: 619 | G23: 590.00 | H23: 646.00 | I23: 690 | J23: Part Profit of Rs.27/- | K23: 27 | L23: -4.95 | M23: =(K23+L23)/F23 -> 3.56% | N23: Successful | O23: 2020-10-09 | R23: A
A24: 15 | B24: 2020-10-06 | D24: MARUTI | E24: Buy | F24: 6880-6900 | G24: 6600 | I24: 7450 | J24: Open | R24: A
A25: 16 | B25: 2020-10-08 | D25: HDFCLIFE | E25: Buy | F25: 580-583 | G25: 548 | I25: 640 | J25: Open | R25: N
A26: 17 | B26: 2020-10-09 | D26: LT | E26: Buy | F26: 895-900 | G26: 840 | I26: 1000-1020 | J26: Open | R26: N
A34: CLBS = Closing Basis ***
A35: Dividend adjusted <> | F35: Reinitiated $
A36: Part book {} | F36: Revised stoploss #
B38: Momentum Call
A39: Sr.no | B39: Date | D39: Company | E39: Rec | F39: Rec Price | G39: Stop Loss | H39: Call Closed At | I39: Target | J39: Remark | K39: Profit / Loss per Share/Lot | L39: All charges | M39: Net Gain / Loss % | N39: Status | O39: Closed Date
A40: 1 | B40: 2020-09-28 | D40: CESC | E40: Buy | F40: 623 | G40: 602 | H40: 603.00 | I40: 650-660 | J40: Loss of Rs. 20/- | K40: =H40-F40 -> -20 | L40: =(F40*-0.07)/100 -> -0.44 | M40: =(K40+L40)/F40 -> -3.28% | N40: Unsuccessful | O40: 2020-10-08 | R40: N
A41: 2 | B41: 2020-09-30 | D41: NATCOPHARM | E41: Buy | F41: 967.5 | G41: 940 | H41: 940.00 | I41: 1025 | J41: Loss of Rs. 27.50/- | K41: =H41-F41 -> -27.5 | L41: =(F41*-0.7)/100 -> -6.77 | M41: =(K41+L41)/F41 -> -3.54% | N41: Unsuccessful | O41: 2020-10-01 | R41: N
A42: 3 | B42: 2020-09-30 | D42: SBILIFE | E42: Buy | F42: 802.5 | G42: 770 | H42: 821.00 | I42: 850-860 | J42: Profit of Rs.18.50/- | K42: 18.5 | L42: -5.62 | M42: 1.61% | N42: Successful | O42: 2020-10-01 | R42: N
A43: 4 | B43: 2020-10-01 | D43: CENTURYTEX | E43: Buy | F43: 334 | G43: 323 | H43: 339.50 | I43: 355 | J43: Profit of Rs.5.50/- | K43: 5.5 | L43: =(F43*-0.07)/100 -> -0.23 | M43: 1.58% | N43: Successful | O43: 2020-10-01 | R43: N
A44: 5 | B44: 2020-10-01 | D44: RELAXO | E44: Buy | F44: 667-670 | G44: 648 | I44: 700 | J44: Open | R44: N
A45: 6 | B45: 2020-10-05 | D45: CADILAHC | E45: Buy | F45: 396 | G45: 385 | H45: 402.50 | I45: 425 | J45: Profit of Rs.6.50/- | K45: =H45-F45 -> 6.5 | L45: =(F45*-0.07)/100 -> -0.28 | M45: =(K45+L45)/F45 -> 1.57% | N45: Successful | O45: 2020-10-05 | R45: N
A46: 7 | B46: 2020-10-05 | D46: LTI | E46: Buy | F46: 2550 | G46: 2475 | H46: 2,612.50 | I46: 2600 | J46: Profit of Rs.62.50/- | K46: 62.5 | L46: =(F46*-0.7)/100 -> -17.85 | M46: 1.75% | N46: Successful | O46: 2020-10-06 | R46: N
A47: 8 | B47: 2020-10-05 | D47: CENTURYTEX | E47: Buy | F47: 335 | G47: 323 | H47: 344.00 | I47: 355 | J47: Profit of Rs.9/- | K47: 9 | L47: -2.35 | M47: 1.99% | N47: Successful | O47: 2020-10-06 | R47: N
A48: 9 | B48: 2020-10-06 | D48: LICHSGFIN | E48: Buy | F48: 283.5 | G48: 276 | H48: 291.50 | I48: 300 | J48: Profit of Rs.8/- | K48: 8 | L48: =(F48*-0.07)/100 -> -0.20 | M48: =(K48+L48)/F48 -> 2.75% | N48: Successful | O48: 2020-10-06 | R48: A
A49: 10 | B49: 2020-10-07 | D49: BIOCON | E49: Buy | F49: 457 | G49: 445 | H49: 472.00 | I49: 480-485 | J49: Profit of Rs.15/- | K49: =H49-F49 -> 15 | L49: =(F49*-0.7)/100 -> -3.20 | M49: 2.58% | N49: Successful | O49: 2020-10-08 | R49: N
A50: 11 | B50: 2020-10-07 | D50: LAURUSLABS | E50: Buy | F50: 319 | G50: 309 | H50: 326.00 | I50: 340 | J50: Profit of Rs.7/- | K50: =H50-F50 -> 7 | L50: =(F50*-0.07)/100 -> -0.22 | M50: =(K50+L50)/F50 -> 2.12% | N50: Successful | O50: 2020-10-07 | R50: N
A51: 12 | B51: 2020-10-08 | D51: NAUKRI | E51: Buy | F51: 3505 | G51: 3430 | H51: 3,585.00 | I51: 3650 | J51: Profit of Rs.80/- | K51: 80 | L51: =(F51*-0.7)/100 -> -24.54 | M51: 1.58% | N51: Successful | O51: 2020-10-13 | R51: N
A52: 13 | B52: 2020-10-08 | D52: CENTURYTEX | E52: Buy | F52: 339 | G52: 328 | H52: 328.00 | I52: 360 | J52: Loss of Rs. 11/- | K52: =H52-F52 -> -11 | L52: =(F52*-0.7)/100 -> -2.37 | M52: =(K52+L52)/F52 -> -3.94% | N52: Unsuccessful | O52: 2020-10-12 | R52: N
A53: 14 | B53: 2020-10-13 | D53: BATAINDIA | E53: Buy | F53: 1360-1365 | G53: 1315 | I53: 1420-1440 | J53: Open | R53: N
A54: 15 | B54: 2020-10-13 | D54: KEC | E54: Buy | F54: 348 | G54: 336 | H54: 336.00 | I54: 365-370 | J54: Loss of Rs. 12/- | K54: =H54-F54 -> -12 | L54: =(F54*-0.7)/100 -> -2.44 | M54: =(K54+L54)/F54 -> -4.15% | N54: Unsuccessful | O54: 2020-10-14 | R54: N
A55: 16 | B55: 2020-10-14 | D55: BIOCON | E55: Buy | F55: 446 | G55: 433 | H55: 433.00 | I55: 470-475 | J55: Loss of Rs. 13/- | K55: =H55-F55 -> -13 | L55: =(F55*-0.7)/100 -> -3.12 | M55: =(K55+L55)/F55 -> -3.61% | N55: Unsuccessful | O55: 2020-10-15 | R55: N
A56: 17 | B56: 2020-10-14 | D56: CROMPTON | E56: Buy | F56: 276.5-277.5 | G56: 269 | I56: 290 | J56: Open | R56: N
A57: 18 | B57: 2020-10-15 | D57: BHARTIARTL | E57: Buy | F57: 399-401 | G57: 387 | I57: 420-425 | J57: Open
A58: 19 | B58: 2020-10-16 | D58: UBL | E58: Buy | F58: 965 | G58: 938 | H58: 981.00 | I58: 1000-1020 | J58: Profit of Rs.16/- | K58: =H58-F58 -> 16 | L58: =(F58*-0.07)/100 -> -0.68 | M58: =(K58+L58)/F58 -> 1.59% | N58: Successful | O58: 2020-10-16
A59: 20 | B59: 2020-10-16 | D59: ICICIBANK | E59: Sell | F59: 395-398 | G59: 410 | I59: 370 | J59: Open
A60: 21 | B60: 2020-10-16 | D60: SBILIFE | E60: Buy | F60: 801-802 | G60: 777 | I60: 835-845 | J60: Open
A64: CLBS = Closing Basis *** | H64: *
A65: Dividend adjusted <> | F65: Reinitiated $
F66: Revised stoploss #
A68: Master Trade High Risk
A69: Sr.no | B69: Date | D69: Company | E69: Rec | F69: Rec Price | G69: Stop Loss | H69: Call Closed At | I69: Target | J69: Remark | K69: Profit / Loss per share | L69: All charges | M69: Gain / Loss per Lot | N69: Lot | O69: Status | P69: Closed Date
A70: 1 | B70: 2020-10-01 | D70: COLPAL OCT FUT | E70: Buy | F70: 1435.5 | G70: 1415 | H70: 1446 | I70: 1460-1470 | J70: Profit of Rs.10.50/- | K70: =H70-F70 -> 10.5 | L70: =(H70*N70)*0.035% -> 354.27 | M70: =(K70*N70)-L70 -> 6995.7 | N70: 700 | O70: Successful | P70: 2020-10-01 | R70: N
A71: 2 | B71: 2020-10-05 | D71: ASIANPAINT OCT FUT | E71: Buy | F71: 2021.5 | G71: 1975 | H71: 2052.5 | I71: 2100 | J71: Profit of Rs.31/- | K71: 31 | L71: 215.51 | M71: =(K71*N71)-L71 -> 9084.5 | N71: 300 | O71: Successful | P71: 2020-10-06 | R71: N
A72: 3 | B72: 2020-10-07 | D72: COLPAL OCT FUT | E72: Buy | F72: 1433.5 | G72: 1415 | H72: 1444 | I72: 1460-1470 | J72: Profit of Rs.10.50/- | K72: 10.5 | L72: 353.78 | M72: 6996.2 | N72: 700 | O72: Successful | P72: 2020-10-07 | R72: N
A73: 4 | B73: 2020-10-08 | D73: ASIANPAINT OCT FUT | E73: Buy | F73: 2087.5 | G73: 2048 | H73: 2112.5 | I73: 2150-2170 | J73: Profit of Rs.25/- | K73: 25 | L73: 221.81 | M73: =(K73*N73)-L73 -> 7278.2 | N73: 300 | O73: Successful | P73: 2020-10-09 | R73: N
A74: 5 | B74: 2020-10-08 | D74: LUPIN OCT FUT | E74: Buy | F74: 1028 | G74: 1013 | H74: 1040 | I74: 1050-1060 | J74: Profit of Rs.12/- | K74: 12 | L74: 309.40 | M74: =(K74*N74)-L74 -> 9890.6 | N74: 850 | O74: Successful | P74: 2020-10-08 | R74: N
A75: 6 | B75: 2020-10-08 | D75: COLPAL OCT FUT | E75: Buy | F75: 1450 | G75: 1432 | H75: 1460 | I75: 1480 | J75: Profit of Rs.10/- | K75: 10 | L75: 357.70 | M75: =(K75*N75)-L75 -> 6642.3 | N75: 700 | O75: Successful | P75: 2020-10-08 | R75: N
A76: 7 | B76: 2020-10-09 | D76: ASIANPAINT OCT FUT | E76: Buy | F76: 2064.5 | G76: 2020 | H76: 2091.5 | I76: 2120-2140 | J76: Profit of Rs.27/- | K76: =H76-F76 -> 27 | L76: =(H76*N76)*0.035% -> 219.61 | M76: 7880.4 | N76: 300 | O76: Successful | P76: 2020-10-12 | R76: N
A77: 8 | B77: 2020-10-12 | D77: COLPAL OCT FUT | E77: Buy | F77: 1457 | G77: 1440 | H77: 1440 | I77: 1490 | J77: Loss of Rs.17/- | K77: =H77-F77 -> -17 | L77: =(H77*N77)*0.035% -> 352.80 | M77: =(K77*N77)-L77 -> -12252.8 | N77: 700 | O77: Unsuccessful | P77: 2020-10-12 | R77: N
A78: 9 | B78: 2020-10-12 | D78: EXIDEIND OCT FUT | E78: Buy | F78: 161.75 | G78: 157.5 | H78: 164.25 | I78: 168 | J78: Profit of Rs.2.50/- | K78: 2.5 | L78: 206.96 | M78: 8793.0 | N78: 3600 | O78: Successful | P78: 2020-10-13 | R78: N
A79: 10 | B79: 2020-10-13 | D79: ASIANPAINT OCT FUT | E79: Buy | F79: 2067 | G79: 2020 | H79: 2089 | I79: 2120-2140 | J79: Profit of Rs.22/- | K79: 22 | L79: 219.35 | M79: 6380.7 | N79: 300 | O79: Successful | P79: 2020-10-15 | R79: N
A80: 11 | B80: 2020-10-14 | D80: EXIDEIND OCT FUT | E80: Buy | F80: 160.25 | G80: 156 | H80: 162.2 | I80: 168 | J80: Profit of Rs.1.95/- | K80: =H80-F80 -> 1.95 | L80: =(H80*N80)*0.035% -> 204.37 | M80: =(K80*N80)-L80 -> 6815.6 | N80: 3600 | O80: Successful | P80: 2020-10-15 | R80: N
A81: 12 | B81: 2020-10-15 | D81: NIFTY OCT FUT | E81: Sell | F81: 11990 | G81: 12120 | H81: 11905 | I81: 11850 | J81: Profit of Rs.85/- | K81: =F81-H81 -> 85 | L81: =(H81*N81)*0.035% -> 312.51 | M81: =(K81*N81)-L81 -> 6062.5 | N81: 75 | O81: Successful | P81: 2020-10-15
A82: 13 | B82: 2020-10-15 | D82: HDFC OCT FUT | E82: Sell | F82: 2002 | G82: 2045 | H82: 1978 | I82: 1940 | J82: Profit of Rs.24/- | K82: =F82-H82 -> 24 | L82: =(H82*N82)*0.035% -> 207.69 | M82: =(K82*N82)-L82 -> 6992.3 | N82: 300 | O82: Successful | P82: 2020-10-15
A83: 14 | B83: 2020-10-15 | D83: SIEMENS OCT FUT | E83: Buy | F83: 1240.5 | G83: 1216 | H83: 1255 | I83: 1280-1290 | J83: Profit of Rs.14.5/- | K83: =H83-F83 -> 14.5 | L83: 241.59 | M83: 7733.4 | N83: 550 | O83: Successful | P83: 2020-10-16
A84: 15 | B84: 2020-10-15 | D84: COLPAL OCT FUT | E84: Buy | F84: 1423.5 | G84: 1405 | H84: 1432.5 | I84: 1450-1460 | J84: Profit of Rs.9/- | K84: =H84-F84 -> 9 | L84: =(H84*N84)*0.035% -> 350.96 | M84: =(K84*N84)-L84 -> 5949.0 | N84: 700 | O84: Successful | P84: 2020-10-16
A85: 16 | B85: 2020-10-15 | D85: ASIANPAINT OCT FUT | E85: Buy | F85: 2078-2082 | G85: 2035 | I85: 2150-2160 | J85: Open
A86: 17 | B86: 2020-10-16 | D86: NIFTY OCT FUT | E86: Sell | F86: 11745 | G86: 11880 | H86: 11675 | I86: 11600 | J86: Profit of Rs.70/- | K86: =F86-H86 -> 70 | L86: =(H86*N86)*0.035% -> 306.47 | M86: =(K86*N86)-L86 -> 4943.5 | N86: 75 | O86: Successful | P86: 2020-10-16
A87: 18 | B87: 2020-10-16 | D87: HAVELLS OCT FUT | E87: Buy | F87: 684.5 | G87: 672 | H87: 692.5 | I87: 710 | J87: Profit of Rs.8/- | K87: =H87-F87 -> 8 | L87: 242.38 | M87: 7757.6 | N87: 1000 | O87: Successful | P87: 2020-10-16
A88: 19 | B88: 2020-10-16 | D88: HDFCLIFE OCT FUT | E88: Buy | F88: 562-564 | G88: 550 | I88: 580 | J88: Open
A89: 20 | B89: 2020-10-16 | D89: BAJFINANCE OCT FUT | E89: Sell | F89: 3225-3235 | G89: 3275 | I89: 3150 | J89: Open
A90: 21 | B90: 2020-10-16 | D90: NIFTY OCT FUT | E90: Sell | F90: 11770-11780 | G90: 11910 | I90: 11600 | J90: Open
A97: Master Trade Medium Risk
A98: Sr.no | B98: Date | D98: Company | E98: Rec | F98: Rec Price | G98: Stop Loss | H98: Call Closed At | I98: Target | J98: Remark | K98: Profit/ Loss per lot | L98: All charges | M98: Gain / Loss per Lot | N98: Lot | O98: Status | P98: Closed Date
A99: 1 | B99: 2020-09-29 | D99: NIFTY 11150 PE 01-Oct | E99: Buy | F99: 57 | H99: 0 | I99: 120 | J99: Loss of Rs.57/- | K99: =H99-F99 -> -57 | L99: 100 | M99: =(K99*N99)-100 -> -4375 | N99: 75 | O99: Unsuccessful | P99: 2020-10-01 | R99: N
A100: 2 | B100: 2020-10-05 | D100: NIFTY 11500 PE 08-Oct | E100: Buy | F100: 76.5 | G100: 35 | H100: 91 | I100: 150 | J100: Profit of Rs.14.50/- | K100: =H100-F100 -> 14.5 | L100: 100.00 | M100: =(K100*N100)-100 -> 987.5 | N100: 75 | O100: Successful | P100: 2020-10-05 | R100: N
A101: 3 | B101: 2020-10-07 | D101: NIFTY 11700 PE 08-OCT | E101: Buy | F101: 49 | H101: 62 | I101: 100 | J101: Profit of Rs.13/- | K101: =H101-F101 -> 13 | L101: 100.00 | M101: =(K101*N101)-100 -> 875 | N101: 75 | O101: Successful | P101: 2020-10-07 | R101: N
A102: 4 | B102: 2020-10-07 | D102: NIFTY 11700 PE 08-OCT | E102: Buy | F102: 40 | H102: 0 | I102: 80 | J102: Loss of Rs.40/- | K102: -40 | L102: 100 | M102: -3100 | N102: 75 | O102: Unsuccessful | P102: 2020-10-08 | R102: N
A103: 5 | B103: 2020-10-14 | D103: NIFTY 11900 PE 15-Oct | E103: Buy | F103: 46 | H103: 55 | I103: 90 | J103: Profit of Rs.9/- | K103: =H103-F103 -> 9 | L103: 100.00 | M103: =(K103*N103)-100 -> 575 | N103: 75 | O103: Successful | P103: 2020-10-15 | R103: N
A104: 6 | B104: 2020-10-16 | D104: BANKNIFTY 23000 PE 22-Oct | E104: Buy | F104: 225-235 | I104: 450-500 | J104: Open
A105: 7 | B105: 2020-10-16 | D105: NIFTY 11700 PE 22-Oct | E105: Buy | F105: 90-94 | G105: 48 | I105: 180 | J105: Open
A121: Techno -Funda (positional)
A122: Sr.no | B122: Date | D122: Company | E122: Rec | F122: Rec Price | G122: Stop Loss*** | H122: Call Closed At | I122: Target | J122: Remark | K122: Profit / Loss per Share/Lot | L122: All charges | M122: Net Gain / Loss % | N122: Status | O122: Closed Date
A125: CLBS = Closing Basis *** | F125: Reinitiated $
A126: Dividend adjusted <> | F126: Revised stoploss #
B128: Intrday Call
A129: Sr.no | B129: Date | D129: Company | E129: Rec | F129: Rec Price | G129: Stop Loss | H129: Call Closed At | I129: Target | J129: Remark | K129: Profit / Loss per Share/Lot | L129: Gain / Loss per Lot | M129: Lot | N129: All charges | O129: Net Gain / Loss % | P129: Status | Q129: Closed Date
A130: 1 | B130: 2020-10-01 | D130: DLF | E130: Sell | F130: 158 | G130: 163 | H130: 155.50 | I130: 148 | J130: Profit of Rs.2.5/- | K130: =F130-H130 -> 2.5 | N130: =(H130*-0.07)/100 -> -0.11 | O130: =(K130+N130)/F130 -> 1.51% | P130: Successful | Q130: 2020-10-01 | R130: N
A131: 2 | B131: 2020-10-01 | D131: IGL | E131: Buy | F131: 394 | G131: 385 | H131: 398.50 | I131: 405-410 | J131: Profit of Rs.4.50/- | K131: =H131-F131 -> 4.5 | N131: -0.28 | O131: 1.07% | P131: Successful | Q131: 2020-10-01 | R131: N
A132: 3 | B132: 2020-10-05 | D132: DLF | E132: Sell | F132: 158 | G132: 163 | H132: 159.75 | I132: 148 | J132: Loss of Rs.1.75 | K132: =F132-H132 -> -1.75 | N132: =(H132*-0.07)/100 -> -0.11 | O132: =(K132+N132)/F132 -> -1.18% | P132: Unsuccessful | Q132: 2020-10-05 | R132: N
B154: Investment Idea
A155: Sr.no | B155: Date | D155: Company | E155: Rec | F155: Rec Price | G155: Point of Review | H155: Close Rate | I155: Target | J155: Remark | K155: Profit / Loss per Share | L155: Gain / Loss % | M155: Status | N155: Closed Date
A156: 1 | B156: 2013-11-01 | D156: L&T Finance Holding | E156: Accu | F156: 82.00 | G156: - | H156: 100 | I156: 100.00 | J156: Target Achieved | K156: =H156-F156 -> 18.00 | L156: =K156/F156 -> 21.95% | M156: Successful | N156: 2016-10-14
A157: 2 | B157: 2014-06-04 | D157: Finolex Inds | E157: Buy | F157: 257.00 | G157: - | H157: 300 | I157: 300.00 | J157: Target Achieved | K157: 43.00 | L157: 16.73% | M157: Successful | N157: 2014-07-02
A158: 3 | B158: 2014-07-08 | D158: JK Cement | E158: Buy | F158: 393.00 | G158: - | H158: 468 | I158: 468.00 | J158: Target Achieved | K158: 75.00 | L158: 19.08% | M158: Successful | N158: 2014-08-12
A159: 4 | B159: 2014-08-06 | D159: Finolex Cables | E159: Buy | F159: 205.00 | G159: - | H159: 275 | I159: 250.00 | J159: Target Achieved | K159: 70.00 | L159: 34.15% | M159: Successful | N159: 2014-11-19
A160: 5 | B160: 2014-09-04 | D160: Exide Inds | E160: Buy | F160: 162.00 | G160: - | H160: 190 | I160: 190.00 | J160: Target Achieved | K160: 28.00 | L160: 17.28% | M160: Successful | N160: 2015-01-02
A161: 6 | B161: 2014-09-04 | D161: Deepak Nitrite | E161: Buy | F161: 75.00 | G161: - | H161: 91.5 | I161: 95-100 | J161: Profit of Rs.16.50/- | K161: 16.50 | L161: 22.00% | M161: Successful | N161: 2014-11-11
A162: 7 | B162: 2014-10-01 | D162: Mercks | E162: Buy | F162: 850.00 | G162: - | H162: 982.5 | I162: 1050.00 | J162: Profit of Rs.132.50/- | K162: 132.50 | L162: 15.59% | M162: Successful | N162: 2015-02-04
A163: 8 | B163: 2014-10-01 | D163: Grindwell Norton | E163: Buy | F163: 475.00 | G163: - | H163: 515 | I163: 600.00 | J163: Profit of Rs.40/- | K163: 40.00 | L163: 8.42% | M163: Successful | N163: 2014-10-27
A164: 9 | B164: 2014-10-01 | D164: Snowman Logistics | E164: Buy | F164: 86.00 | G164: - | H164: 99 | I164: 140.00 | J164: Profit of Rs.13.00/- | K164: 13.00 | L164: 15.12% | M164: Successful | N164: 2014-10-27
A165: 10 | B165: 2014-10-14 | D165: Birla Corp | E165: Buy | F165: 496.60 | G165: - | H165: 621 | I165: 580.00 | J165: Target Achieved | K165: 124.40 | L165: 25.05% | M165: Successful | N165: 2016-08-23
A166: 11 | B166: 2014-10-14 | D166: Ultratech Cem | E166: Buy | F166: 2481.90 | G166: - | H166: 2840 | I166: 2870.00 | J166: Profit of Rs.358.10/- | K166: 358.10 | L166: 14.43% | M166: Successful | N166: 2015-01-13
A167: 12 | B167: 2014-10-16 | D167: Sintex Inds | E167: Buy | F167: 84.50 | G167: - | H167: 93 | I167: 110.00 | J167: Profit of Rs.8.50/- | K167: 8.50 | L167: 10.06% | M167: Successful | N167: 2014-10-27
A168: 13 | B168: 2014-10-16 | D168: HSIL | E168: Buy | F168: 401.00 | G168: - | H168: 428 | I168: 450.00 | J168: Profit of Rs.27.00/- | K168: 27.00 | L168: 6.73% | M168: Successful | N168: 2015-01-16
A169: 14 | B169: 2014-10-16 | D169: Eveready Inds | E169: Buy | F169: 101.00 | G169: - | H169: 112 | I169: 120.00 | J169: Profit of Rs.11.00/- | K169: 11.00 | L169: 10.89% | M169: Successful | N169: 2014-10-27
A170: 15 | B170: 2014-11-11 | D170: Pennar Inds | E170: Buy | F170: 59.00 | G170: - | H170: 76 | I170: 76.00 | J170: Target Achieved | K170: 17.00 | L170: 28.81% | M170: Successful | N170: 2017-10-24
A171: 16 | B171: 2014-11-11 | D171: Snowman Logistics | E171: Buy | F171: 99.00 | G171: - | H171: 120 | I171: 120.00 | J171: Profit of Rs.21/- | K171: 21.00 | L171: 21.21% | M171: Successful | N171: 2014-11-17
A172: 17 | B172: 2014-11-13 | D172: Dharamsi Morarji Chem | E172: Buy | F172: 22.00 | G172: - | H172: 33.55 | I172: 32.00 | J172: Profit of Rs 11.55/- | K172: 11.55 | L172: 52.50% | M172: Successful | N172: 2015-07-03
A173: 18 | B173: 2014-12-03 | D173: Tatachem | E173: Buy | F173: 440.00 | G173: - | H173: 520 | I173: 520.00 | J173: Profit of Rs 80.00/- | K173: 80.00 | L173: 18.18% | M173: Successful | N173: 2015-07-23
A174: 19 | B174: 2014-12-03 | D174: Advanta | E174: Buy | F174: 360.00 | G174: - | H174: 427 | I174: 425.00 | J174: Profit of Rs.67.00/- | K174: 67.00 | L174: 18.61% | M174: Successful | N174: 2015-02-23
A175: 20 | B175: 2015-01-08 | D175: GDL | E175: Buy | F175: 360.00 | G175: - | H175: 455 | I175: 420.00 | J175: Profit of Rs.95.00/- | K175: 95.00 | L175: 26.39% | M175: Successful | N175: 2015-01-20
A176: 21 | B176: 2015-01-08 | D176: NRB Bearing | E176: Buy | F176: 130.00 | H176: 175.5 | I176: 165.00 | J176: Profit of Rs 45.50/- | K176: 45.50 | L176: 35.00% | M176: Successful | N176: 2017-12-19
A177: 22 | B177: 2015-02-05 | D177: GSFC | E177: Accu | F177: 98.00 | H177: 120 | I177: 120.00 | J177: Target Achieved | K177: 22.00 | L177: 22.45% | M177: Successful | N177: 2017-01-18
A178: 23 | B178: 2015-02-05 | D178: Sundrmfast | E178: Accu | F178: 196.00 | H178: 262 | I178: 255.00 | J178: Target Achieved | K178: 66.00 | L178: 33.67% | M178: Successful | N178: 2016-08-17
A179: 24 | B179: 2015-03-04 | D179: GPPL | E179: Accu | F179: 235 | H179: 77.00 | I179: 280-285 | J179: Loss of Rs.158/- | K179: -158.00 | L179: -67.23% | M179: Unsuccessful | N179: 2019-02-26
A180: 25 | B180: 2015-03-04 | D180: ORIENTCEM | E180: Accu | F180: 185.00 | H180: 224 | I180: 220-225 | J180: Target Achieved | K180: 39.00 | L180: 21.08% | M180: Successful | N180: 2016-10-04
A181: 26 | B181: 2015-03-27 | D181: PFS | E181: Accu | F181: 49.5 | H181: 15.85 | I181: 67.00 | J181: Loss of Rs.33.65/- | K181: -33.65 | L181: -68% | M181: Unsuccessful | N181: 2019-06-11
A182: 27 | B182: 2015-03-30 | D182: Walchandnagar Ind Ltd | E182: Accu | F182: 183.50 | H182: 219 | I182: 218.00 | J182: Profit of Rs.35.50/- | K182: 35.50 | L182: 19.35% | M182: Successful | N182: 2015-04-09
A183: 28 | B183: 2015-04-20 | D183: Kalpataru Power Transmission Ltd | E183: Accu | F183: =(227+237)/2 -> 232.00 | H183: 298 | I183: 298.00 | J183: Target Achieved | K183: 66.00 | L183: 28.45% | M183: Successful | N183: 2017-03-29
A184: 29 | B184: 2015-05-04 | D184: Mastek Ltd | E184: Buy | F184: 385.00 | H184: =212.5+331 -> 543.5 | I184: 510.00 | J184: Profit of Rs 158.50/- | K184: 158.50 | L184: 41.17% | M184: Successful | N184: 2015-08-19
A185: 30 | B185: 2015-05-04 | D185: Suprajit Eng | E185: Buy | F185: 115.50 | H185: 146 | I185: 142.00 | J185: Profit of Rs 30.50/- | K185: 30.50 | L185: 26.41% | M185: Successful | N185: 2015-07-17
A186: 31 | B186: 2015-05-27 | D186: TCI | E186: Buy | F186: 237.50 | H186: 279.5 | I186: 278.00 | J186: Target Achieved | K186: 42.00 | L186: 17.68% | M186: Successful | N186: 2015-08-06
A187: 32 | B187: 2015-06-19 | D187: HSIL | E187: Accu | F187: 340.00 | H187: 448 | I187: 448.00 | J187: Target Achieved | K187: 108.00 | L187: 31.76% | M187: Successful | N187: 2017-10-10
A188: 33 | B188: 2015-07-06 | D188: Capital First | E188: Accu | F188: 390.00 | H188: 460 | I188: 460.00 | J188: Target Achieved | K188: =H188-F188 -> 70.00 | L188: =K188/F188 -> 17.95% | M188: Successful | N188: 2016-04-18
A189: 34 | B189: 2015-07-10 | D189: Dolphin OffShore | E189: Accu | F189: 122.5 | H189: 61.00 | I189: 172.00 | J189: Loss of Rs.61.50/- | K189: -61.50 | L189: -50.20% | M189: Unsuccessful | N189: 2018-08-21
A190: 35 | B190: 2015-08-03 | D190: Allcargo logistics | E190: Accu | F190: 297.50 | H190: 350 | I190: 360.00 | J190: Profit of Rs 52.50/- | K190: 52.50 | L190: 17.65% | M190: Successful | N190: 2015-08-16
A191: 36 | B191: 2015-08-03 | D191: Camline Fine | E191: Accu | F191: 115.50 | H191: 149 | I191: 140.00 | J191: Profit of Rs 33.50/- | K191: 33.50 | L191: 29.00% | M191: Successful | N191: 2017-01-05
A192: 37 | B192: 2015-09-04 | D192: TCI | E192: Accu | F192: 226.00 | H192: 292 | I192: 292.00 | J192: Target Achieved | K192: 66.00 | L192: 29.20% | M192: Successful | N192: 2015-10-09
A193: 38 | B193: 2015-09-07 | D193: Kalpataru Power Transmission Ltd | E193: Accu | F193: 232.50 | H193: 312.5 | I193: 310.00 | J193: Target Achieved | K193: 80.00 | L193: 34.41% | M193: Successful | N193: 2017-03-29
A194: 39 | B194: 2015-09-21 | D194: LLOYD ELECTRIC & ENG LTD | E194: Accu | F194: 196.50 | H194: 238 | I194: 238.00 | J194: Target Achieved | K194: 41.50 | L194: 21.12% | M194: Successful | N194: 2015-10-14
A195: 40 | B195: 2015-09-24 | D195: L&T Finance Holding | E195: Accu | F195: 65.00 | H195: 82 | I195: 82.00 | J195: Target Achieved | K195: 17.00 | L195: 26.15% | M195: Successful | N195: 2016-07-27
A196: 41 | B196: 2015-10-14 | D196: KEC International ltd | E196: Accu | F196: 144.00 | H196: 182.5 | I196: 181.00 | J196: Target Achieved | K196: 38.50 | L196: 26.74% | M196: Successful | N196: 2017-03-23
A197: 42 | B197: 2015-10-14 | D197: Gruh Finance | E197: Accu | F197: 264.00 | H197: 311 | I197: 311.00 | J197: Target Achieved | K197: 47.00 | L197: 17.80% | M197: Successful | N197: 2016-08-22
A198: 43 | B198: 2015-11-10 | D198: Pidilitind | E198: Buy | F198: 549.50 | H198: 630 | I198: 630.00 | J198: Target Achieved | K198: 80.50 | L198: 14.65% | M198: Successful | N198: 2016-02-19
A199: 44 | B199: 2015-12-04 | D199: Zensar Technology | E199: Accu | F199: 1027.50 | H199: 1315 | I199: 1250.00 | J199: Target Achieved | K199: 287.50 | L199: 27.98% | M199: Successful | N199: 2018-05-24
A200: 45 | B200: 2015-12-29 | D200: Vinati Organics Ltd | E200: Accu | F200: 465.00 | H200: 540 | I200: 540.00 | J200: Target Achieved | K200: 75.00 | L200: 16.13% | M200: Successful | N200: 2016-06-09
A201: 46 | B201: 2016-01-11 | D201: GSFC | E201: Buy | F201: 81.00 | H201: 110 | I201: 110.00 | J201: Target Achieved | K201: 29.00 | L201: 35.80% | M201: Successful | N201: 2017-01-10
A202: 47 | B202: 2016-01-13 | D202: SSWL | E202: Buy | F202: 417.50 | H202: 547 | I202: 535.00 | J202: Target Achieved | K202: 129.50 | L202: 31.02% | M202: Successful | N202: 2016-07-27
A203: 48 | B203: 2016-02-08 | D203: Persistent System Ltd | E203: Accu | F203: 650.00 | H203: 800 | I203: 800.00 | J203: Target Achieved | K203: 150.00 | L203: 23.08% | M203: Successful | N203: 2018-02-23
A204: 49 | B204: 2016-03-04 | D204: UPL | E204: Accu | F204: 437.50 | H204: 504.5 | I204: 522.00 | J204: Profit of Rs.67/- | K204: 67.00 | L204: 15.31% | M204: Successful | N204: 2016-04-20
A205: 50 | B205: 2016-03-09 | D205: Ashoka Buildcon Ltd | E205: Accu | F205: 189.50 | H205: 218 | I205: 218.00 | J205: Target Achieved | K205: 28.50 | L205: 15.04% | M205: Successful | N205: 2017-10-26
A206: 51 | B206: 2016-04-11 | D206: PTC INDIA FIN SERV LTD | E206: Accu | F206: 36.5 | H206: 15.85 | I206: 60.00 | J206: Loss of Rs.20.65/- | K206: -20.65 | L206: -56.58% | M206: Unsuccessful | N206: 2019-06-11
A207: 52 | B207: 2016-04-12 | D207: CAMLINFINE $ | E207: Accu | F207: 93.00 | H207: 149 | I207: 140.00 | J207: Profit of Rs 56/- | K207: 56.00 | L207: 60.22% | M207: Successful | N207: 2017-01-05
A208: 53 | B208: 2016-04-12 | D208: Greaves Cotton Ltd. | E208: Accu | F208: 130.00 | H208: 150 | I208: 150-155 | J208: Target Achieved | K208: 20.00 | L208: 15.38% | M208: Successful | N208: 2016-07-13
A209: 54 | B209: 2016-04-13 | D209: DHFL | E209: Accu | F209: 196.00 | H209: 299 | I209: 299.00 | J209: Target Achieved | K209: 103.00 | L209: 52.55% | M209: Successful | N209: 2016-09-07
A210: 55 | B210: 2016-04-13 | D210: Magma | E210: Accu | F210: 88.00 | H210: 103 | I210: 103.00 | J210: Target Achieved | K210: 15.00 | L210: 17.05% | M210: Successful | N210: 2016-06-09
A211: 56 | B211: 2016-05-02 | D211: KEC International ltd $ | E211: Accu | F211: 127.50 | H211: 148 | I211: 148-150 | J211: Target Achieved | K211: =H211-F211 -> 20.50 | L211: =K211/F211 -> 16.08% | M211: Successful | N211: 2016-07-13
A212: 57 | B212: 2016-05-03 | D212: Mindtree | E212: Accu | F212: 675.00 | H212: 815 | I212: 790-800 | J212: Target Achieved | K212: =H212-F212 -> 140.00 | L212: =K212/F212 -> 20.74% | M212: Successful | N212: 2018-02-23
A213: 58 | B213: 2016-06-01 | D213: Atulauto | E213: Accu | F213: 500 | H213: 232.50 | I213: 565-570 | J213: Loss of Rs.267.50 /- | K213: =H213-F213 -> -267.50 | L213: =K213/F213 -> -53.50% | M213: Unsuccessful | N213: 2019-09-27
A214: 59 | B214: 2016-06-06 | D214: TRITURBINE | E214: Accu | F214: 110.00 | H214: 126.5 | I214: 125.00 | J214: Profit of Rs.16.50/- | K214: =H214-F214 -> 16.50 | L214: =K214/F214 -> 15.00% | M214: Successful | N214: 2016-07-01
A215: 60 | B215: 2016-06-17 | D215: Pennar Industries Ltd | E215: Accu | F215: 44.00 | H215: 69.5 | I215: 69.50 | J215: Profit of Rs.25.50/- | K215: =H215-F215 -> 25.50 | L215: =K215/F215 -> 57.95% | M215: Successful | N215: 2017-08-30
A216: 61 | B216: 2016-06-28 | D216: EVEREADY | E216: Accu | F216: 262.50 | H216: 340 | I216: 333.00 | J216: Profit of Rs.77.50/- | K216: 77.50 | L216: 29.52% | M216: Successful | N216: 2017-10-09
A217: 62 | B217: 2016-06-28 | D217: FIEMIND | E217: Accu | F217: 840.00 | H217: 1230 | I217: 1230.00 | J217: Target Achieved | K217: 390.00 | L217: 46.43% | M217: Successful | N217: 2016-10-06
A218: 63 | B218: 2016-07-05 | D218: Bajaj Corp Ltd | E218: Accu | F218: 395 | H218: =(468.5+342.5)/2 -> 405.50 | I218: 510.00 | J218: Profit of Rs.10.50/- | K218: =H218-F218 -> 10.50 | L218: =K218/F218 -> 3% | M218: Neutral | N218: 2019-05-21
A219: 64 | B219: 2016-08-02 | D219: GPPL $ | E219: Buy | F219: =169.5-12.8 -> 156.7 | H219: 77.00 | I219: 198-200 | J219: Loss of Rs.79.7/- | K219: -79.70 | L219: -50.86% | M219: Unsuccessful | N219: 2019-02-26
A220: 65 | B220: 2016-08-04 | D220: WONDERLA HOLIDAYS LTD | E220: Accu | F220: 400 | H220: 305.00 | I220: 475.00 | J220: Loss of Rs.95/- | K220: -95.00 | L220: -23.75% | M220: Unsuccessful | N220: 2019-05-21
A221: 66 | B221: 2016-08-11 | D221: CAMLINFINE | E221: Accu | F221: 86.50 | H221: 130 | I221: 130.00 | J221: Profit of Rs.43.50/- | K221: 43.50 | L221: 50.29% | M221: Successful | N221: 2017-12-22
A222: 67 | B222: 2016-08-18 | D222: GRANULES | E222: Accu | F222: 133.5 | H222: 126.50 | I222: 178.00 | J222: Exit | K222: -7.00 | L222: -5.24% | M222: Unsuccessful | N222: 2016-09-02
A223: 68 | B223: 2016-08-31 | D223: VA TECH WABAG | E223: Accu | F223: 560.00 | H223: 725 | I223: 725.00 | J223: Target Achieved | K223: 165.00 | L223: 29.46% | M223: Successful | N223: 2016-03-27
A224: 69 | B224: 2016-09-01 | D224: SKIPPER LIMITED | E224: Accu | F224: 160.50 | H224: 210 | I224: 210.00 | J224: Target Achieved | K224: 49.50 | L224: 30.84% | M224: Successful | N224: 2017-05-16
A225: 70 | B225: 2016-10-03 | D225: IFBIND | E225: Accu | F225: 430.00 | H225: 596 | I225: 575.00 | J225: Profit of Rs.166/- | K225: 166.00 | L225: 38.60% | M225: Successful | N225: 2017-02-03
A226: 71 | B226: 2016-10-14 | D226: ASIANTILES | E226: Accu | F226: 280.00 | H226: 345 | I226: 345.00 | J226: Target Achieved | K226: =H226-F226 -> 65.00 | L226: =K226/F226 -> 23.21% | M226: Successful | N226: 2017-03-20
A227: 72 | B227: 2016-10-14 | D227: DEEPIND | E227: Accu | F227: 245.00 | H227: 325.5 | I227: 330.00 | J227: Profit of Rs.80.5/- | K227: 80.50 | L227: =K227/F227 -> 32.86% | M227: Successful | N227: 2017-02-03
A228: 73 | B228: 2016-10-17 | D228: DCBBANK | E228: Accu | F228: 125.00 | H228: 160 | I228: 160.00 | J228: Target Achieved | K228: 35.00 | L228: 28.00% | M228: Successful | N228: 2017-03-09
A229: 74 | B229: 2016-10-17 | D229: ORIENTREF | E229: Accu | F229: 114.00 | H229: 145 | I229: 145.00 | J229: Target Achieved | K229: 31.00 | L229: =K229/F229 -> 27.19% | M229: Successful | N229: 2017-05-04
A230: 75 | B230: 2016-10-17 | D230: GANECOS | E230: Accu | F230: 212.00 | H230: 280 | I230: 276.00 | J230: Profit of Rs.68/- | K230: 68.00 | L230: =K230/F230 -> 32.08% | M230: Successful | N230: 2017-05-03
A231: 76 | B231: 2016-11-04 | D231: NBCC | E231: Accu | F231: 155.00 | H231: 210 | I231: 210.00 | J231: Profit of Rs.55/- | K231: 55.00 | L231: =K231/F231 -> 35.48% | M231: Successful | N231: 2017-07-28
A232: 77 | B232: 2016-12-06 | D232: PRECAM | E232: Accu | F232: 150.5 | H232: 72.50 | I232: 174.00 | J232: Loss of Rs.78/- | K232: -78.00 | L232: -51.83% | M232: Unsuccessful | N232: 2018-08-21
A233: 78 | B233: 2016-12-08 | D233: INFRATEL | E233: Accu | F233: 380.00 | H233: 478 | I233: 468.00 | J233: Target Achieved | K233: =H233-F233 -> 98.00 | L233: =K233/F233 -> 25.79% | M233: Successful | N233: 2017-10-17
A234: 79 | B234: 2016-12-30 | D234: GODREJPROP | E234: Accu | F234: 305.00 | H234: 375 | I234: 375.00 | J234: Target Achieved | K234: =H234-F234 -> 70.00 | L234: =K234/F234 -> 22.95% | M234: Successful | N234: 2017-02-02
A235: 80 | B235: 2017-01-04 | D235: DEEPAKNTR | E235: Accu | F235: 99.50 | H235: 158 | I235: 158.00 | J235: Target Achieved | K235: =H235-F235 -> 58.50 | L235: =K235/F235 -> 58.79% | M235: Successful | N235: 2017-06-12
A236: 81 | B236: 2017-01-04 | D236: DEEPAKNTR | E236: Accu | F236: 99.50 | H236: 158 | I236: 158.00 | J236: Target Achieved | K236: 58.50 | L236: 58.79% | M236: Successful | N236: 2017-06-12
A237: 82 | B237: 2017-02-20 | D237: RECLTD | E237: Accu | F237: 140.50 | H237: 220 | I237: 220.00 | J237: Target Achieved | K237: =H237-F237 -> 79.50 | L237: =K237/F237 -> 56.58% | M237: Successful | N237: 2017-05-09
A238: 83 | B238: 2017-02-20 | D238: SUBROS | E238: Accu | F238: 202.50 | H238: 234 | I238: 234.00 | J238: Target Achieved | K238: 31.50 | L238: 15.56% | M238: Successful | N238: 2017-04-11
A239: 84 | B239: 2017-03-24 | D239: VRLLOG | E239: Accu | F239: 300.50 | H239: 417.5 | I239: 420.00 | J239: Profit of Rs.117/- | K239: =H239-F239 -> 117.00 | L239: =K239/F239 -> 38.94% | M239: Successful | N239: 2017-12-01
A240: 85 | B240: 2017-03-24 | D240: FIEMIND | E240: Accu | F240: 850.00 | H240: 1042.5 | I240: 1023.00 | J240: Profit of Rs 192.50/- | K240: 192.50 | L240: 22.65% | M240: Successful | N240: 2017-04-05
A241: 86 | B241: 2017-04-05 | D241: RATNAMANI | E241: Accu | F241: 785.00 | H241: 930 | I241: 920.00 | J241: Profit of Rs.145/- | K241: =H241-F241 -> 145.00 | L241: =K241/F241 -> 18.47% | M241: Successful | N241: 2017-08-29
A242: 87 | B242: 2017-04-06 | D242: ZEEMEDIA | E242: Accu | F242: 40 | H242: 13.10 | I242: 60.00 | J242: Loss of Rs.26.9/- | K242: -26.90 | L242: -67.25% | M242: Unsuccessful | N242: 2018-02-07
A243: 88 | B243: 2017-04-12 | D243: DABUR | E243: Accu | F243: 289.50 | H243: 354 | I243: 360.00 | J243: Profit of Rs.64.5/- | K243: =H243-F243 -> 64.50 | L243: =K243/F243 -> 22.28% | M243: Successful | N243: 2017-11-01
A244: 89 | B244: 2017-04-20 | D244: KPRMILL | E244: Accu | F244: 700.00 | H244: 840 | I244: 840.00 | J244: Profit of Rs.140/- | K244: 140.00 | L244: 20.00% | M244: Successful | N244: 2017-06-07
A245: 90 | B245: 2017-06-01 | D245: ESSELPACK | E245: Accu | F245: 130.00 | H245: 144.25 | I245: 170.00 | J245: Profit of Rs.14.25/- | K245: 14.25 | L245: 10.96% | M245: Successful | N245: 2019-07-29
A246: 91 | B246: 2017-06-15 | D246: KEI | E246: Accu | F246: 214.50 | H246: 262 | I246: 262.00 | J246: Profit of Rs.47.5/- | K246: 47.50 | L246: 22.14% | M246: Successful | N246: 2017-08-30
A247: 92 | B247: 2017-07-17 | D247: MAYURUNIQ | E247: Accu | F247: 370.00 | H247: 447.5 | I247: 450.00 | J247: Target Achieved | K247: 77.50 | L247: 20.95% | M247: Successful | N247: 2017-10-27
A248: 93 | B248: 2017-07-27 | D248: RAMCOCEM | E248: Accu | F248: 657.50 | H248: 825 | I248: 820.00 | J248: Target Achieved | K248: 167.50 | L248: 25.48% | M248: Successful | N248: 2017-12-21
A249: 94 | B249: 2017-08-17 | D249: FINPIPE | E249: Accu | F249: 605.00 | H249: 750 | I249: 750.00 | J249: Profit of Rs.145/- | K249: 145.00 | L249: 23.97% | M249: Successful | N249: 2017-10-19
A250: 95 | B250: 2017-09-01 | D250: SHK | E250: Accu | F250: 255 | H250: 217.25 | I250: 320.00 | J250: Loss of Rs.37.75/- | K250: -37.75 | L250: -15% | M250: Unsuccessful | N250: 2019-07-15
A251: 96 | B251: 2017-09-19 | D251: SKIPPER | E251: Accu | F251: 215.00 | H251: 258 | I251: 258.00 | J251: Target Achieved | K251: 43.00 | L251: 20.00% | M251: Successful | N251: 2017-11-01
A252: 97 | B252: 2017-09-19 | D252: SKIPPER | E252: Accu | F252: 215.00 | H252: 258 | I252: 258.00 | J252: Target Achieved | K252: 43.00 | L252: 20.00% | M252: Successful | N252: 2017-11-01
A253: 98 | B253: 2017-09-20 | D253: CAMLINFINE$ | E253: Accu | F253: 75.00 | H253: 90 | I253: 90.00 | J253: Profit of Rs.15.00/- | K253: =H253-F253 -> 15.00 | L253: =K253/F253 -> 20.00% | M253: Successful | N253: 2017-10-11
A254: 99 | B254: 2017-10-03 | D254: GNA | E254: Accu | F254: 315.00 | H254: 392 | I254: 384.00 | J254: Profit of Rs.77/- | K254: 77.00 | L254: 24.44% | M254: Successful | N254: 2017-10-09
A255: 100 | B255: 2017-10-05 | D255: NOCIL | E255: Accu | F255: 145.00 | H255: 179 | I255: 180.00 | J255: Profit of Rs.34/- | K255: 34.00 | L255: 23.45% | M255: Successful | N255: 2017-10-17
A256: 101 | B256: 2017-10-06 | D256: CENTURYPLY | E256: Accu | F256: 256.00 | H256: 323 | I256: 320.00 | J256: Target Achieved | K256: 67.00 | L256: 26.17% | M256: Successful | N256: 2017-11-28
A257: 102 | B257: 2017-10-09 | D257: EIHOTEL | E257: Accu | F257: 137.50 | H257: 184 | I257: 183.00 | J257: Profit of Rs.46.5/- | K257: 46.50 | L257: 33.82% | M257: Successful | N257: 2018-01-08
A258: 103 | B258: 2017-10-10 | D258: NRBBEARING | E258: Accu | F258: 125.50 | H258: 158 | I258: 155.00 | J258: Profit of Rs.32.5/- | K258: 32.50 | L258: 25.90% | M258: Successful | N258: 2017-11-28
A259: 104 | B259: 2017-10-10 | D259: BOROSIL | E259: Accu | F259: 895.00 | H259: 1122.5 | I259: 1078.00 | J259: Profit of Rs.227.5/- | K259: 227.50 | L259: 25.42% | M259: Successful | N259: 2018-01-17
A260: 105 | B260: 2017-10-12 | D260: CYIENT | E260: Accu | F260: 525.00 | H260: 629 | I260: 629.00 | J260: Target Achieved | K260: 104.00 | L260: 19.81% | M260: Successful | N260: 2018-01-19
A261: 106 | B261: 2017-11-07 | D261: HATSUN | E261: Accu | F261: 740.00 | H261: 892.5 | I261: 900.00 | J261: Profit of Rs.152.5/- | K261: =H261-F261 -> 152.50 | L261: =K261/F261 -> 20.61% | M261: Successful | N261: 2017-11-13
... 50 more rows

Sheet Sheet2 (hidden)
A1: SYMBOL | B1: SERIES | C1: OPEN | D1: HIGH | E1: LOW | F1: CLOSE | G1: LAST | H1: PREVCLOSE | I1: TOTTRDQTY | J1: TOTTRDVAL | K1: TIMESTAMP | L1: TOTALTRADES | M1: ISIN | N1: ISIN
A2: 20MICRONS | B2: EQ | C2: 27.9 | D2: 29 | E2: 25.9 | F2: 26.2 | G2: 25.9 | H2: 27.5 | I2: 80527 | J2: 2193820.55 | K2: 2020-04-08 | L2: 1099 | M2: INE144J01027
A3: 21STCENMGM | B3: EQ | C3: 10.15 | D3: 10.5 | E3: 10.1 | F3: 10.4 | G3: 10.5 | H3: 10.3 | I3: 3205 | J3: 32728.25 | K3: 2020-04-08 | L3: 28 | M3: INE253B01015
A4: 3IINFOTECH | B4: EQ | C4: 1.35 | D4: 1.35 | E4: 1.2 | F4: 1.25 | G4: 1.25 | H4: 1.35 | I4: 2793301 | J4: 3578364.95 | K4: 2020-04-08 | L4: 46535 | M4: INE748C01020
A5: 3MINDIA | B5: EQ | C5: 18950 | D5: 19170 | E5: 18155.05 | F5: 18318.2 | G5: 18270 | H5: 18755.7 | I5: 9926 | J5: 183605811.2 | K5: 2020-04-08 | L5: 4453 | M5: INE470A01017
A6: 3PLAND | B6: EQ | C6: 3.7 | D6: 3.85 | E6: 3.7 | F6: 3.85 | G6: 3.85 | H6: 3.7 | I6: 406 | J6: 1557.85 | K6: 2020-04-08 | L6: 9 | M6: INE105C01023
A7: 5PAISA | B7: EQ | C7: 119.95 | D7: 134 | E7: 115 | F7: 123.35 | G7: 120.5 | H7: 116.4 | I7: 6500 | J7: 793277.05 | K7: 2020-04-08 | L7: 265 | M7: INE618L01018
A8: 63MOONS | B8: EQ | C8: 50.7 | D8: 55.45 | E8: 50.7 | F8: 53.7 | G8: 53.55 | H8: 50.7 | I8: 72221 | J8: 3890984.7 | K8: 2020-04-08 | L8: 3078 | M8: INE111B01023
A9: A2ZINFRA | B9: EQ | C9: 3.15 | D9: 3.25 | E9: 3.1 | F9: 3.15 | G9: 3.15 | H9: 3.15 | I9: 116011 | J9: 367778.85 | K9: 2020-04-08 | L9: 227 | M9: INE619I01012
A10: AARTIDRUGS | B10: EQ | C10: 627 | D10: 669.3 | E10: 605 | F10: 631.6 | G10: 625 | H10: 607.85 | I10: 75970 | J10: 48223549.15 | K10: 2020-04-08 | L10: 5720 | M10: INE767A01016
A11: AARTIIND | B11: EQ | C11: 839.95 | D11: 909.8 | E11: 818 | F11: 854.9 | G11: 864 | H11: 830.7 | I11: 477805 | J11: 419092386.9 | K11: 2020-04-08 | L11: 50045 | M11: INE769A01020
A12: AARVEEDEN | B12: EQ | C12: 8.95 | D12: 9.25 | E12: 7.85 | F12: 8.35 | G12: 8.45 | H12: 8.1 | I12: 9251 | J12: 77100.1 | K12: 2020-04-08 | L12: 94 | M12: INE273D01019
A13: AAVAS | B13: EQ | C13: 1101 | D13: 1183 | E13: 1101 | F13: 1135.2 | G13: 1137 | H13: 1142.35 | I13: 24179 | J13: 28073100.85 | K13: 2020-04-08 | L13: 3631 | M13: INE216P01012
A14: ABAN | B14: EQ | C14: 15.7 | D14: 16.2 | E14: 15.7 | F14: 16.2 | G14: 16.2 | H14: 15.45 | I14: 37609 | J14: 608439.6 | K14: 2020-04-08 | L14: 288 | M14: INE421A01028
A15: ABB | B15: EQ | C15: 935 | D15: 965 | E15: 910 | F15: 930.7 | G15: 928 | H15: 931.35 | I15: 87757 | J15: 82358527.9 | K15: 2020-04-08 | L15: 4699 | M15: INE117A01022
A16: ABBOTINDIA | B16: EQ | C16: 16799.45 | D16: 18250 | E16: 16750 | F16: 17481.1 | G16: 17488 | H16: 16699.7 | I16: 57991 | J16: 1023745502 | K16: 2020-04-08 | L16: 21022 | M16: INE358A01014
A17: ABCAPITAL | B17: EQ | C17: 45 | D17: 47.9 | E17: 44.25 | F17: 45.6 | G17: 45.7 | H17: 45.1 | I17: 1253267 | J17: 57952493.6 | K17: 2020-04-08 | L17: 7317 | M17: INE674K01013
A18: ABFRL | B18: EQ | C18: 148 | D18: 152.8 | E18: 146.75 | F18: 149 | G18: 148 | H18: 149.85 | I18: 416099 | J18: 62371769.1 | K18: 2020-04-08 | L18: 10148 | M18: INE647O01011
A19: ABSLNN50ET | B19: EQ | C19: 244 | D19: 248 | E19: 210 | F19: 235 | G19: 235 | H19: 244 | I19: 56 | J19: 12779.4 | K19: 2020-04-08 | L19: 13 | M19: INF209KB1B87
A20: ACC | B20: EQ | C20: 1000 | D20: 1029.9 | E20: 941.25 | F20: 956.05 | G20: 958 | H20: 1009.95 | I20: 2153627 | J20: 2101320389 | K20: 2020-04-08 | L20: 79728 | M20: INE012A01025
A21: ACCELYA | B21: EQ | C21: 874.3 | D21: 886 | E21: 862 | F21: 880.45 | G21: 879.95 | H21: 874.3 | I21: 10865 | J21: 9557704.55 | K21: 2020-04-08 | L21: 923 | M21: INE793A01012
A22: ACE | B22: EQ | C22: 32.75 | D22: 35.2 | E22: 32.55 | F22: 33.25 | G22: 33.35 | H22: 32.95 | I22: 244708 | J22: 8296578.4 | K22: 2020-04-08 | L22: 2925 | M22: INE731H01025
A23: ADANIENT | B23: EQ | C23: 136.85 | D23: 147.15 | E23: 134.9 | F23: 138.1 | G23: 137.5 | H23: 138.15 | I23: 3237290 | J23: 456492273.1 | K23: 2020-04-08 | L23: 23696 | M23: INE423A01024
A24: ADANIGAS | B24: EQ | C24: 93.9 | D24: 96.35 | E24: 90.5 | F24: 90.8 | G24: 90.65 | H24: 94 | I24: 1888606 | J24: 176837924.4 | K24: 2020-04-08 | L24: 14517 | M24: INE399L01023
A25: ADANIGREEN | B25: EQ | C25: 166.85 | D25: 166.85 | E25: 162 | F25: 166.45 | G25: 166.85 | H25: 158.95 | I25: 702014 | J25: 116248737 | K25: 2020-04-08 | L25: 10187 | M25: INE364U01010
A26: ADANIPORTS | B26: EQ | C26: 248 | D26: 255.85 | E26: 242.75 | F26: 250.85 | G26: 249.7 | H26: 248.1 | I26: 6897883 | J26: 1724830525 | K26: 2020-04-08 | L26: 81499 | M26: INE742F01042
A27: ADANIPOWER | B27: EQ | C27: 28.65 | D27: 31.15 | E27: 27.5 | F27: 28.95 | G27: 28.85 | H27: 28.8 | I27: 12308064 | J27: 361987996.9 | K27: 2020-04-08 | L27: 23153 | M27: INE814H01011
A28: ADANITRANS | B28: EQ | C28: 196.65 | D28: 202 | E28: 190 | F28: 193.65 | G28: 193.5 | H28: 198.3 | I28: 306320 | J28: 59783940.3 | K28: 2020-04-08 | L28: 4236 | M28: INE931S01010
A29: ADFFOODS | B29: EQ | C29: 187.85 | D29: 192.25 | E29: 184 | F29: 187.7 | G29: 187.3 | H29: 183.1 | I29: 22107 | J29: 4185556.05 | K29: 2020-04-08 | L29: 773 | M29: INE982B01019
A30: ADHUNIKIND | B30: EQ | C30: 13.3 | D30: 13.3 | E30: 13.3 | F30: 13.3 | G30: 13.3 | H30: 12.7 | I30: 5518 | J30: 73389.4 | K30: 2020-04-08 | L30: 21 | M30: INE452L01012
A31: ADLABS | B31: EQ | C31: 2.75 | D31: 2.85 | E31: 2.75 | F31: 2.85 | G31: 2.85 | H31: 2.75 | I31: 19360 | J31: 54965.35 | K31: 2020-04-08 | L31: 72 | M31: INE172N01012
A32: ADORWELD | B32: EQ | C32: 195.7 | D32: 201.9 | E32: 193.95 | F32: 195.1 | G32: 194.45 | H32: 196.75 | I32: 1438 | J32: 283768.75 | K32: 2020-04-08 | L32: 94 | M32: INE045A01017
A33: ADROITINFO | B33: EQ | C33: 5.5 | D33: 5.7 | E33: 5.45 | F33: 5.7 | G33: 5.7 | H33: 5.7 | I33: 691 | J33: 3857 | K33: 2020-04-08 | L33: 25 | M33: INE737B01033
A34: ADSL | B34: EQ | C34: 13.05 | D34: 13.2 | E34: 12.4 | F34: 12.5 | G34: 12.45 | H34: 12.7 | I34: 16203 | J34: 205559.25 | K34: 2020-04-08 | L34: 143 | M34: INE102I01027
A35: ADVANIHOTR | B35: EQ | C35: 30.1 | D35: 33 | E35: 30.1 | F35: 31.8 | G35: 31.5 | H35: 30.65 | I35: 5340 | J35: 169948.95 | K35: 2020-04-08 | L35: 193 | M35: INE199C01026
A36: ADVENZYMES | B36: EQ | C36: 140.2 | D36: 146.55 | E36: 137.95 | F36: 139.2 | G36: 139.75 | H36: 136.55 | I36: 77441 | J36: 11046136.15 | K36: 2020-04-08 | L36: 1990 | M36: INE837H01020
A37: AEGISCHEM | B37: EQ | C37: 150 | D37: 158.5 | E37: 147.1 | F37: 156.35 | G37: 156.05 | H37: 144.1 | I37: 175470 | J37: 27041093.9 | K37: 2020-04-08 | L37: 4268 | M37: INE208C01025
A38: AFFLE | B38: BE | C38: 1050 | D38: 1053.45 | E38: 1030 | F38: 1053.45 | G38: 1053.45 | H38: 1003.3 | I38: 8191 | J38: 8619737.5 | K38: 2020-04-08 | L38: 470 | M38: INE00WC01019
A39: AGARIND | B39: EQ | C39: 49.8 | D39: 52.85 | E39: 49.05 | F39: 52.25 | G39: 52.5 | H39: 49.95 | I39: 7826 | J39: 404450.25 | K39: 2020-04-08 | L39: 207 | M39: INE204E01012
A40: AGCNET | B40: BE | C40: 224.35 | D40: 235.55 | E40: 213.25 | F40: 234.7 | G40: 235.55 | H40: 224.35 | I40: 2524 | J40: 573063 | K40: 2020-04-08 | L40: 70 | M40: INE676A01019
A41: AGRITECH | B41: EQ | C41: 23.95 | D41: 23.95 | E41: 23.95 | F41: 23.95 | G41: 23.95 | H41: 22.85 | I41: 504 | J41: 12070.8 | K41: 2020-04-08 | L41: 18 | M41: INE449G01018
A42: AGROPHOS | B42: EQ | C42: 5.7 | D42: 5.7 | E42: 5.2 | F42: 5.7 | G42: 5.7 | H42: 5.45 | I42: 40596 | J42: 227201.55 | K42: 2020-04-08 | L42: 340 | M42: INE740V01019
A43: AHLEAST | B43: EQ | C43: 133.15 | D43: 141.85 | E43: 128.15 | F43: 131.55 | G43: 128.35 | H43: 131.5 | I43: 3303 | J43: 439718.1 | K43: 2020-04-08 | L43: 350 | M43: INE926K01017
A44: AHLUCONT | B44: EQ | C44: 145.95 | D44: 148 | E44: 136 | F44: 146.3 | G44: 148 | H44: 144.1 | I44: 153910 | J44: 21077811.2 | K44: 2020-04-08 | L44: 995 | M44: INE758C01029
A45: AHLWEST | B45: EQ | C45: 289.9 | D45: 289.9 | E45: 270.95 | F45: 275 | G45: 275 | H45: 277 | I45: 238 | J45: 67030 | K45: 2020-04-08 | L45: 91 | M45: INE915K01010
A46: AIAENG | B46: EQ | C46: 1259.45 | D46: 1291 | E46: 1229 | F46: 1255.85 | G46: 1268 | H46: 1249.9 | I46: 73842 | J46: 92756824.05 | K46: 2020-04-08 | L46: 10503 | M46: INE212H01026
A47: AIONJSW | B47: EQ | C47: 10.9 | D47: 11.1 | E47: 10.2 | F47: 11.1 | G47: 11.1 | H47: 10.6 | I47: 90347 | J47: 996144.95 | K47: 2020-04-08 | L47: 180 | M47: INE743C01021
A48: AIRAN | B48: EQ | C48: 9.8 | D48: 10.3 | E48: 9.75 | F48: 9.8 | G48: 9.75 | H48: 9.85 | I48: 1826 | J48: 18127.1 | K48: 2020-04-08 | L48: 25 | M48: INE645W01026
A49: AJANTPHARM | B49: EQ | C49: 1325.75 | D49: 1450 | E49: 1325 | F49: 1367.5 | G49: 1363 | H49: 1340.2 | I49: 166582 | J49: 233126032.5 | K49: 2020-04-08 | L49: 8748 | M49: INE031B01049
A50: AJMERA | B50: EQ | C50: 64.95 | D50: 70.5 | E50: 64.6 | F50: 68.4 | G50: 69.9 | H50: 64.65 | I50: 31766 | J50: 2167947.5 | K50: 2020-04-08 | L50: 909 | M50: INE298G01027
A51: AKASH | B51: BE | C51: 90 | D51: 90 | E51: 90 | F51: 90 | G51: 90 | H51: 90.95 | I51: 500 | J51: 45000 | K51: 2020-04-08 | L51: 1 | M51: INE737W01013
A52: AKSHARCHEM | B52: EQ | C52: 174.75 | D52: 177.6 | E52: 165.3 | F52: 169.7 | G52: 167.15 | H52: 165.25 | I52: 3130 | J52: 531878.25 | K52: 2020-04-08 | L52: 293 | M52: INE542B01011
A53: AKSHOPTFBR | B53: EQ | C53: 3.6 | D53: 3.6 | E53: 3.6 | F53: 3.6 | G53: 3.6 | H53: 3.45 | I53: 27750 | J53: 99900 | K53: 2020-04-08 | L53: 45 | M53: INE523B01011
A54: AKZOINDIA | B54: EQ | C54: 2084.95 | D54: 2133 | E54: 2030 | F54: 2047.9 | G54: 2040 | H54: 2086.75 | I54: 12835 | J54: 26789836.95 | K54: 2020-04-08 | L54: 2242 | M54: INE133A01011
A55: ALANKIT | B55: EQ | C55: 12.9 | D55: 12.9 | E55: 12.9 | F55: 12.9 | G55: 12.9 | H55: 12.3 | I55: 14247 | J55: 183786.3 | K55: 2020-04-08 | L55: 75 | M55: INE914E01040
A56: ALBERTDAVD | B56: EQ | C56: 338.8 | D56: 364.75 | E56: 338.8 | F56: 353.15 | G56: 352 | H56: 341.15 | I56: 24334 | J56: 8579416.55 | K56: 2020-04-08 | L56: 1220 | M56: INE155C01010
A57: ALCHEM | B57: BE | C57: 1.4 | D57: 1.4 | E57: 1.4 | F57: 1.4 | G57: 1.4 | H57: 1.35 | I57: 8608 | J57: 12051.2 | K57: 2020-04-08 | L57: 18 | M57: INE964B01033
A58: ALEMBICLTD | B58: EQ | C58: 43.7 | D58: 48.05 | E58: 39.7 | F58: 45.05 | G58: 45.5 | H58: 42.15 | I58: 695128 | J58: 31779132.75 | K58: 2020-04-08 | L58: 6991 | M58: INE426A01027
A59: ALICON | B59: EQ | C59: 195.95 | D59: 196 | E59: 181.05 | F59: 184.75 | G59: 184 | H59: 189.25 | I59: 3909 | J59: 722322.5 | K59: 2020-04-08 | L59: 123 | M59: INE062D01024
A60: ALKALI | B60: EQ | C60: 29.95 | D60: 31.75 | E60: 29.65 | F60: 31.75 | G60: 31.75 | H60: 28.9 | I60: 9346 | J60: 289594.95 | K60: 2020-04-08 | L60: 349 | M60: INE773I01017
A61: ALKEM | B61: EQ | C61: 2360 | D61: 2736.5 | E61: 2326.2 | F61: 2671.15 | G61: 2639 | H61: 2324.05 | I61: 371259 | J61: 967330461.6 | K61: 2020-04-08 | L61: 44106 | M61: INE540L01014
A62: ALKYLAMINE | B62: EQ | C62: 1236.6 | D62: 1398 | E62: 1222.2 | F62: 1334.05 | G62: 1334 | H62: 1232.45 | I62: 41501 | J62: 55061848.25 | K62: 2020-04-08 | L62: 3832 | M62: INE150B01021
A63: ALLCARGO | B63: EQ | C63: 63.05 | D63: 65.85 | E63: 63 | F63: 65.7 | G63: 65.85 | H63: 59.9 | I63: 300794 | J63: 19569467.05 | K63: 2020-04-08 | L63: 3098 | M63: INE418H01029
A64: ALLSEC | B64: EQ | C64: 131.7 | D64: 131.9 | E64: 129.35 | F64: 131.9 | G64: 131.9 | H64: 125.65 | I64: 1335 | J64: 175836.2 | K64: 2020-04-08 | L64: 37 | M64: INE835G01018
A65: ALOKINDS | B65: EQ | C65: 4.7 | D65: 4.7 | E65: 4.7 | F65: 4.7 | G65: 4.7 | H65: 4.5 | I65: 1698707 | J65: 7983922.9 | K65: 2020-04-08 | L65: 397 | M65: INE270A01029
A66: ALPA | B66: EQ | C66: 18.55 | D66: 20.15 | E66: 17.8 | F66: 20.15 | G66: 20.15 | H66: 16.8 | I66: 131233 | J66: 2593665.9 | K66: 2020-04-08 | L66: 858 | M66: INE385I01010
A67: ALPHAGEO | B67: EQ | C67: 126 | D67: 137.5 | E67: 126 | F67: 134.45 | G67: 133.3 | H67: 129.7 | I67: 22258 | J67: 2986986.5 | K67: 2020-04-08 | L67: 783 | M67: INE137C01018
A68: ALPSINDUS | B68: EQ | C68: 0.65 | D68: 0.75 | E68: 0.65 | F68: 0.75 | G68: 0.7 | H68: 0.7 | I68: 25369 | J68: 18108.8 | K68: 2020-04-08 | L68: 33 | M68: INE093B01015
A69: AMARAJABAT | B69: EQ | C69: 501.1 | D69: 513.65 | E69: 488.45 | F69: 502.05 | G69: 504.9 | H69: 501.1 | I69: 755312 | J69: 378881689.9 | K69: 2020-04-08 | L69: 18162 | M69: INE885A01032
A70: AMBER | B70: EQ | C70: 1189.9 | D70: 1199 | E70: 1072 | F70: 1108.05 | G70: 1109.25 | H70: 1189.9 | I70: 93512 | J70: 105805912.2 | K70: 2020-04-08 | L70: 14252 | M70: INE371P01015
A71: AMBIKCO | B71: EQ | C71: 539.25 | D71: 559 | E71: 531.05 | F71: 545.2 | G71: 536.4 | H71: 537.25 | I71: 3988 | J71: 2168349.4 | K71: 2020-04-08 | L71: 406 | M71: INE540G01014
A72: AMBUJACEM | B72: EQ | C72: 158.5 | D72: 159.5 | E72: 148.2 | F72: 149.7 | G72: 149.55 | H72: 159 | I72: 10421438 | J72: 1597618498 | K72: 2020-04-08 | L72: 84074 | M72: INE079A01024
A73: AMDIND | B73: EQ | C73: 9.9 | D73: 10.5 | E73: 9.5 | F73: 9.8 | G73: 9.55 | H73: 10 | I73: 17757 | J73: 177659.15 | K73: 2020-04-08 | L73: 707 | M73: INE005I01014
A74: AMJLAND | B74: EQ | C74: 14.3 | D74: 14.95 | E74: 13.7 | F74: 14 | G74: 14 | H74: 14.25 | I74: 12523 | J74: 176065.3 | K74: 2020-04-08 | L74: 106 | M74: INE606A01024
A75: AMRUTANJAN | B75: EQ | C75: 326 | D75: 352 | E75: 320.1 | F75: 345.45 | G75: 344.3 | H75: 324 | I75: 278725 | J75: 95586275.35 | K75: 2020-04-08 | L75: 9075 | M75: INE098F01031
A76: ANANTRAJ | B76: EQ | C76: 19.55 | D76: 20.15 | E76: 18.6 | F76: 18.75 | G76: 18.8 | H76: 19.55 | I76: 184694 | J76: 3509270.8 | K76: 2020-04-08 | L76: 1012 | M76: INE242C01024
A77: ANDHRACEMT | B77: EQ | C77: 1.8 | D77: 1.9 | E77: 1.7 | F77: 1.85 | G77: 1.9 | H77: 1.75 | I77: 105618 | J77: 196578.05 | K77: 2020-04-08 | L77: 227 | M77: INE666E01012
A78: ANDHRAPAP | B78: EQ | C78: 148.55 | D78: 148.55 | E78: 147 | F78: 148.55 | G78: 148.55 | H78: 141.5 | I78: 2622 | J78: 389210.05 | K78: 2020-04-08 | L78: 70 | M78: INE435A01028
A79: ANDHRSUGAR | B79: EQ | C79: 206.95 | D79: 212 | E79: 195 | F79: 206.05 | G79: 205.85 | H79: 203.55 | I79: 35494 | J79: 7286675.25 | K79: 2020-04-08 | L79: 1328 | M79: INE715B01013
A80: ANIKINDS | B80: EQ | C80: 7.25 | D80: 7.25 | E80: 6.65 | F80: 6.8 | G80: 6.8 | H80: 6.95 | I80: 4994 | J80: 34701.65 | K80: 2020-04-08 | L80: 35 | M80: INE087B01017
A81: ANKITMETAL | B81: EQ | C81: 0.4 | D81: 0.45 | E81: 0.35 | F81: 0.45 | G81: 0.45 | H81: 0.4 | I81: 64810 | J81: 27213.05 | K81: 2020-04-08 | L81: 29 | M81: INE106I01010
A82: ANSALAPI | B82: EQ | C82: 3.65 | D82: 3.8 | E82: 3.65 | F82: 3.8 | G82: 3.8 | H82: 3.65 | I82: 3974 | J82: 15023.75 | K82: 2020-04-08 | L82: 28 | M82: INE436A01026
A83: ANSALHSG | B83: EQ | C83: 3 | D83: 3 | E83: 2.8 | F83: 2.9 | G83: 2.9 | H83: 2.9 | I83: 31510 | J83: 91846.6 | K83: 2020-04-08 | L83: 64 | M83: INE880B01015
A84: ANUP | B84: EQ | C84: 304.75 | D84: 323.7 | E84: 303.1 | F84: 313.2 | G84: 313.05 | H84: 312.75 | I84: 11786 | J84: 3732090.6 | K84: 2020-04-08 | L84: 460 | M84: INE294Z01018
A85: APARINDS | B85: EQ | C85: 296.95 | D85: 300.35 | E85: 290.6 | F85: 295.85 | G85: 295.5 | H85: 296.05 | I85: 6051 | J85: 1806443.45 | K85: 2020-04-08 | L85: 427 | M85: INE372A01015
A86: APCL | B86: EQ | C86: 102.4 | D86: 102.4 | E86: 95.2 | F86: 97.35 | G86: 97 | H86: 98.5 | I86: 3739 | J86: 362867.6 | K86: 2020-04-08 | L86: 79 | M86: INE071F01012
A87: APCOTEXIND | B87: EQ | C87: 87.55 | D87: 94.85 | E87: 86 | F87: 87.5 | G87: 86.1 | H87: 87.45 | I87: 13115 | J87: 1175575.25 | K87: 2020-04-08 | L87: 323 | M87: INE116A01032
A88: APEX | B88: EQ | C88: 190 | D88: 201.65 | E88: 185.1 | F88: 201.65 | G88: 201.65 | H88: 183.35 | I88: 141806 | J88: 27768799.35 | K88: 2020-04-08 | L88: 3293 | M88: INE346W01013
A89: APLAPOLLO | B89: EQ | C89: 1245 | D89: 1274 | E89: 1220 | F89: 1259.5 | G89: 1258 | H89: 1231.75 | I89: 21152 | J89: 26442272.1 | K89: 2020-04-08 | L89: 3032 | M89: INE702C01019
A90: APLLTD | B90: EQ | C90: 630 | D90: 702.65 | E90: 615.5 | F90: 640.85 | G90: 626 | H90: 610.2 | I90: 540272 | J90: 353935242.1 | K90: 2020-04-08 | L90: 30323 | M90: INE901L01018
A91: APOLLO | B91: EQ | C91: 45.5 | D91: 56 | E91: 45.25 | F91: 54.3 | G91: 53.55 | H91: 46.7 | I91: 68951 | J91: 3631629.4 | K91: 2020-04-08 | L91: 1694 | M91: INE713T01010
A92: APOLLOHOSP | B92: EQ | C92: 1225.9 | D92: 1338.4 | E92: 1211 | F92: 1263.95 | G92: 1261 | H92: 1225.95 | I92: 2070270 | J92: 2654141027 | K92: 2020-04-08 | L92: 156926 | M92: INE437A01024
A93: APOLLOPIPE | B93: EQ | C93: 279.5 | D93: 304 | E93: 262.95 | F93: 281.3 | G93: 281 | H93: 280.1 | I93: 12940 | J93: 3607793.25 | K93: 2020-04-08 | L93: 543 | M93: INE126J01016
A94: APOLLOTYRE | B94: EQ | C94: 83.5 | D94: 87.15 | E94: 82 | F94: 83.4 | G94: 83.15 | H94: 83.5 | I94: 2950752 | J94: 248872037.1 | K94: 2020-04-08 | L94: 19408 | M94: INE438A01022
A95: APOLSINHOT | B95: EQ | C95: 460.35 | D95: 460.4 | E95: 421.1 | F95: 439.8 | G95: 436 | H95: 438.6 | I95: 694 | J95: 306874.65 | K95: 2020-04-08 | L95: 84 | M95: INE451F01024
A96: APTECHT | B96: EQ | C96: 85.3 | D96: 87.7 | E96: 83.55 | F96: 84.6 | G96: 84.3 | H96: 85.3 | I96: 106721 | J96: 9133416.7 | K96: 2020-04-08 | L96: 2385 | M96: INE266F01018
A97: ARCHIDPLY | B97: EQ | C97: 16.55 | D97: 17 | E97: 16.45 | F97: 16.85 | G97: 16.95 | H97: 16.75 | I97: 4083 | J97: 68300.2 | K97: 2020-04-08 | L97: 63 | M97: INE877I01016
A98: ARCHIES | B98: EQ | C98: 9.4 | D98: 9.5 | E98: 9 | F98: 9.05 | G98: 9.15 | H98: 9.45 | I98: 24343 | J98: 224667.6 | K98: 2020-04-08 | L98: 150 | M98: INE731A01020
A99: ARCOTECH | B99: EQ | C99: 0.9 | D99: 0.95 | E99: 0.85 | F99: 0.9 | G99: 0.9 | H99: 0.9 | I99: 51482 | J99: 47500.05 | K99: 2020-04-08 | L99: 77 | M99: INE574I01035
A100: ARENTERP | B100: EQ | C100: 12.65 | D100: 12.65 | E100: 12.05 | F100: 12.05 | G100: 12.05 | H100: 12.65 | I100: 63 | J100: 765.15 | K100: 2020-04-08 | L100: 4 | M100: INE610C01014
A101: ARIES | B101: EQ | C101: 44.4 | D101: 47.6 | E101: 42.65 | F101: 43.6 | G101: 44 | H101: 44.4 | I101: 50875 | J101: 2250478.25 | K101: 2020-04-08 | L101: 1080 | M101: INE298I01015
A102: ARIHANT | B102: EQ | C102: 12.05 | D102: 12.55 | E102: 11.6 | F102: 12.15 | G102: 12.5 | H102: 12.05 | I102: 964 | J102: 11418.15 | K102: 2020-04-08 | L102: 27 | M102: INE413D01011
A103: ARIHANTSUP | B103: EQ | C103: 21.4 | D103: 21.45 | E103: 19.45 | F103: 19.5 | G103: 21 | H103: 20.45 | I103: 4362 | J103: 85414.05 | K103: 2020-04-08 | L103: 80 | M103: INE643K01018
A104: ARMANFIN | B104: EQ | C104: 340 | D104: 373.2 | E104: 337.7 | F104: 373.05 | G104: 373.2 | H104: 355.45 | I104: 50867 | J104: 18465582.65 | K104: 2020-04-08 | L104: 911 | M104: INE109C01017
A105: AROGRANITE | B105: EQ | C105: 21.95 | D105: 24.5 | E105: 20.85 | F105: 24.2 | G105: 24.5 | H105: 22.35 | I105: 26052 | J105: 602565.3 | K105: 2020-04-08 | L105: 183 | M105: INE210C01013
A106: ARROWGREEN | B106: BE | C106: 33.55 | D106: 35 | E106: 33.45 | F106: 33.45 | G106: 33.45 | H106: 33.85 | I106: 5735 | J106: 195198.5 | K106: 2020-04-08 | L106: 32 | M106: INE570D01018
A107: ARSHIYA | B107: EQ | C107: 7.1 | D107: 7.6 | E107: 7.1 | F107: 7.6 | G107: 7.6 | H107: 7.25 | I107: 23178 | J107: 175819.45 | K107: 2020-04-08 | L107: 63 | M107: INE968D01022
A108: ARSSINFRA | B108: EQ | C108: 11.25 | D108: 12.3 | E108: 10.9 | F108: 11.8 | G108: 11.85 | H108: 11.15 | I108: 16388 | J108: 189874.85 | K108: 2020-04-08 | L108: 107 | M108: INE267I01010
A109: ARTEMISMED | B109: EQ | C109: 140 | D109: 147 | E109: 136.3 | F109: 138 | G109: 137 | H109: 139.15 | I109: 1729 | J109: 245138.4 | K109: 2020-04-08 | L109: 31 | M109: INE025R01013
A110: ARVIND | B110: EQ | C110: 23.5 | D110: 24.4 | E110: 22.45 | F110: 23.75 | G110: 23.75 | H110: 22.2 | I110: 2137547 | J110: 50521243.45 | K110: 2020-04-08 | L110: 7057 | M110: INE034A01011
A111: ARVINDFASN | B111: EQ | C111: 139.8 | D111: 141.9 | E111: 132.2 | F111: 133.8 | G111: 134.75 | H111: 139.85 | I111: 46445 | J111: 6387304.5 | K111: 2020-04-08 | L111: 1243 | M111: INE955V01021
A112: ARVSMART | B112: EQ | C112: 64.05 | D112: 67 | E112: 64 | F112: 65.4 | G112: 65.5 | H112: 65 | I112: 10000 | J112: 656036.65 | K112: 2020-04-08 | L112: 320 | M112: INE034S01021
A113: ASAHIINDIA | B113: EQ | C113: 152 | D113: 158 | E113: 147.05 | F113: 155.5 | G113: 152.35 | H113: 153.2 | I113: 5605 | J113: 858978.65 | K113: 2020-04-08 | L113: 218 | M113: INE439A01020
A114: ASAHISONG | B114: EQ | C114: 80.8 | D114: 88.95 | E114: 80.05 | F114: 85.25 | G114: 86 | H114: 80.9 | I114: 8055 | J114: 692533.2 | K114: 2020-04-08 | L114: 314 | M114: INE228I01012
A115: ASAL | B115: EQ | C115: 14.8 | D115: 14.9 | E115: 14.5 | F115: 14.5 | G115: 14.5 | H115: 14.25 | I115: 8037 | J115: 118819.3 | K115: 2020-04-08 | L115: 36 | M115: INE900C01027
A116: ASALCBR | B116: EQ | C116: 164.9 | D116: 175 | E116: 158 | F116: 165.7 | G116: 165 | H116: 162.9 | I116: 31033 | J116: 5116102.05 | K116: 2020-04-08 | L116: 970 | M116: INE073G01016
A117: ASHAPURMIN | B117: EQ | C117: 22.1 | D117: 22.1 | E117: 22.05 | F117: 22.1 | G117: 22.1 | H117: 21.05 | I117: 8770 | J117: 193792 | K117: 2020-04-08 | L117: 43 | M117: INE348A01023
A118: ASHIANA | B118: EQ | C118: 52.9 | D118: 52.9 | E118: 49.1 | F118: 49.95 | G118: 50 | H118: 50 | I118: 69042 | J118: 3480534.3 | K118: 2020-04-08 | L118: 621 | M118: INE365D01021
A119: ASHIMASYN | B119: EQ | C119: 3.9 | D119: 3.9 | E119: 3.9 | F119: 3.9 | G119: 3.9 | H119: 3.55 | I119: 28914 | J119: 112764.6 | K119: 2020-04-08 | L119: 46 | M119: INE440A01010
A120: ASHOKA | B120: EQ | C120: 38.35 | D120: 42.7 | E120: 37.8 | F120: 42.7 | G120: 42.7 | H120: 38.85 | I120: 1577514 | J120: 65134101.3 | K120: 2020-04-08 | L120: 8475 | M120: INE442H01029
A121: ASHOKLEY | B121: EQ | C121: 39.85 | D121: 47.8 | E121: 38.75 | F121: 43.85 | G121: 43.6 | H121: 39.85 | I121: 76817768 | J121: 3355417806 | K121: 2020-04-08 | L121: 169889 | M121: INE208A01029
A122: ASIANHOTNR | B122: EQ | C122: 70 | D122: 71.8 | E122: 66 | F122: 71.55 | G122: 71.5 | H122: 65.4 | I122: 4982 | J122: 349215.55 | K122: 2020-04-08 | L122: 198 | M122: INE363A01022
A123: ASIANPAINT | B123: EQ | C123: 1623.8 | D123: 1687.8 | E123: 1600 | F123: 1608.95 | G123: 1608 | H123: 1623.8 | I123: 2382216 | J123: 3911658954 | K123: 2020-04-08 | L123: 101146 | M123: INE021A01026
A124: ASIANTILES | B124: EQ | C124: 156 | D124: 162.9 | E124: 155 | F124: 157.6 | G124: 156.5 | H124: 157.65 | I124: 19917 | J124: 3151924.4 | K124: 2020-04-08 | L124: 431 | M124: INE022I01019
A125: ASPINWALL | B125: EQ | C125: 93 | D125: 98.7 | E125: 83.55 | F125: 93 | G125: 93 | H125: 90 | I125: 413 | J125: 38837.15 | K125: 2020-04-08 | L125: 20 | M125: INE991I01015
A126: ASTEC | B126: EQ | C126: 450.65 | D126: 465.05 | E126: 440 | F126: 460.05 | G126: 460.3 | H126: 443.9 | I126: 5283 | J126: 2392645.5 | K126: 2020-04-08 | L126: 494 | M126: INE563J01010
A127: ASTERDM | B127: EQ | C127: 96 | D127: 103.5 | E127: 93.8 | F127: 99.25 | G127: 99 | H127: 94.55 | I127: 996205 | J127: 98978623.7 | K127: 2020-04-08 | L127: 4570 | M127: INE914M01019
A128: ASTRAL | B128: EQ | C128: 962 | D128: 986 | E128: 952 | F128: 955.45 | G128: 954 | H128: 973.85 | I128: 59212 | J128: 57381672.65 | K128: 2020-04-08 | L128: 7623 | M128: INE006I01046
A129: ASTRAMICRO | B129: EQ | C129: 56.9 | D129: 62.55 | E129: 55.85 | F129: 61.7 | G129: 62.55 | H129: 56.9 | I129: 253097 | J129: 15146656.55 | K129: 2020-04-08 | L129: 1961 | M129: INE386C01029
A130: ASTRAZEN | B130: EQ | C130: 2700 | D130: 2830 | E130: 2544 | F130: 2561.6 | G130: 2549 | H130: 2693.65 | I130: 38510 | J130: 104113109 | K130: 2020-04-08 | L130: 6647 | M130: INE203A01020
A131: ASTRON | B131: EQ | C131: 26.15 | D131: 29.9 | E131: 25.3 | F131: 27.5 | G131: 27.8 | H131: 27.65 | I131: 61618 | J131: 1693449.45 | K131: 2020-04-08 | L131: 1743 | M131: INE646X01014
A132: ATFL | B132: EQ | C132: 479.65 | D132: 499 | E132: 475 | F132: 481.55 | G132: 475 | H132: 479.65 | I132: 6104 | J132: 2975754.9 | K132: 2020-04-08 | L132: 411 | M132: INE209A01019
A133: ATLANTA | B133: EQ | C133: 3 | D133: 3.15 | E133: 3 | F133: 3.15 | G133: 3.15 | H133: 3 | I133: 8624 | J133: 26936.35 | K133: 2020-04-08 | L133: 28 | M133: INE285H01022
A134: ATLASCYCLE | B134: BE | C134: 30 | D134: 31.5 | E134: 29.5 | F134: 30.7 | G134: 30.7 | H134: 30 | I134: 2000 | J134: 60118.65 | K134: 2020-04-08 | L134: 42 | M134: INE446A01025
A135: ATNINTER | B135: BE | C135: 0.1 | D135: 0.1 | E135: 0.1 | F135: 0.1 | G135: 0.1 | H135: 0.1 | I135: 12716 | J135: 1271.6 | K135: 2020-04-08 | L135: 5 | M135: INE803A01027
A136: ATUL | B136: EQ | C136: 3930 | D136: 4005 | E136: 3908.35 | F136: 3951.85 | G136: 3954.95 | H136: 3927.1 | I136: 76768 | J136: 304824820.4 | K136: 2020-04-08 | L136: 11635 | M136: INE100A01010
A137: ATULAUTO | B137: EQ | C137: 151.35 | D137: 154.05 | E137: 146.8 | F137: 153.45 | G137: 153.95 | H137: 146.75 | I137: 13699 | J137: 2093863.3 | K137: 2020-04-08 | L137: 810 | M137: INE951D01028
A138: AUBANK | B138: EQ | C138: 461.2 | D138: 490 | E138: 457 | F138: 480.3 | G138: 473 | H138: 478.4 | I138: 1791057 | J138: 837589012.6 | K138: 2020-04-08 | L138: 59410 | M138: INE949L01017
A139: AURIONPRO | B139: EQ | C139: 41.75 | D139: 43.7 | E139: 40 | F139: 42.9 | G139: 42.9 | H139: 40.95 | I139: 8828 | J139: 376649.05 | K139: 2020-04-08 | L139: 213 | M139: INE132H01018
A140: AUROPHARMA | B140: EQ | C140: 432.5 | D140: 476.3 | E140: 426.3 | F140: 438.15 | G140: 438.9 | H140: 445.7 | I140: 13186213 | J140: 5925576015 | K140: 2020-04-08 | L140: 205238 | M140: INE406A01037
A141: AUSOMENT | B141: EQ | C141: 26.1 | D141: 26.1 | E141: 26.1 | F141: 26.1 | G141: 26.1 | H141: 25 | I141: 100 | J141: 2610 | K141: 2020-04-08 | L141: 1 | M141: INE218C01016
A142: AUTOAXLES | B142: EQ | C142: 413 | D142: 423.5 | E142: 398.05 | F142: 413.45 | G142: 416 | H142: 399.3 | I142: 5448 | J142: 2244823.45 | K142: 2020-04-08 | L142: 638 | M142: INE449A01011
A143: AUTOIND | B143: EQ | C143: 11.3 | D143: 11.35 | E143: 11.1 | F143: 11.35 | G143: 11.35 | H143: 10.85 | I143: 9358 | J143: 105383.05 | K143: 2020-04-08 | L143: 68 | M143: INE718H01014
A144: AUTOLITIND | B144: EQ | C144: 13.2 | D144: 14.4 | E144: 13.2 | F144: 13.8 | G144: 13.9 | H144: 13.75 | I144: 4699 | J144: 65525.8 | K144: 2020-04-08 | L144: 68 | M144: INE448A01013
A145: AVADHSUGAR | B145: EQ | C145: 143.55 | D145: 143.55 | E145: 143.55 | F145: 143.55 | G145: 143.55 | H145: 136.75 | I145: 13174 | J145: 1891127.7 | K145: 2020-04-08 | L145: 157 | M145: INE349W01017
A146: AVANTIFEED | B146: EQ | C146: 311 | D146: 341.55 | E146: 310.5 | F146: 341.35 | G146: 341.55 | H146: 310.5 | I146: 748404 | J146: 246839085.1 | K146: 2020-04-08 | L146: 23272 | M146: INE871C01038
A147: AVTNPL | B147: EQ | C147: 25.45 | D147: 27.8 | E147: 24.25 | F147: 27.25 | G147: 27 | H147: 25.05 | I147: 213540 | J147: 5643644.4 | K147: 2020-04-08 | L147: 1601 | M147: INE488D01021
A148: AXISBANK | B148: EQ | C148: 383.75 | D148: 427.7 | E148: 373.5 | F148: 391.35 | G148: 391.4 | H148: 388.85 | I148: 64930772 | J148: 2.575974593e+10 | K148: 2020-04-08 | L148: 769506 | M148: INE238A01034
A149: AXISCADES | B149: EQ | C149: 30.9 | D149: 31.5 | E149: 28.65 | F149: 31.4 | G149: 31.5 | H149: 30 | I149: 39670 | J149: 1232336.75 | K149: 2020-04-08 | L149: 621 | M149: INE555B01013
A150: AXISGOLD | B150: EQ | C150: 3969.9 | D150: 3989 | E150: 3925 | F150: 3973.3 | G150: 3983 | H150: 3919.55 | I150: 701 | J150: 2769851.6 | K150: 2020-04-08 | L150: 206 | M150: INF846K01347
A151: AXISNIFTY | B151: EQ | C151: 1000.01 | D151: 1000.01 | E151: 1000.01 | F151: 1000.01 | G151: 1000.01 | H151: 1007 | I151: 2 | J151: 2000.02 | K151: 2020-04-08 | L151: 1 | M151: INF846K01ZL0
A152: AYMSYNTEX | B152: EQ | C152: 15.5 | D152: 16.8 | E152: 15.5 | F152: 16.5 | G152: 16.5 | H152: 16.1 | I152: 2637 | J152: 43548.55 | K152: 2020-04-08 | L152: 26 | M152: INE193B01039
A153: BAFNAPH | B153: EQ | C153: 16.05 | D153: 16.05 | E153: 16.05 | F153: 16.05 | G153: 16.05 | H153: 15.3 | I153: 272 | J153: 4365.6 | K153: 2020-04-08 | L153: 8 | M153: INE878I01022
A154: BAGFILMS | B154: BE | C154: 1.75 | D154: 1.8 | E154: 1.75 | F154: 1.8 | G154: 1.8 | H154: 1.75 | I154: 3861 | J154: 6912.3 | K154: 2020-04-08 | L154: 20 | M154: INE116D01028
A155: BAJAJ-AUTO | B155: EQ | C155: 2180 | D155: 2383.45 | E155: 2168.55 | F155: 2241.7 | G155: 2260 | H155: 2280.05 | I155: 840875 | J155: 1933266167 | K155: 2020-04-08 | L155: 59866 | M155: INE917I01010
A156: BAJAJCON | B156: EQ | C156: 136 | D156: 148.65 | E156: 135.1 | F156: 137.95 | G156: 138 | H156: 138.15 | I156: 1031633 | J156: 145711259.1 | K156: 2020-04-08 | L156: 26102 | M156: INE933K01021
A157: BAJAJELEC | B157: EQ | C157: 277.3 | D157: 294.5 | E157: 277.3 | F157: 287.8 | G157: 289 | H157: 277.3 | I157: 58251 | J157: 16797537.55 | K157: 2020-04-08 | L157: 3821 | M157: INE193E01025
A158: BAJAJFINSV | B158: EQ | C158: 4575 | D158: 4950 | E158: 4537.8 | F158: 4608.5 | G158: 4604 | H158: 4724.9 | I158: 1113057 | J158: 5259493342 | K158: 2020-04-08 | L158: 158158 | M158: INE918I01018
A159: BAJAJHIND | B159: EQ | C159: 3.05 | D159: 3.05 | E159: 3.05 | F159: 3.05 | G159: 3.05 | H159: 2.95 | I159: 80900 | J159: 246745 | K159: 2020-04-08 | L159: 110 | M159: INE306A01021
A160: BAJAJHLDNG | B160: EQ | C160: 2027.95 | D160: 2073.85 | E160: 1925 | F160: 2024.75 | G160: 2025 | H160: 1978.9 | I160: 25453 | J160: 51363834.45 | K160: 2020-04-08 | L160: 6198 | M160: INE118A01012
A161: BAJFINANCE | B161: EQ | C161: 2184 | D161: 2374 | E161: 2144.15 | F161: 2332.9 | G161: 2329 | H161: 2253.35 | I161: 9109346 | J161: 2.088826331e+10 | K161: 2020-04-08 | L161: 516967 | M161: INE296A01024
A162: BALAJITELE | B162: EQ | C162: 43 | D162: 45 | E162: 40.8 | F162: 41.9 | G162: 42.15 | H162: 43.75 | I162: 194912 | J162: 8414452.4 | K162: 2020-04-08 | L162: 1677 | M162: INE794B01026
A163: BALAMINES | B163: EQ | C163: 277 | D163: 296 | E163: 260.4 | F163: 283.65 | G163: 284.45 | H163: 271.2 | I163: 70594 | J163: 20058887.5 | K163: 2020-04-08 | L163: 2337 | M163: INE050E01027
A164: BALAXI | B164: BE | C164: 82.7 | D164: 82.7 | E164: 75.05 | F164: 79.9 | G164: 79.9 | H164: 79 | I164: 1047 | J164: 78761.9 | K164: 2020-04-08 | L164: 24 | M164: INE618N01014
A165: BALKRISHNA | B165: EQ | C165: 8.6 | D165: 8.8 | E165: 8.35 | F165: 8.8 | G165: 8.8 | H165: 8.4 | I165: 7860 | J165: 67624.35 | K165: 2020-04-08 | L165: 49 | M165: INE875R01011
A166: BALKRISIND | B166: EQ | C166: 822 | D166: 862 | E166: 815 | F166: 821.35 | G166: 818.3 | H166: 823.55 | I166: 444079 | J166: 371870250.3 | K166: 2020-04-08 | L166: 24462 | M166: INE787D01026
A167: BALLARPUR | B167: EQ | C167: 0.4 | D167: 0.4 | E167: 0.3 | F167: 0.35 | G167: 0.35 | H167: 0.35 | I167: 9769871 | J167: 3419941.15 | K167: 2020-04-08 | L167: 514 | M167: INE294A01037
A168: BALMLAWRIE | B168: EQ | C168: 84 | D168: 87.9 | E168: 81 | F168: 84.75 | G168: 85.65 | H168: 85.5 | I168: 202053 | J168: 17357055.25 | K168: 2020-04-08 | L168: 3105 | M168: INE164A01016
A169: BALPHARMA | B169: EQ | C169: 38.9 | D169: 41.7 | E169: 38.9 | F169: 41.7 | G169: 41.7 | H169: 37.95 | I169: 40933 | J169: 1688199.5 | K169: 2020-04-08 | L169: 518 | M169: INE083D01012
A170: BALRAMCHIN | B170: EQ | C170: 123.85 | D170: 126.4 | E170: 123 | F170: 126.4 | G170: 126.4 | H170: 120.4 | I170: 642515 | J170: 80884980.2 | K170: 2020-04-08 | L170: 7125 | M170: INE119A01028
A171: BANARBEADS | B171: EQ | C171: 30.25 | D171: 32.5 | E171: 29.6 | F171: 29.75 | G171: 29.75 | H171: 31.5 | I171: 160 | J171: 4873.85 | K171: 2020-04-08 | L171: 26 | M171: INE655B01011
A172: BANARISUG | B172: EQ | C172: 900 | D172: 925 | E172: 880 | F172: 886.1 | G172: 880 | H172: 893.1 | I172: 410 | J172: 368979.1 | K172: 2020-04-08 | L172: 94 | M172: INE459A01010
A173: BANCOINDIA | B173: EQ | C173: 65.45 | D173: 67.5 | E173: 64.1 | F173: 65.95 | G173: 66 | H173: 65.45 | I173: 40062 | J173: 2654130.6 | K173: 2020-04-08 | L173: 1013 | M173: INE213C01025
A174: BANDHANBNK | B174: EQ | C174: 167.95 | D174: 209.05 | E174: 167.5 | F174: 193.75 | G174: 195.25 | H174: 167.25 | I174: 30692919 | J174: 5833285762 | K174: 2020-04-08 | L174: 332020 | M174: INE545U01014
A175: BANG | B175: EQ | C175: 12.05 | D175: 13.1 | E175: 11.9 | F175: 13.1 | G175: 13.1 | H175: 12.5 | I175: 1590 | J175: 20489 | K175: 2020-04-08 | L175: 31 | M175: INE863I01016
A176: BANKBARODA | B176: EQ | C176: 48 | D176: 51.5 | E176: 47.3 | F176: 48.35 | G176: 48.45 | H176: 48.15 | I176: 27159204 | J176: 1340103716 | K176: 2020-04-08 | L176: 77070 | M176: INE028A01039
A177: BANKBEES | B177: EQ | C177: 190 | D177: 205.4 | E177: 186.06 | F177: 191.28 | G177: 191.4 | H177: 192.12 | I177: 676832 | J177: 131368353.2 | K177: 2020-04-08 | L177: 10023 | M177: INF204KB15I9
A178: BANKINDIA | B178: EQ | C178: 32.7 | D178: 34.75 | E178: 32.5 | F178: 33.35 | G178: 33.25 | H178: 32.95 | I178: 1236627 | J178: 41574499.75 | K178: 2020-04-08 | L178: 6257 | M178: INE084A01016
A179: BANSWRAS | B179: EQ | C179: 77.4 | D179: 77.4 | E179: 70.2 | F179: 71.15 | G179: 70.2 | H179: 73.75 | I179: 22922 | J179: 1667255.55 | K179: 2020-04-08 | L179: 137 | M179: INE629D01012
A180: BASF | B180: EQ | C180: 1154 | D180: 1154 | E180: 1105 | F180: 1119.95 | G180: 1120.5 | H180: 1138.25 | I180: 26139 | J180: 29425244.35 | K180: 2020-04-08 | L180: 2640 | M180: INE373A01013
A181: BASML | B181: EQ | C181: 74.05 | D181: 84 | E181: 74.05 | F181: 80 | G181: 80 | H181: 78.7 | I181: 1648 | J181: 135366.45 | K181: 2020-04-08 | L181: 154 | M181: INE186H01014
A182: BATAINDIA | B182: EQ | C182: 1246.5 | D182: 1339 | E182: 1228 | F182: 1240.05 | G182: 1238.95 | H182: 1246.4 | I182: 1346088 | J182: 1726485633 | K182: 2020-04-08 | L182: 66274 | M182: INE176A01028
A183: BAYERCROP | B183: EQ | C183: 3500 | D183: 3946.6 | E183: 3499.3 | F183: 3818.15 | G183: 3772.15 | H183: 3510 | I183: 32833 | J183: 125437264 | K183: 2020-04-08 | L183: 6737 | M183: INE462A01022
A184: BBL | B184: EQ | C184: 590 | D184: 621.25 | E184: 590 | F184: 613.05 | G184: 621.25 | H184: 589.55 | I184: 9335 | J184: 5684085.45 | K184: 2020-04-08 | L184: 804 | M184: INE464A01028
A185: BBTC | B185: EQ | C185: 810 | D185: 854.3 | E185: 774 | F185: 784.2 | G185: 787.95 | H185: 788.4 | I185: 76612 | J185: 62014517.65 | K185: 2020-04-08 | L185: 5281 | M185: INE050A01025
A186: BCG | B186: EQ | C186: 3.6 | D186: 3.65 | E186: 3.55 | F186: 3.65 | G186: 3.65 | H186: 3.5 | I186: 305718 | J186: 1113234.95 | K186: 2020-04-08 | L186: 149 | M186: INE425B01027
A187: BCP | B187: EQ | C187: 10.75 | D187: 10.75 | E187: 10.5 | F187: 10.75 | G187: 10.75 | H187: 10.25 | I187: 8192 | J187: 87934.6 | K187: 2020-04-08 | L187: 28 | M187: INE905P01028
A188: BDL | B188: EQ | C188: 191 | D188: 229 | E188: 188.2 | F188: 218.2 | G188: 216.4 | H188: 191.4 | I188: 448405 | J188: 97968192.25 | K188: 2020-04-08 | L188: 13672 | M188: INE171Z01018
A189: BEARDSELL | B189: EQ | C189: 6.7 | D189: 7.3 | E189: 6.7 | F189: 7.3 | G189: 7.3 | H189: 7.05 | I189: 1250 | J189: 8417 | K189: 2020-04-08 | L189: 4 | M189: INE520H01022
A190: BEDMUTHA | B190: EQ | C190: 12.8 | D190: 13.05 | E190: 12.45 | F190: 12.45 | G190: 12.45 | H190: 13.1 | I190: 19584 | J190: 245429.15 | K190: 2020-04-08 | L190: 32 | M190: INE844K01012
A191: BEL | B191: EQ | C191: 69 | D191: 71.3 | E191: 65.1 | F191: 66.4 | G191: 66.5 | H191: 69 | I191: 16699885 | J191: 1138705070 | K191: 2020-04-08 | L191: 69587 | M191: INE263A01024
A192: BEML | B192: EQ | C192: 492 | D192: 523.5 | E192: 492 | F192: 503.6 | G192: 503 | H192: 475.95 | I192: 890527 | J192: 458689246.6 | K192: 2020-04-08 | L192: 23670 | M192: INE258A01016
A193: BEPL | B193: EQ | C193: 31 | D193: 32.75 | E193: 30.3 | F193: 31.25 | G193: 31.6 | H193: 30.25 | I193: 333595 | J193: 10578641.1 | K193: 2020-04-08 | L193: 3321 | M193: INE922A01025
A194: BERGEPAINT | B194: EQ | C194: 479.9 | D194: 487.65 | E194: 460 | F194: 463.5 | G194: 462 | H194: 479.2 | I194: 1729062 | J194: 817908730.6 | K194: 2020-04-08 | L194: 32950 | M194: INE463A01038
A195: BFINVEST | B195: EQ | C195: 258 | D195: 268.8 | E195: 244.6 | F195: 246.3 | G195: 248.95 | H195: 257.45 | I195: 4938 | J195: 1236639.95 | K195: 2020-04-08 | L195: 244 | M195: INE878K01010
A196: BFUTILITIE | B196: EQ | C196: 158.35 | D196: 158.35 | E196: 151.05 | F196: 154.05 | G196: 153.7 | H196: 150.85 | I196: 138134 | J196: 21700813.75 | K196: 2020-04-08 | L196: 1649 | M196: INE243D01012
A197: BGRENERGY | B197: EQ | C197: 22.1 | D197: 22.85 | E197: 20.95 | F197: 21.1 | G197: 21.15 | H197: 22.2 | I197: 172282 | J197: 3763089.75 | K197: 2020-04-08 | L197: 1108 | M197: INE661I01014
A198: BHAGERIA | B198: EQ | C198: 85 | D198: 91.05 | E198: 80.65 | F198: 81.6 | G198: 82.3 | H198: 84.2 | I198: 34795 | J198: 2944870.7 | K198: 2020-04-08 | L198: 925 | M198: INE354C01027
A199: BHAGYANGR | B199: EQ | C199: 14.05 | D199: 15.2 | E199: 14 | F199: 14.4 | G199: 14.4 | H199: 14.4 | I199: 1338 | J199: 19622.25 | K199: 2020-04-08 | L199: 50 | M199: INE458B01036
A200: BHAGYAPROP | B200: EQ | C200: 18 | D200: 20 | E200: 18 | F200: 20 | G200: 20 | H200: 19 | I200: 999 | J200: 19011 | K200: 2020-04-08 | L200: 5 | M200: INE363W01018
... 1470 more rows

Sheet Sheet1 (hidden)

Sheet Sheet3 (hidden)

Sheet Sheet4 (hidden)

Sheet Sheet5 (hidden)
